Workbook

Sheet RFPR cover
A1: Regulatory Financial Performance Report
A2: ='RFPR cover'!C5 -> Cadent-London
A3: ='RFPR cover'!C7 -> 2021
B5: Licensee | C5: Cadent-London | G5: Input cells
B6: Sector | C6: =INDEX(Data!$A$73:$A$100,MATCH($C$5,Data!$B$73:$B$100,0),0)&"1" -> GD1 | G6: Totals cells (of formula within worksheet)
B7: Reporting Year: (enter 2014 for 2013-14) | C7: 2021 | G7: Referencing to other worksheets
B8: Version (Number) | G8: Referencing to other workbooks
B9: Submitted Date: | C9: 2021-07-30 | G9: Check cells
B10: Cost of Equity | C10: =SUMIF(Data!$B$72:$B$100,C5,Data!$C$72:$C$100) -> 0.067 | G10: No Input
B11: Sharing Factor | C11: =SUMIF(Data!$B$72:$B$100,C5,Data!$D$72:$D$100) -> 0.6304 | G11: Descriptions and pack data
B12: Notional Gearing | C12: =SUMIF(Data!$B$72:$B$100,C5,Data!$E$72:$E$100) -> 0.65
B13: RIIO-1 start date | C13: =INDEX(Data!$G$73:$G$100,MATCH($C$5,Data!$B$73:$B$100,0),0) -> 2014 | F13: Materiality £m
B14: Price basis | C14: =INDEX(Data!$H$73:$H$100,MATCH($C$5,Data!$B$73:$B$100,0),0) -> £m 09/10 | F14: 0.1

Sheet Data
A1: Network Operator Data
A2: ='RFPR cover'!C5 -> Cadent-London
A3: ='RFPR cover'!C7 -> 2021
B6: 2018 | C6: 2017-18
B7: 2019 | C7: 2018-19
B8: 2020 | C8: 2019-20
B9: 2021 | C9: 2020-21
B10: 2022 | C10: 2021-22
B11: 2023 | C11: 2022-23
B13: RPI Index | C13: Reporting year | D13: Actual / Forecast index | E13: Financial Year Average RPI (RPIt) | F13: Year end RPI | G13: Corp. Tax
B14: 2009-10 | C14: 2010 | D14: =IF(VALUE(C14)<='RFPR cover'!$C$7,"Actual","Forecast") -> Actual | E14: 215.767 | F14: 221.75 | G14: 0.28
B15: 2010-11 | C15: 2011 | D15: =IF(VALUE(C15)<='RFPR cover'!$C$7,"Actual","Forecast") -> Actual | E15: 226.475 | F15: 233.45 | G15: 0.28
B16: 2011-12 | C16: 2012 | D16: =IF(VALUE(C16)<='RFPR cover'!$C$7,"Actual","Forecast") -> Actual | E16: 237.342 | F16: 241.65 | G16: 0.26
B17: 2012-13 | C17: 2013 | D17: =IF(VALUE(C17)<='RFPR cover'!$C$7,"Actual","Forecast") -> Actual | E17: 244.675 | F17: 249.1 | G17: 0.24
B18: 2013-14 | C18: 2014 | D18: =IF(VALUE(C18)<='RFPR cover'!$C$7,"Actual","Forecast") -> Actual | E18: 251.733 | F18: 255.25 | G18: 0.23
B19: 2014-15 | C19: 2015 | D19: =IF(VALUE(C19)<='RFPR cover'!$C$7,"Actual","Forecast") -> Actual | E19: 256.667 | F19: 257.55 | G19: 0.21
B20: 2015-16 | C20: 2016 | D20: =IF(VALUE(C20)<='RFPR cover'!$C$7,"Actual","Forecast") -> Actual | E20: 259.433 | F20: 261.25 | G20: 0.2
B21: 2016-17 | C21: 2017 | D21: =IF(VALUE(C21)<='RFPR cover'!$C$7,"Actual","Forecast") -> Actual | E21: 264.992 | F21: 269.95 | G21: 0.2
B22: 2017-18 | C22: 2018 | D22: =IF(VALUE(C22)<='RFPR cover'!$C$7,"Actual","Forecast") -> Actual | E22: 274.908 | F22: 279 | G22: 0.19
B23: 2018-19 | C23: 2019 | D23: =IF(VALUE(C23)<='RFPR cover'!$C$7,"Actual","Forecast") -> Actual | E23: 283.308 | F23: 286.65 | G23: 0.19
B24: 2019-20 | C24: 2020 | D24: =IF(VALUE(C24)<='RFPR cover'!$C$7,"Actual","Forecast") -> Actual | E24: 290.642 | F24: 292.6 | G24: 0.19
B25: 2020-21 | C25: 2021 | D25: =IF(VALUE(C25)<='RFPR cover'!$C$7,"Actual","Forecast") -> Actual | E25: 294.167 | F25: 299 | G25: 0.19
B26: 2021-22 | C26: 2022 | D26: =IF(VALUE(C26)<='RFPR cover'!$C$7,"Actual","Forecast") -> Forecast | E26: =E25*(1+INDEX($D$43:$J$43,0,MATCH($C26,$D$42:$J$42,0))) -> 301.9624255 | F26: 306.9235 | G26: 0.19
B27: 2022-23 | C27: 2023 | D27: =IF(VALUE(C27)<='RFPR cover'!$C$7,"Actual","Forecast") -> Forecast | E27: 311.2477701 | F27: 316.3613976 | G27: 0.19
B28: 2023-24 | C28: 2024 | D28: =IF(VALUE(C28)<='RFPR cover'!$C$7,"Actual","Forecast") -> Forecast | G28: 0.19
B29: 2024-25 | C29: 2025 | D29: =IF(VALUE(C29)<='RFPR cover'!$C$7,"Actual","Forecast") -> Forecast | G29: 0.19
B30: 2025-26 | C30: 2026 | D30: =IF(VALUE(C30)<='RFPR cover'!$C$7,"Actual","Forecast") -> Forecast | G30: 0.19
C32: =IF(C33<='RFPR cover'!$C$7,"Actuals","Forecast") -> Actuals | D32: =IF(D33<='RFPR cover'!$C$7,"Actuals","Forecast") -> Actuals | E32: =IF(E33<='RFPR cover'!$C$7,"Actuals","Forecast") -> Actuals | F32: =IF(F33<='RFPR cover'!$C$7,"Actuals","Forecast") -> Actuals | G32: =IF(G33<='RFPR cover'!$C$7,"Actuals","Forecast") -> Actuals | H32: =IF(H33<='RFPR cover'!$C$7,"Actuals","Forecast") -> Actuals | I32: =IF(I33<='RFPR cover'!$C$7,"Actuals","Forecast") -> Actuals | J32: =IF(J33<='RFPR cover'!$C$7,"Actuals","Forecast") -> Actuals
C33: ='RFPR cover'!$C$13 -> 2014 | D33: =C33+1 -> 2015 | E33: 2016 | F33: 2017 | G33: 2018 | H33: 2019 | I33: 2020 | J33: 2021
B34: Financial Year Average RPI (RPIt) | C34: =INDEX(Data!$E$14:$E$30,MATCH(C$33,Data!$C$14:$C$30,0),0)/IF('RFPR cover'!$C$6="ED1",Data!$E$17,Data!$E$14) -> 1.166689067 | D34: =INDEX(Data!$E$14:$E$30,MATCH(D$33,Data!$C$14:$C$30,0),0)/IF('RFPR cover'!$C$6="ED1",Data!$E$17,Data!$E$14) -> 1.189556327 | E34: =INDEX(Data!$E$14:$E$30,MATCH(E$33,Data!$C$14:$C$30,0),0)/IF('RFPR cover'!$C$6="ED1",Data!$E$17,Data!$E$14) -> 1.202375711 | F34: =INDEX(Data!$E$14:$E$30,MATCH(F$33,Data!$C$14:$C$30,0),0)/IF('RFPR cover'!$C$6="ED1",Data!$E$17,Data!$E$14) -> 1.228139614 | G34: =INDEX(Data!$E$14:$E$30,MATCH(G$33,Data!$C$14:$C$30,0),0)/IF('RFPR cover'!$C$6="ED1",Data!$E$17,Data!$E$14) -> 1.274096595 | H34: =INDEX(Data!$E$14:$E$30,MATCH(H$33,Data!$C$14:$C$30,0),0)/IF('RFPR cover'!$C$6="ED1",Data!$E$17,Data!$E$14) -> 1.313027479 | I34: =INDEX(Data!$E$14:$E$30,MATCH(I$33,Data!$C$14:$C$30,0),0)/IF('RFPR cover'!$C$6="ED1",Data!$E$17,Data!$E$14) -> 1.347017848 | J34: =INDEX(Data!$E$14:$E$30,MATCH(J$33,Data!$C$14:$C$30,0),0)/IF('RFPR cover'!$C$6="ED1",Data!$E$17,Data!$E$14) -> 1.363354915
B35: Year end RPI | C35: =INDEX(Data!$F$14:$F$30,MATCH(C$33,Data!$C$14:$C$30,0),0)/IF('RFPR cover'!$C$6="ED1",Data!$E$17,Data!$E$14) -> 1.182989058 | D35: =INDEX(Data!$F$14:$F$30,MATCH(D$33,Data!$C$14:$C$30,0),0)/IF('RFPR cover'!$C$6="ED1",Data!$E$17,Data!$E$14) -> 1.193648704 | E35: =INDEX(Data!$F$14:$F$30,MATCH(E$33,Data!$C$14:$C$30,0),0)/IF('RFPR cover'!$C$6="ED1",Data!$E$17,Data!$E$14) -> 1.210796832 | F35: =INDEX(Data!$F$14:$F$30,MATCH(F$33,Data!$C$14:$C$30,0),0)/IF('RFPR cover'!$C$6="ED1",Data!$E$17,Data!$E$14) -> 1.251118104 | G35: =INDEX(Data!$F$14:$F$30,MATCH(G$33,Data!$C$14:$C$30,0),0)/IF('RFPR cover'!$C$6="ED1",Data!$E$17,Data!$E$14) -> 1.293061497 | H35: =INDEX(Data!$F$14:$F$30,MATCH(H$33,Data!$C$14:$C$30,0),0)/IF('RFPR cover'!$C$6="ED1",Data!$E$17,Data!$E$14) -> 1.328516409 | I35: =INDEX(Data!$F$14:$F$30,MATCH(I$33,Data!$C$14:$C$30,0),0)/IF('RFPR cover'!$C$6="ED1",Data!$E$17,Data!$E$14) -> 1.356092452 | J35: =INDEX(Data!$F$14:$F$30,MATCH(J$33,Data!$C$14:$C$30,0),0)/IF('RFPR cover'!$C$6="ED1",Data!$E$17,Data!$E$14) -> 1.385754077
B36: 1 year change in Fin Year Ave RPI | C36: =INDEX(Data!$E$14:$E$30,MATCH(C$33,Data!$C$14:$C$30,0))/INDEX(Data!$E$14:$E$30,MATCH(C$33-1,Data!$C$14:$C$30,0)) -> 1.028846429 | D36: =INDEX(Data!$E$14:$E$30,MATCH(D$33,Data!$C$14:$C$30,0))/INDEX(Data!$E$14:$E$30,MATCH(D$33-1,Data!$C$14:$C$30,0)) -> 1.019600132 | E36: =INDEX(Data!$E$14:$E$30,MATCH(E$33,Data!$C$14:$C$30,0))/INDEX(Data!$E$14:$E$30,MATCH(E$33-1,Data!$C$14:$C$30,0)) -> 1.010776609 | F36: =INDEX(Data!$E$14:$E$30,MATCH(F$33,Data!$C$14:$C$30,0))/INDEX(Data!$E$14:$E$30,MATCH(F$33-1,Data!$C$14:$C$30,0)) -> 1.021427498 | G36: =INDEX(Data!$E$14:$E$30,MATCH(G$33,Data!$C$14:$C$30,0))/INDEX(Data!$E$14:$E$30,MATCH(G$33-1,Data!$C$14:$C$30,0)) -> 1.037419998 | H36: =INDEX(Data!$E$14:$E$30,MATCH(H$33,Data!$C$14:$C$30,0))/INDEX(Data!$E$14:$E$30,MATCH(H$33-1,Data!$C$14:$C$30,0)) -> 1.030555677 | I36: =INDEX(Data!$E$14:$E$30,MATCH(I$33,Data!$C$14:$C$30,0))/INDEX(Data!$E$14:$E$30,MATCH(I$33-1,Data!$C$14:$C$30,0)) -> 1.02588702 | J36: =INDEX(Data!$E$14:$E$30,MATCH(J$33,Data!$C$14:$C$30,0))/INDEX(Data!$E$14:$E$30,MATCH(J$33-1,Data!$C$14:$C$30,0)) -> 1.012128323
B37: HMT Forecasts for UK Economy - M3 New Forecasts RPI
C38: Calendar Year | D38: 2017 | E38: =D38+1 -> 2018 | F38: 2019 | G38: 2020 | H38: 2021 | I38: 2022 | J38: 2023 | K38: Source
B39: M3 New Forecasts RPI | H39: 0.025 | I39: 0.031 | J39: 0.03 | K39: November 2020 Publication
B41: Forecast growth rate
C42: Reporting Year | D42: 2017 | E42: =D42+1 -> 2018 | F42: 2019 | G42: 2020 | H42: 2021 | I42: 2022 | J42: 2023
B43: Future inflation assumption | I43: =(H39*0.75)+(I39*0.25) -> 0.0265 | J43: =(I39*0.75)+(J39*0.25) -> 0.03075
B45: ="Selected Capitalisation rates for "&'RFPR cover'!C5 -> Selected Capitalisation rates for Cadent-London
C47: RIIO1
B48: =INDEX($G$54:$G$57,MATCH(LEFT('RFPR cover'!$C$6,2),Data!$E$54:$E$57,0),0) -> Totex excluding repex | C48: =INDEX($F$73:$F$100,MATCH('RFPR cover'!$C$5,Data!$B$73:$B$100,0),0) -> 0.2346933783
C50: 2014 | D50: =C50+1 -> 2015 | E50: 2016 | F50: 2017 | G50: 2018 | H50: 2019 | I50: 2020 | J50: 2021
B51: =INDEX($J$54:$J$57,MATCH(LEFT('RFPR cover'!$C$6,2),Data!$E$54:$E$57,0),0) -> Repex | C51: =IFERROR(INDEX(C$106:C$115,MATCH('RFPR cover'!$C$5,Data!$B$106:$B$115,0),0),0) -> 0.5 | D51: =IFERROR(INDEX(D$106:D$115,MATCH('RFPR cover'!$C$5,Data!$B$106:$B$115,0),0),0) -> 0.5714285714 | E51: =IFERROR(INDEX(E$106:E$115,MATCH('RFPR cover'!$C$5,Data!$B$106:$B$115,0),0),0) -> 0.6428571429 | F51: =IFERROR(INDEX(F$106:F$115,MATCH('RFPR cover'!$C$5,Data!$B$106:$B$115,0),0),0) -> 0.7142857143 | G51: =IFERROR(INDEX(G$106:G$115,MATCH('RFPR cover'!$C$5,Data!$B$106:$B$115,0),0),0) -> 0.7857142857 | H51: =IFERROR(INDEX(H$106:H$115,MATCH('RFPR cover'!$C$5,Data!$B$106:$B$115,0),0),0) -> 0.8571428571 | I51: =IFERROR(INDEX(I$106:I$115,MATCH('RFPR cover'!$C$5,Data!$B$106:$B$115,0),0),0) -> 0.9285714286 | J51: =IFERROR(INDEX(J$106:J$115,MATCH('RFPR cover'!$C$5,Data!$B$106:$B$115,0),0),0) -> 1
E54: ED | F54: £m 12/13 | G54: Totex | J54: n/a
E55: ET | F55: £m 09/10 | G55: Totex | J55: n/a
E56: GD | F56: £m 09/10 | G56: Totex excluding repex | J56: Repex
E57: GT | F57: £m 09/10 | G57: Totex (non-'uncertainty rate') | J57: Uncertainty rate
B61: Allowed cost of debt %
C62: 2014 | D62: =C62+1 -> 2015 | E62: 2016 | F62: 2017 | G62: 2018 | H62: 2019 | I62: 2020 | J62: 2021 | K62: 2022 | L62: 2023
B63: WPD | E63: 0.0255 | F63: 0.0238 | G63: 0.0222 | H63: 0.0191 | I63: 0.0158 | J63: 0.0109 | K63: 0.0076 | L63: 0.0044
B64: ED - excluding WPD | E64: 0.0255 | F64: 0.0242 | G64: 0.0229 | H64: 0.0209 | I64: 0.0194 | J64: 0.0178 | K64: 0.0162 | L64: 0.0147
B65: SHET | C65: 0.0292 | D65: 0.025 | E65: 0.0215 | F65: 0.0179 | G65: 0.0151 | H65: 0.0116 | I65: 0.0102 | J65: 0.0076
B66: ET - excluding SHET | C66: 0.0292 | D66: 0.0272 | E66: 0.0255 | F66: 0.0238 | G66: 0.0222 | H66: 0.0191 | I66: 0.0158 | J66: 0.0109
B67: GD | C67: 0.0292 | D67: 0.0272 | E67: 0.0255 | F67: 0.0238 | G67: 0.0222 | H67: 0.0191 | I67: 0.0158 | J67: 0.0109
B68: GT | C68: 0.0292 | D68: 0.0272 | E68: 0.0255 | F68: 0.0238 | G68: 0.0222 | H68: 0.0191 | I68: 0.0158 | J68: 0.0109
C71: Allowed Cost of Equity | D71: TIM Incentive Strength | E71: Gearing | F71: Main Cap. Rate | G71: RIIO1 start date | H71: Price Basis | I71: Fast Tracked | J71: IQI pre or post tax | K71: Allowed cost of debt
A72: Sector | B72: Default | K72: 2014 | L72: =K72+1 -> 2015 | M72: 2016 | N72: 2017 | O72: 2018 | P72: 2019 | Q72: 2020 | R72: 2021 | S72: 2022 | T72: 2023
A73: ED | B73: ENWL | C73: 0.06 | D73: 0.5811 | E73: 0.65 | F73: 0.68 | G73: 2016 | H73: =VLOOKUP($A73,$E$54:$F$57,2,FALSE) -> £m 12/13 | I73: No | J73: Post | M73: =E$64 -> 0.0255 | N73: 0.0242 | O73: 0.0229 | P73: 0.0209 | Q73: 0.0194 | R73: 0.0178 | S73: 0.0162 | T73: 0.0147
A74: ED | B74: NPgN | C74: 0.06 | D74: 0.5584370346 | E74: 0.65 | F74: 0.7 | G74: 2016 | H74: £m 12/13 | I74: No | J74: Post | M74: 0.0255 | N74: 0.0242 | O74: 0.0229 | P74: 0.0209 | Q74: 0.0194 | R74: 0.0178 | S74: 0.0162 | T74: 0.0147
A75: ED | B75: NPgY | C75: 0.06 | D75: 0.5584370346 | E75: 0.65 | F75: 0.72 | G75: 2016 | H75: £m 12/13 | I75: No | J75: Post | M75: 0.0255 | N75: 0.0242 | O75: 0.0229 | P75: 0.0209 | Q75: 0.0194 | R75: 0.0178 | S75: 0.0162 | T75: 0.0147
A76: ED | B76: UKPN-EPN | C76: 0.06 | D76: 0.5328 | E76: 0.65 | F76: 0.68 | G76: 2016 | H76: £m 12/13 | I76: No | J76: Post | M76: 0.0255 | N76: 0.0242 | O76: 0.0229 | P76: 0.0209 | Q76: 0.0194 | R76: 0.0178 | S76: 0.0162 | T76: 0.0147
A77: ED | B77: UKPN-LPN | C77: 0.06 | D77: 0.5328 | E77: 0.65 | F77: 0.68 | G77: 2016 | H77: £m 12/13 | I77: No | J77: Post | M77: 0.0255 | N77: 0.0242 | O77: 0.0229 | P77: 0.0209 | Q77: 0.0194 | R77: 0.0178 | S77: 0.0162 | T77: 0.0147
A78: ED | B78: UKPN-SPN | C78: 0.06 | D78: 0.5328 | E78: 0.65 | F78: 0.68 | G78: 2016 | H78: £m 12/13 | I78: No | J78: Post | M78: 0.0255 | N78: 0.0242 | O78: 0.0229 | P78: 0.0209 | Q78: 0.0194 | R78: 0.0178 | S78: 0.0162 | T78: 0.0147
A79: ED | B79: SPD | C79: 0.06 | D79: 0.535 | E79: 0.65 | F79: 0.8 | G79: 2016 | H79: £m 12/13 | I79: No | J79: Post | M79: 0.0255 | N79: 0.0242 | O79: 0.0229 | P79: 0.0209 | Q79: 0.0194 | R79: 0.0178 | S79: 0.0162 | T79: 0.0147
A80: ED | B80: SPMW | C80: 0.06 | D80: 0.535 | E80: 0.65 | F80: 0.8 | G80: 2016 | H80: £m 12/13 | I80: No | J80: Post | M80: 0.0255 | N80: 0.0242 | O80: 0.0229 | P80: 0.0209 | Q80: 0.0194 | R80: 0.0178 | S80: 0.0162 | T80: 0.0147
A81: ED | B81: SSEH | C81: 0.06 | D81: 0.5647 | E81: 0.65 | F81: 0.62 | G81: 2016 | H81: £m 12/13 | I81: No | J81: Post | M81: 0.0255 | N81: 0.0242 | O81: 0.0229 | P81: 0.0209 | Q81: 0.0194 | R81: 0.0178 | S81: 0.0162 | T81: 0.0147
A82: ED | B82: SSES | C82: 0.06 | D82: 0.5647 | E82: 0.65 | F82: 0.7 | G82: 2016 | H82: £m 12/13 | I82: No | J82: Post | M82: 0.0255 | N82: 0.0242 | O82: 0.0229 | P82: 0.0209 | Q82: 0.0194 | R82: 0.0178 | S82: 0.0162 | T82: 0.0147
A83: ED | B83: WPD-EMID | C83: 0.064 | D83: 0.7 | E83: 0.65 | F83: 0.8 | G83: 2016 | H83: £m 12/13 | I83: Yes | J83: Pre | M83: =E$63 -> 0.0255 | N83: 0.0238 | O83: 0.0222 | P83: 0.0191 | Q83: 0.0158 | R83: 0.0109 | S83: 0.0076 | T83: 0.0044
A84: ED | B84: WPD-WMID | C84: 0.064 | D84: 0.7 | E84: 0.65 | F84: 0.8 | G84: 2016 | H84: £m 12/13 | I84: Yes | J84: Pre | M84: 0.0255 | N84: 0.0238 | O84: 0.0222 | P84: 0.0191 | Q84: 0.0158 | R84: 0.0109 | S84: 0.0076 | T84: 0.0044
A85: ED | B85: WPD-SWALES | C85: 0.064 | D85: 0.7 | E85: 0.65 | F85: 0.8 | G85: 2016 | H85: £m 12/13 | I85: Yes | J85: Pre | M85: 0.0255 | N85: 0.0238 | O85: 0.0222 | P85: 0.0191 | Q85: 0.0158 | R85: 0.0109 | S85: 0.0076 | T85: 0.0044
A86: ED | B86: WPD-SWEST | C86: 0.064 | D86: 0.7 | E86: 0.65 | F86: 0.8 | G86: 2016 | H86: £m 12/13 | I86: Yes | J86: Pre | M86: 0.0255 | N86: 0.0238 | O86: 0.0222 | P86: 0.0191 | Q86: 0.0158 | R86: 0.0109 | S86: 0.0076 | T86: 0.0044
A87: GD | B87: Cadent-EOE | C87: 0.067 | D87: 0.6304 | E87: 0.65 | F87: 0.2663450186 | G87: 2014 | H87: £m 09/10 | I87: No | J87: Pre | K87: =C$67 -> 0.0292 | L87: 0.0272 | M87: 0.0255 | N87: 0.0238 | O87: 0.0222 | P87: 0.0191 | Q87: 0.0158 | R87: 0.0109
A88: GD | B88: Cadent-London | C88: 0.067 | D88: 0.6304 | E88: 0.65 | F88: 0.2346933783 | G88: 2014 | H88: £m 09/10 | I88: No | J88: Pre | K88: 0.0292 | L88: 0.0272 | M88: 0.0255 | N88: 0.0238 | O88: 0.0222 | P88: 0.0191 | Q88: 0.0158 | R88: 0.0109
A89: GD | B89: Cadent-WM | C89: 0.067 | D89: 0.6304 | E89: 0.65 | F89: 0.2494622386 | G89: 2014 | H89: £m 09/10 | I89: No | J89: Pre | K89: 0.0292 | L89: 0.0272 | M89: 0.0255 | N89: 0.0238 | O89: 0.0222 | P89: 0.0191 | Q89: 0.0158 | R89: 0.0109
A90: GD | B90: Cadent-NW | C90: 0.067 | D90: 0.6304 | E90: 0.65 | F90: 0.2609535249 | G90: 2014 | H90: £m 09/10 | I90: No | J90: Pre | K90: 0.0292 | L90: 0.0272 | M90: 0.0255 | N90: 0.0238 | O90: 0.0222 | P90: 0.0191 | Q90: 0.0158 | R90: 0.0109
A91: GD | B91: NGN | C91: 0.067 | D91: 0.6398 | E91: 0.65 | F91: 0.3498441138 | G91: 2014 | H91: £m 09/10 | I91: No | J91: Pre | K91: 0.0292 | L91: 0.0272 | M91: 0.0255 | N91: 0.0238 | O91: 0.0222 | P91: 0.0191 | Q91: 0.0158 | R91: 0.0109
A92: GD | B92: SGN - Scotland | C92: 0.067 | D92: 0.6373 | E92: 0.65 | F92: 0.3512904966 | G92: 2014 | H92: £m 09/10 | I92: No | J92: Pre | K92: 0.0292 | L92: 0.0272 | M92: 0.0255 | N92: 0.0238 | O92: 0.0222 | P92: 0.0191 | Q92: 0.0158 | R92: 0.0109
A93: GD | B93: SGN - Southern | C93: 0.067 | D93: 0.6373 | E93: 0.65 | F93: 0.322308559 | G93: 2014 | H93: £m 09/10 | I93: No | J93: Pre | K93: 0.0292 | L93: 0.0272 | M93: 0.0255 | N93: 0.0238 | O93: 0.0222 | P93: 0.0191 | Q93: 0.0158 | R93: 0.0109
A94: GD | B94: WWU | C94: 0.067 | D94: 0.6317 | E94: 0.65 | F94: 0.3578190447 | G94: 2014 | H94: £m 09/10 | I94: No | J94: Pre | K94: 0.0292 | L94: 0.0272 | M94: 0.0255 | N94: 0.0238 | O94: 0.0222 | P94: 0.0191 | Q94: 0.0158 | R94: 0.0109
A95: GT | B95: NGGT (TO) | C95: 0.068 | D95: 0.4436 | E95: 0.625 | F95: 0.644 | G95: 2014 | H95: £m 09/10 | I95: No | J95: Pre | K95: =C$68 -> 0.0292 | L95: 0.0272 | M95: 0.0255 | N95: 0.0238 | O95: 0.0222 | P95: 0.0191 | Q95: 0.0158 | R95: 0.0109
A96: GT | B96: NGGT (SO) | C96: 0.068 | D96: 0.4436 | E96: 0.625 | F96: 0.374 | G96: 2014 | H96: £m 09/10 | I96: No | J96: Pre | K96: 0.0292 | L96: 0.0272 | M96: 0.0255 | N96: 0.0238 | O96: 0.0222 | P96: 0.0191 | Q96: 0.0158 | R96: 0.0109
A97: ET | B97: NGET (TO) | C97: 0.07 | D97: 0.4689 | E97: 0.6 | F97: 0.85 | G97: 2014 | H97: £m 09/10 | I97: No | J97: Pre | K97: =C$66 -> 0.0292 | L97: 0.0272 | M97: 0.0255 | N97: 0.0238 | O97: 0.0222 | P97: 0.0191 | Q97: 0.0158 | R97: 0.0109
A98: ET | B98: NGESO | C98: 0.07 | D98: 0.4689 | E98: 0.6 | F98: 0.279 | G98: 2014 | H98: =VLOOKUP($A98,$E$54:$F$57,2,FALSE) -> £m 09/10 | I98: No | J98: Pre | K98: 0.0292 | L98: 0.0272 | M98: 0.0255 | N98: 0.0238 | O98: 0.0222 | P98: 0.0191 | Q98: 0.0158 | R98: 0.0109
A99: ET | B99: SPT | C99: 0.07 | D99: 0.5 | E99: 0.55 | F99: 0.9 | G99: 2014 | H99: =VLOOKUP($A99,$E$54:$F$57,2,FALSE) -> £m 09/10 | I99: Yes | J99: Pre | K99: 0.0292 | L99: 0.0272 | M99: 0.0255 | N99: 0.0238 | O99: 0.0222 | P99: 0.0191 | Q99: 0.0158 | R99: 0.0109
A100: ET | B100: SHET | C100: 0.07 | D100: 0.5 | E100: 0.55 | F100: 0.9 | G100: 2014 | H100: =VLOOKUP($A100,$E$54:$F$57,2,FALSE) -> £m 09/10 | I100: Yes | J100: Pre | K100: =C$65 -> 0.0292 | L100: 0.025 | M100: 0.0215 | N100: 0.0179 | O100: 0.0151 | P100: 0.0116 | Q100: 0.0102 | R100: 0.0076
B104: GD: Capitalised share of repex / GT: Uncertainty Rate
C105: 2014 | D105: =C105+1 -> 2015 | E105: =D105+1 -> 2016 | F105: =E105+1 -> 2017 | G105: 2018 | H105: 2019 | I105: 2020 | J105: 2021
B106: Cadent-EOE | C106: 0.5 | D106: 0.5714285714 | E106: 0.6428571429 | F106: 0.7142857143 | G106: 0.7857142857 | H106: 0.8571428571 | I106: 0.9285714286 | J106: 1
B107: Cadent-London | C107: 0.5 | D107: 0.5714285714 | E107: 0.6428571429 | F107: 0.7142857143 | G107: 0.7857142857 | H107: 0.8571428571 | I107: 0.9285714286 | J107: 1
B108: Cadent-WM | C108: 0.5 | D108: 0.5714285714 | E108: 0.6428571429 | F108: 0.7142857143 | G108: 0.7857142857 | H108: 0.8571428571 | I108: 0.9285714286 | J108: 1
B109: Cadent-NW | C109: 0.5 | D109: 0.5714285714 | E109: 0.6428571429 | F109: 0.7142857143 | G109: 0.7857142857 | H109: 0.8571428571 | I109: 0.9285714286 | J109: 1
B110: NGN | C110: 0.5 | D110: 0.5714285714 | E110: 0.6428571429 | F110: 0.7142857143 | G110: 0.7857142857 | H110: 0.8571428571 | I110: 0.9285714286 | J110: 1
B111: SGN - Scotland | C111: 0.5 | D111: 0.5714285714 | E111: 0.6428571429 | F111: 0.7142857143 | G111: 0.7857142857 | H111: 0.8571428571 | I111: 0.9285714286 | J111: 1
B112: SGN - Southern | C112: 0.5 | D112: 0.5714285714 | E112: 0.6428571429 | F112: 0.7142857143 | G112: 0.7857142857 | H112: 0.8571428571 | I112: 0.9285714286 | J112: 1
B113: WWU | C113: 0.5 | D113: 0.5714285714 | E113: 0.6428571429 | F113: 0.7142857143 | G113: 0.7857142857 | H113: 0.8571428571 | I113: 0.9285714286 | J113: 1
B114: NGGT (TO) | C114: 0.9 | D114: 0.9 | E114: 0.9 | F114: 0.9 | G114: 0.9 | H114: 0.9 | I114: 0.9 | J114: 0.9
B115: NGGT (SO)
B118: IQI Additional Income | C118: 2014 | D118: =C118+1 -> 2015 | E118: 2016 | F118: 2017 | G118: 2018 | H118: 2019 | I118: 2020 | J118: 2021 | K118: 2022 | L118: 2023
B119: ENWL | E119: 1.557563216 | F119: 1.473414124 | G119: 1.46895889 | H119: 1.470720053 | I119: 1.467471626 | J119: 1.448620622 | K119: 1.495679833 | L119: 1.439714872
B120: NPgN | E120: -0.658717818 | F120: -0.6354377258 | G120: -0.5890786287 | H120: -0.5817818819 | I120: -0.5682391887 | J120: -0.5193317033 | K120: -0.4796266585 | L120: -0.4656874701
B121: NPgY | E121: -0.8662603628 | F121: -0.8101977378 | G121: -0.7891908424 | H121: -0.7906187307 | I121: -0.7443265341 | J121: -0.7069727482 | K121: -0.6535094616 | L121: -0.6642975889
B122: UKPN-EPN | E122: -3.261213418 | F122: -3.346255445 | G122: -3.173291977 | H122: -3.123240475 | I122: -3.076755131 | J122: -2.934217718 | K122: -2.882593848 | L122: -2.7237011
B123: UKPN-LPN | E123: -2.426097237 | F123: -2.369038366 | G123: -2.24332766 | H123: -2.146602062 | I123: -2.174009679 | J123: -2.053892784 | K123: -1.904458123 | L123: -1.800861113
B124: UKPN-SPN | E124: -2.186101241 | F124: -2.382044743 | G124: -2.241867237 | H124: -2.114781265 | I124: -2.014617709 | J124: -1.942131326 | K124: -1.924885643 | L124: -1.84644513
B125: SPD | E125: -1.863353254 | F125: -1.818298041 | G125: -1.839467563 | H125: -1.741597343 | I125: -1.679800211 | J125: -1.597445636 | K125: -1.501639612 | L125: -1.445363888
B126: SPMW | E126: -2.131714527 | F126: -2.193973633 | G126: -1.986901022 | H126: -1.803755278 | I126: -1.77679425 | J126: -1.790147258 | K126: -1.644411369 | L126: -1.467384504
B127: SSEH | E127: 0.1659972181 | F127: 0.1663190061 | G127: 0.165543379 | H127: 0.1656974114 | I127: 0.1662263076 | J127: 0.1638030241 | K127: 0.1659334462 | L127: 0.1603668882
B128: SSES | E128: 0.3648271976 | F128: 0.3710908384 | G128: 0.3607185911 | H128: 0.3592781484 | I128: 0.3227419488 | J128: 0.3213907553 | K128: 0.3287617841 | L128: 0.3192043079
B129: WPD-EMID | E129: 7.128119675 | F129: 6.96741384 | G129: 6.203402589 | H129: 6.308597892 | I129: 6.23766484 | J129: 6.486581994 | K129: 6.815251662 | L129: 6.62710562
B130: WPD-WMID | E130: 6.507901473 | F130: 6.516616741 | G130: 6.32924565 | H130: 6.440739741 | I130: 6.636733199 | J130: 6.756816376 | K130: 6.696123445 | L130: 6.764742755
B131: WPD-SWALES | E131: 3.676313847 | F131: 3.674835087 | G131: 3.499852964 | H131: 3.724685547 | I131: 3.412173949 | J131: 3.420224103 | K131: 3.305354944 | L131: 3.363328564
B132: WPD-SWEST | E132: 5.376270196 | F132: 5.377596976 | G132: 5.26181028 | H132: 5.360849181 | I132: 5.266523823 | J132: 5.327117903 | K132: 5.322329401 | L132: 5.569988075
B133: Cadent-EOE | C133: 1.437155607 | D133: 1.371801563 | E133: 1.350766011 | F133: 1.356812199 | G133: 1.359813639 | H133: 1.350147507 | I133: 1.329843331 | J133: 1.317454096
B134: Cadent-London | C134: 1.222451077 | D134: 1.219815743 | E134: 1.294216483 | F134: 1.259639627 | G134: 1.284011218 | H134: 1.267851186 | I134: 1.259201906 | J134: 1.257376659
B135: Cadent-WM | C135: 0.8232500229 | D135: 0.8266357128 | E135: 0.796405046 | F135: 0.7875702145 | G135: 0.8113325286 | H135: 0.8106422878 | I135: 0.8090036895 | J135: 0.7804327697
B136: Cadent-NW | C136: 1.089395985 | D136: 1.027913195 | E136: 1.006698714 | F136: 1.01923509 | G136: 1.034148078 | H136: 1.020424079 | I136: 1.013773955 | J136: 0.9898055017
B137: NGN | C137: 3.067525014 | D137: 3.162921942 | E137: 3.215660422 | F137: 3.177353462 | G137: 2.992526777 | H137: 2.995397899 | I137: 3.008780646 | J137: 3.003553035
B138: SGN - Scotland | C138: 2.124089736 | D138: 2.035072334 | E138: 1.968699807 | F138: 2.085845677 | G138: 2.11503932 | H138: 2.096040782 | I138: 1.970964889 | J138: 1.955823727
B139: SGN - Southern | C139: 4.372401175 | D139: 4.105764166 | E139: 4.054566993 | F139: 4.174092746 | G139: 4.239710198 | H139: 4.246147721 | I139: 4.107852308 | J139: 4.057594497
B140: WWU | C140: 1.398277667 | D140: 1.386464987 | E140: 1.367304053 | F140: 1.349345378 | G140: 1.334777786 | H140: 1.335488711 | I140: 1.359779966 | J140: 1.351524007
B141: NGGT (TO) | C141: -1.129571821 | D141: -1.144400731 | E141: -1.176381736 | F141: -1.592755746 | G141: -1.85656676 | H141: -1.272041674 | I141: -1.103973995 | J141: -1.018311327
B142: NGGT (SO) | C142: -0.4318115499 | D142: -0.39947196 | E142: -0.3473431704 | F142: -0.3193206525 | G142: -0.3126562688 | H142: -0.3079937995 | I142: -0.3257092292 | J142: -0.3155202622
B143: NGET (TO) | C143: 15.16824629 | D143: 16.27511001 | E143: 15.6147029 | F143: 14.91167436 | G143: 13.03341576 | H143: 12.55606777 | I143: 11.28510091 | J143: 9.826817942
B144: NGET (SO) | C144: 0.9321939458 | D144: 0.899697931 | E144: 0.8778326769 | F144: 0.8723210932 | G144: 0.8987595857 | H144: 0.8280171022 | I144: 0.8841765856 | J144: 0.8998241565
B145: SPT | C145: 10.95275109 | D145: 1.34126836 | E145: 22.19017941 | F145: 7.048848325 | G145: 6.902069569 | H145: 6.942523809 | I145: 7.078506978 | J145: 5.26885245
B146: SHET | C146: 4.785055606 | D146: 4.973659719 | E146: 5.69886625 | F146: 3.792107731 | G146: 2.85125638 | H146: 2.879976525 | I146: 2.907470351 | J146: 2.819107438
B149: =LEFT('RFPR cover'!C6,2) -> GD
B150: Output incentives for each sector used to populate R5
B152: Input for R5 - Output Incentives | E152: =OR((LEFT('RFPR cover'!$C$6,2)=Data!F152),'RFPR cover'!$C$5=Data!F152) -> FALSE | F152: =B162 -> ED
B153: =CHOOSE(MATCH(TRUE,$E$152:$E$159,0),B163,B173,B183,E183,B193,E193,B203,E203)&"" -> Broad Measure of Customer Satisfaction | E153: =OR((LEFT('RFPR cover'!$C$6,2)=Data!F153),'RFPR cover'!$C$5=Data!F153) -> TRUE | F153: =B172 -> GD
B154: =CHOOSE(MATCH(TRUE,$E$152:$E$159,0),B164,B174,B184,E184,B194,E194,B204,E204)&"" -> Shrinkage Allowance Revenue Adjustment | E154: =OR((LEFT('RFPR cover'!$C$6,2)=Data!F154),'RFPR cover'!$C$5=Data!F154) -> FALSE | F154: =B182 -> NGGT (TO)
B155: Environment Emissions Incentive | E155: =OR((LEFT('RFPR cover'!$C$6,2)=Data!F155),'RFPR cover'!$C$5=Data!F155) -> FALSE | F155: =E182 -> NGGT (SO)
B156: Discretionary Reward Scheme | E156: =OR((LEFT('RFPR cover'!$C$6,2)=Data!F156),'RFPR cover'!$C$5=Data!F156) -> FALSE | F156: =B192 -> NGET (TO)
B157: NTS Exit Capacity | E157: =OR((LEFT('RFPR cover'!$C$6,2)=Data!F157),'RFPR cover'!$C$5=Data!F157) -> FALSE | F157: =E192 -> NGESO
E158: =OR((LEFT('RFPR cover'!$C$6,2)=Data!F158),'RFPR cover'!$C$5=Data!F158) -> FALSE | F158: =B202 -> SPT
E159: =OR((LEFT('RFPR cover'!$C$6,2)=Data!F159),'RFPR cover'!$C$5=Data!F159) -> FALSE | F159: =E202 -> SHET
B162: ED
B163: Broad measure of customer service
B164: Interruptions-related quality of service
B165: Incentive on connections engagement
B166: Time to Connect Incentive
B167: Losses discretionary reward scheme
B172: GD
B173: Broad Measure of Customer Satisfaction
B174: Shrinkage Allowance Revenue Adjustment
B175: Environment Emissions Incentive
B176: Discretionary Reward Scheme
B177: NTS Exit Capacity
B182: =B95 -> NGGT (TO) | E182: =B96 -> NGGT (SO)
B183: Stakeholder Satisfaction Output | E183: Constraint management | F183: Constraint management | G183: Constraint management | H183: Constraint management | I183: Constraint management
B184: Permits revenue adjustment | E184: Transportation Support Services | F184: Transportation Support Services | G184: Transportation Support Services | H184: Transportation Support Services | I184: Transportation Support Services
E185: Shrinkage incentive | F185: Shrinkage incentive | G185: Shrinkage incentive | H185: Shrinkage incentive | I185: Shrinkage incentive
E186: Residual balancing | F186: Residual balancing | G186: Residual balancing | H186: Residual balancing | I186: Residual balancing
E187: Quality of demand forecasting | F187: Quality of demand forecasting | G187: Quality of demand forecasting | H187: Quality of demand forecasting | I187: Quality of demand forecasting
E188: Greenhouse gas incentive | F188: Greenhouse gas incentive | G188: Greenhouse gas incentive | H188: Greenhouse gas incentive | I188: Greenhouse gas incentive
E189: Maintenance incentive | F189: Maintenance incentive | G189: Maintenance incentive | H189: Maintenance incentive | I189: Maintenance incentive
B192: =B97 -> NGET (TO) | E192: =B98 -> NGESO
B193: Network Reliability Incentive | E193: Electricity Market Reform incentive revenue | F193: Electricity Market Reform incentive revenue | G193: Electricity Market Reform incentive revenue | H193: Electricity Market Reform incentive revenue | I193: Electricity Market Reform incentive revenue
B194: Stakeholder Satisfaction Output | E194: Balancing Services Incentive Scheme / ESO Incentive Scheme 18/19 | F194: Balancing Services Incentive Scheme / ESO Incentive Scheme 18/19 | G194: Balancing Services Incentive Scheme / ESO Incentive Scheme 18/19 | H194: Balancing Services Incentive Scheme / ESO Incentive Scheme 18/19 | I194: Balancing Services Incentive Scheme / ESO Incentive Scheme 18/19
B195: SF6 Emissions | E195: Renewable wind forecasting incentive | F195: Renewable wind forecasting incentive | G195: Renewable wind forecasting incentive | H195: Renewable wind forecasting incentive | I195: Renewable wind forecasting incentive
B196: Environmental Discretionary Reward | E196: ESO Reporting and Incentive (ESORI)
B202: =B145 -> SPT | E202: =B100 -> SHET
B203: Network Reliability Incentive | E203: Network Reliability Incentive
B204: Stakeholder Satisfaction Output | E204: Stakeholder Satisfaction Output
B205: SF6 Emissions | E205: SF6 Emissions
B206: Environmental Discretionary Reward | E206: Environmental Discretionary Reward
B207: Performance re offers of timely connection | E207: Performance re offers of timely connection
B212: All incentive performance recognised in t+2 allowed revenue - except TTC (t+3) and LDR (t+1) in ED
B214: Time to Connect Incentive revenue adjustment | C214: t+3
B215: Losses discretionary reward scheme revenue adjustment | C215: t+1
B218: Bond or loan types
B219: Fixed rate
B220: Floating
B221: Inflation-linked
B224: Reference rate
B225: Not applicable
B226: LIBOR 3 month
B227: LIBOR 6 month
B228: EURIBOR 3 month
B229: BOE base rate
B230: RPI 12 month
B231: CPI 12 month
B235: Currency
B236: GBP
B237: EUR
B238: USD
B239: HKD
B240: CAD
B243: Rank
B244: Senior
B245: Junior
B248: Hedged
B249: Yes - fully hedged
B250: Yes - partially hedged
B251: No
B253: Special features
B254: Callable
B255: Puttable
B259: Counterparty
B260: EIB
... 4 more rows

Sheet Content & Version Control
A1: Version control
A2: ='RFPR cover'!C5 -> Cadent-London
A3: ='RFPR cover'!C7 -> 2021
B6: Version:
B8: Submission | C8: Date submitted | D8: Changes
B9: Submission 1
B10: Submission 2
B11: Submission 3
B12: Submission 4
B13: Submission 5
B14: Submission 6
B15: Submission 7
B16: Submission 8
B17: Submission 9
B18: Submission 10
B21: R1 - RoRE
B22: R2 - Revenue
B23: R3 - Rec to totex
B24: R4 - Totex
B25: R5 - Output Incentives
B26: R6 - Innovation
B27: R7 - Financing
B28: R7a - Financing input
B29: R8 - Net Debt
B30: R8a - Net Debt input
B31: R9 - RAV
B32: R10 - Tax
B33: R11 - Dividends
B34: R12 - Pensions
B35: R13 - Other Activities

Sheet Change log
A1: Change log
A2: ='RFPR cover'!C5 -> Cadent-London
A3: ='RFPR cover'!C7 -> 2021
A5: Version | B5: Table Reference | C5: Changes made to RFPR template
A6: 1.1 | B6: R8 | C6: Row 26 added to pick up unamortised issues costs row in table R8a.
A7: 1.1 | B7: R8 | C7: Row 42 updated to include new row 26 (unamortised issue costs) in the subtotal
A8: 1.1 | B8: R1 | C8: Amended formating to percentages (Column M:N, rows 10-23 and rows 29-42)
A9: 1.1 | B9: R7 | C9: B29 to add "Net Interest" into the title to make it clear that this should include regulatory definition of net interest associated with new/refinanced debt raised in future years
A10: 1.1 | B10: R7 | C10: Row 47 added to allow input of issuance expenses forecast for new/refinanced debt in future years
A11: 1.1 | B11: R8a | C11: Additional row added for restricted cash balances in table R8a in row 18, guidance updated.
A12: 1.1 | B12: R7 | C12: D37 - formula amended to read =('R8 - Net Debt'!D54-AVERAGE('R8 - Net Debt'!D8,('R8 - Net Debt'!E10-'R8a - Net Debt input'!T18)))*(Data!C36-1)
A13: 1.1 | B13: R7 | C13: E37 - formula amended to read =('R8 - Net Debt'!E54-AVERAGE(('R8 - Net Debt'!E8-'R8a - Net Debt input'!T18),('R8 - Net Debt'!E10-'R8a - Net Debt input'!U18)))*(Data!D36-1) Formula copied across to F37:K37
A14: 1.1 | B14: R10 | C14: Amended formula in D50 to read =D85-D87, and dragged formula across to E5:K5
A15: 1.1 | B15: R1 | C15: Amended formula in B3 to correct spelling of system, originally spelt 'syestem'
A16: 1.1 | B16: R9 | C16: Formula in row 32 changed from =IF(D5="Actuals",IF(D31>=0,(D29-SUM($D$31:D31))-D11<'RFPR cover'!$F$14,(D29-SUM($D$31:D31))-D11<'RFPR cover'!$F$14), "NA") to =IF(D5="Actuals",IF(ABS((D29-SUM($D$31:D31))-D11)<'RFPR cover'!$F$14,"TRUE","FALSE"),"NA")
A17: 1.1 | B17: R8a | C17: Removed content in F12 ("Income statement debits and cash out flows (entered as +ve values, credits as -ve values")
A18: 1.1 | B18: R8a | C18: Changed "Restricted cash balances (entered as +ve values, credits as -ve values)" in F18 to "Restricted cash balances (-ive)"
A19: 1.1 | B19: Data | C19: J63:J68 updated to be consistent with Nov 2019 PCFM
A20: 1.1 | B20: Data | C20: Populated the incentives for NGGT SO and NGET SO in the Data tab, based on the incentives in the 2019 RFPR template for both entities.
A21: 1.1 | B21: R7a | C21: Removed data validation between rows 498:509
A22: 1.1 | B22: R10 | C22: Added in "Tax arising from MOD values" in "Other adjustments" in R10
A23: 1.1 | B23: R10 | C23: Changed the formulas in row 6 from =IF(H6<=('RFPR cover'!$C$7),"Actuals","Forecast") to =IF(H6<=('RFPR cover'!$C$7-1),"Actuals","Forecast")
A24: 1.1 | B24: R9 | C24: Changed the formulas in row 5 from =IF(D6<='RFPR cover'!$C$7,"Actuals","Forecast") to =IF(D6<='RFPR cover'!$C$7-1,"Actuals","Forecast").
A25: 1.1 | B25: Data | C25: Changed the tax rate from G25:G30 to be in line with the 2020 Budget, where Government announced the corporate tax rate would be 19% for the years beginning April 2020 and 2021.
A26: 1.1 | B26: R10 | C26: Blocked out G36 as this will be actual information, not forecast.
A27: 1.1 | B27: Data | C27: Updated the cost of debt figures for 2022 and 2023 to match latest PCFM
A28: 1.1 | B28: Data | C28: Updated the cost of debt figures for 2022 and 2023 to match latest PCFM, M3 New Forecasts RPI for 2021, 2022 and 2023 and Financial Year Average RPI and Year end RPI in cells E24 and F24
A29: 2 | B29: Data | C29: Updated RPI Index for 2020 and 2021, M3 New Forecasts RPI for 2021, 2022 and 2023
A30: 2 | B30: Data | C30: Updated the cost of debt figures for 2021, 2022 and 2023
A31: 2 | B31: Data | C31: Row 196 - NGESO incentive added
A32: 2 | B32: R7 - Financing | C32: Cell D37 - formula has been corrected.
A33: 2 | B33: RFPR Cover | C33: Changed NGET(SO) to NGESO in the Drop down list
A34: 2.1 | B34: R10 - Tax | C34: Formula in cell E37 has been corrected
A35: 2.1 | B35: R7 - Financing | C35: Cell M30 -formula has been removed.

Sheet R1 - RoRE
A1: R1 - Return on Regulatory Equity (RoRE)
A2: ='RFPR cover'!C5 -> Cadent-London
A3: ='RFPR cover'!C7 -> 2021 | B3: =IF('RFPR cover'!C5=Data!B98,"Not required to be completed for System Operator",(IF('RFPR cover'!C5=Data!B96,"Not required to be completed for System Operator",""))) -> 
D5: =IF(D6<='RFPR cover'!$C$7,"Actuals","Forecast") -> Actuals | E5: =IF(E6<='RFPR cover'!$C$7,"Actuals","Forecast") -> Actuals | F5: =IF(F6<='RFPR cover'!$C$7,"Actuals","Forecast") -> Actuals | G5: =IF(G6<='RFPR cover'!$C$7,"Actuals","Forecast") -> Actuals | H5: =IF(H6<='RFPR cover'!$C$7,"Actuals","Forecast") -> Actuals | I5: =IF(I6<='RFPR cover'!$C$7,"Actuals","Forecast") -> Actuals | J5: =IF(J6<='RFPR cover'!$C$7,"Actuals","Forecast") -> Actuals | K5: =IF(K6<='RFPR cover'!$C$7,"Actuals","Forecast") -> Actuals
D6: ='RFPR cover'!$C$13 -> 2014 | E6: =D6+1 -> 2015 | F6: =E6+1 -> 2016 | G6: 2017 | H6: 2018 | I6: 2019 | J6: 2020 | K6: 2021 | M6: ="Cumulative to "&'RFPR cover'!$C$7 -> Cumulative to 2021 | N6: RIIO-1 period
B8: RoRE based on Notional Gearing
B10: Allowed Equity Return | C10: % | D10: =D48/D$65 -> 0.067 | E10: 0.067 | F10: 0.067 | G10: 0.067 | H10: 0.067 | I10: 0.067 | J10: 0.067 | K10: 0.067 | M10: =AVERAGE(D48:INDEX(D48:K48,0,MATCH('RFPR cover'!$C$7,$D$6:$K$6,0)))/AVERAGE($D$65:INDEX($D$65:$K$65,0,MATCH('RFPR cover'!$C$7,$D$6:$K$6,0))) -> 0.067 | N10: =AVERAGE(D48:K48)/AVERAGE($D$65:$K$65) -> 0.067
B11: =B49 -> Totex outperformance | C11: % | D11: 0.03542270656 | E11: 0.04926232774 | F11: 0.03382111105 | G11: 0.04287435203 | H11: 0.04157290407 | I11: 0.01573489242 | J11: 0.002883039554 | K11: -0.03900046853 | M11: =AVERAGE(D49:INDEX(D49:K49,0,MATCH('RFPR cover'!$C$7,$D$6:$K$6,0)))/AVERAGE($D$65:INDEX($D$65:$K$65,0,MATCH('RFPR cover'!$C$7,$D$6:$K$6,0))) -> 0.02174849387 | N11: =AVERAGE(D49:K49)/AVERAGE($D$65:$K$65) -> 0.02174849387
B12: IQI Reward | C12: % | D12: 0.001670700135 | E12: 0.001707300565 | F12: 0.001820794434 | G12: 0.001746835999 | H12: 0.001770126928 | I12: 0.001706442272 | J12: 0.001646206708 | K12: 0.001601799658 | M12: =AVERAGE(D50:INDEX(D50:K50,0,MATCH('RFPR cover'!$C$7,$D$6:$K$6,0)))/AVERAGE($D$65:INDEX($D$65:$K$65,0,MATCH('RFPR cover'!$C$7,$D$6:$K$6,0))) -> 0.00170691637 | N12: 0.00170691637
B13: Broad Measure of Customer Satisfaction | C13: % | D13: 0.0006171697261 | E13: 0.0001192387553 | F13: 0.001361896314 | G13: 0.001269117527 | H13: 0.00120341697 | I13: 0.001490011311 | J13: 0.002558489534 | K13: 0.002902521135 | M13: =AVERAGE(D51:INDEX(D51:K51,0,MATCH('RFPR cover'!$C$7,$D$6:$K$6,0)))/AVERAGE($D$65:INDEX($D$65:$K$65,0,MATCH('RFPR cover'!$C$7,$D$6:$K$6,0))) -> 0.001474322907 | N13: 0.001474322907
B14: Shrinkage Allowance Revenue Adjustment | C14: % | D14: 0.0007037621687 | E14: 0.0004898082882 | F14: 0.0003550577475 | G14: 0.0002913168135 | H14: 0.000450010146 | I14: 0.0007807230899 | J14: 0.0004272519151 | K14: 0.0004056106922 | M14: =AVERAGE(D52:INDEX(D52:K52,0,MATCH('RFPR cover'!$C$7,$D$6:$K$6,0)))/AVERAGE($D$65:INDEX($D$65:$K$65,0,MATCH('RFPR cover'!$C$7,$D$6:$K$6,0))) -> 0.000487437111 | N14: 0.000487437111
B15: Environment Emissions Incentive | C15: % | D15: 0.002215403409 | E15: 0.002154761548 | F15: 0.002016635762 | G15: 0.001754424946 | H15: 0.002358552665 | I15: 0.00331531022 | J15: 0.003702330143 | K15: 0.00388299327 | M15: =AVERAGE(D53:INDEX(D53:K53,0,MATCH('RFPR cover'!$C$7,$D$6:$K$6,0)))/AVERAGE($D$65:INDEX($D$65:$K$65,0,MATCH('RFPR cover'!$C$7,$D$6:$K$6,0))) -> 0.002705943919 | N15: 0.002705943919
B16: Discretionary Reward Scheme | C16: % | D16: 6.615002732e-05 | E16: 6.603016637e-05 | F16: 4.212709244e-05 | G16: 4.152535115e-05 | H16: 4.077068928e-05 | I16: 0 | J16: 0 | K16: 0 | M16: =AVERAGE(D54:INDEX(D54:K54,0,MATCH('RFPR cover'!$C$7,$D$6:$K$6,0)))/AVERAGE($D$65:INDEX($D$65:$K$65,0,MATCH('RFPR cover'!$C$7,$D$6:$K$6,0))) -> 3.103010173e-05 | N16: 3.103010173e-05
B17: NTS Exit Capacity | C17: % | D17: 0.001586741204 | E17: 0.001775331783 | F17: 0.006304353167 | G17: 0.004540501202 | H17: 0.004319937435 | I17: 0.004140173879 | J17: 0.003176199725 | K17: 0.002315063536 | M17: =AVERAGE(D55:INDEX(D55:K55,0,MATCH('RFPR cover'!$C$7,$D$6:$K$6,0)))/AVERAGE($D$65:INDEX($D$65:$K$65,0,MATCH('RFPR cover'!$C$7,$D$6:$K$6,0))) -> 0.003511971897 | N17: 0.003511971897
B18: Network Innovation | C18: % | D18: -9.888912958e-05 | E18: -0.0002371491136 | F18: -0.0003553702372 | G18: -0.0004037945787 | H18: -0.0003238791072 | I18: -0.0002082149686 | J18: -0.0003268390623 | K18: -0.0002710489207 | M18: =AVERAGE(D56:INDEX(D56:K56,0,MATCH('RFPR cover'!$C$7,$D$6:$K$6,0)))/AVERAGE($D$65:INDEX($D$65:$K$65,0,MATCH('RFPR cover'!$C$7,$D$6:$K$6,0))) -> -0.0002787190406 | N18: -0.0002787190406
B19: =B57 -> Penalties and fines | C19: % | D19: -0.001760805014 | E19: -0.002154236798 | F19: -0.00196042282 | G19: -0.001478491083 | H19: -0.001851666217 | I19: -0.01215425608 | J19: -0.003265944463 | K19: -0.001214874201 | M19: =AVERAGE(D57:INDEX(D57:K57,0,MATCH('RFPR cover'!$C$7,$D$6:$K$6,0)))/AVERAGE($D$65:INDEX($D$65:$K$65,0,MATCH('RFPR cover'!$C$7,$D$6:$K$6,0))) -> -0.003258525264 | N19: -0.003258525264
B20: =B58 -> RoRE - Operational performance | C20: % | D20: =SUM(D10:D19) -> 0.1074229391 | E20: 0.1201834129 | F20: 0.1104061825 | G20: 0.1176357882 | H20: 0.1165401736 | I20: 0.08180508214 | J20: 0.07780073405 | K20: 0.03762159664 | M20: =SUM(M10:M19) -> 0.09512887187 | N20: =SUM(N10:N19) -> 0.09512887187
B21: =B59 -> Debt performance - at notional gearing | C21: % | D21: =(D59)/D$65 -> 0.02635511764 | E21: =(E59)/E$65 -> -0.009809308548 | F21: 0.007597082183 | G21: 0.0217577915 | H21: 0.05809347019 | I21: 0.04338214705 | J21: 0.02407910928 | K21: -0.0002264739961 | M21: =AVERAGE(D59:INDEX(D59:K59,0,MATCH('RFPR cover'!$C$7,$D$6:$K$6,0)))/AVERAGE($D$65:INDEX($D$65:$K$65,0,MATCH('RFPR cover'!$C$7,$D$6:$K$6,0))) -> 0.02144906893 | N21: =AVERAGE(D59:K59)/AVERAGE($D$65:$K$65) -> 0.02144906893
B22: =B61 -> Tax performance - at notional gearing | C22: % | D22: =(D61)/D$65 -> -0.002721328601 | E22: =(E61)/E$65 -> -0.005825934694 | F22: -0.006365616362 | G22: -0.003813464326 | H22: -0.0004334842745 | I22: 0.00305738404 | J22: 0.001920118822 | K22: 0.001653604082 | M22: =AVERAGE(D61:INDEX(D61:K61,0,MATCH('RFPR cover'!$C$7,$D$6:$K$6,0)))/AVERAGE($D$65:INDEX($D$65:$K$65,0,MATCH('RFPR cover'!$C$7,$D$6:$K$6,0))) -> -0.001444393338 | N22: =AVERAGE(D61:K61)/AVERAGE($D$65:$K$65) -> -0.001444393338
B23: =B63 -> RoRE - including financing and tax | C23: % | D23: =SUM(D20:D22) -> 0.1310567281 | E23: =SUM(E20:E22) -> 0.1045481697 | F23: 0.1116376483 | G23: 0.1355801154 | H23: 0.1742001595 | I23: 0.1282446132 | J23: 0.1037999622 | K23: 0.03904872673 | M23: =SUM(M20:M22) -> 0.1151335475 | N23: =SUM(N20:N22) -> 0.1151335475
B27: RoRE based on Actual Gearing
B29: Allowed Equity Return | C29: % | D29: =D48/D$66 -> 0.05116146814 | E29: 0.05620267691 | F29: 0.05356105196 | G29: 0.05778042106 | H29: 0.06338414783 | I29: 0.06266263266 | J29: 0.06311864736 | K29: 0.06262395897 | M29: =AVERAGE(D48:INDEX(D48:K48,0,MATCH('RFPR cover'!$C$7,$D$6:$K$6,0)))/AVERAGE($D$66:INDEX($D$66:$K$66,0,MATCH('RFPR cover'!$C$7,$D$6:$K$6,0))) -> 0.05861125386 | N29: =AVERAGE(D48:K48)/AVERAGE($D$66:$K$66) -> 0.05861125386
B30: =B49 -> Totex outperformance | C30: % | D30: 0.02704892049 | E30: 0.04132350283 | F30: 0.02703722815 | G30: 0.0369745987 | H30: 0.03932929996 | I30: 0.01471626543 | J30: 0.002716023238 | K30: -0.03645319016 | M30: =AVERAGE(D49:INDEX(D49:K49,0,MATCH('RFPR cover'!$C$7,$D$6:$K$6,0)))/AVERAGE($D$66:INDEX($D$66:$K$66,0,MATCH('RFPR cover'!$C$7,$D$6:$K$6,0))) -> 0.01902547008 | N30: =AVERAGE(D49:K49)/AVERAGE($D$66:$K$66) -> 0.01902547008
B31: IQI Reward | C31: % | D31: 0.001275753309 | E31: 0.00143216212 | F31: 0.001455577094 | G31: 0.001506461485 | H31: 0.00167459682 | I31: 0.001595972616 | J31: 0.001550840906 | K31: 0.001497179643 | M31: =AVERAGE(D50:INDEX(D50:K50,0,MATCH('RFPR cover'!$C$7,$D$6:$K$6,0)))/AVERAGE($D$66:INDEX($D$66:$K$66,0,MATCH('RFPR cover'!$C$7,$D$6:$K$6,0))) -> 0.001493201622 | N31: 0.001493201622
B32: Broad Measure of Customer Satisfaction | C32: % | D32: 0.0004712732728 | E32: 0.0001000229439 | F32: 0.001088725362 | G32: 0.001094479777 | H32: 0.001138471032 | I32: 0.001393552708 | J32: 0.002410274607 | K32: 0.002712945738 | M32: =AVERAGE(D51:INDEX(D51:K51,0,MATCH('RFPR cover'!$C$7,$D$6:$K$6,0)))/AVERAGE($D$66:INDEX($D$66:$K$66,0,MATCH('RFPR cover'!$C$7,$D$6:$K$6,0))) -> 0.001289730062 | N32: 0.001289730062
B33: Shrinkage Allowance Revenue Adjustment | C33: % | D33: 0.0005373956085 | E33: 0.0004108736861 | F33: 0.000283839798 | G33: 0.0002512299723 | H33: 0.0004257240242 | I33: 0.0007301815551 | J33: 0.0004025009398 | K33: 0.0003791186171 | M33: =AVERAGE(D52:INDEX(D52:K52,0,MATCH('RFPR cover'!$C$7,$D$6:$K$6,0)))/AVERAGE($D$66:INDEX($D$66:$K$66,0,MATCH('RFPR cover'!$C$7,$D$6:$K$6,0))) -> 0.0004264074665 | N33: 0.0004264074665
B34: Environment Emissions Incentive | C34: % | D34: 0.001691690909 | E34: 0.001807512942 | F34: 0.001612136311 | G34: 0.00151300615 | H34: 0.00223126643 | I34: 0.003100687559 | J34: 0.003487851801 | K34: 0.003629379272 | M34: =AVERAGE(D53:INDEX(D53:K53,0,MATCH('RFPR cover'!$C$7,$D$6:$K$6,0)))/AVERAGE($D$66:INDEX($D$66:$K$66,0,MATCH('RFPR cover'!$C$7,$D$6:$K$6,0))) -> 0.002367145761 | N34: 0.002367145761
B35: Discretionary Reward Scheme | C35: % | D35: 5.05124256e-05 | E35: 5.538913592e-05 | F35: 3.367718488e-05 | G35: 3.581122797e-05 | H35: 3.857037906e-05 | I35: 0 | J35: 0 | K35: 0 | M35: =AVERAGE(D54:INDEX(D54:K54,0,MATCH('RFPR cover'!$C$7,$D$6:$K$6,0)))/AVERAGE($D$66:INDEX($D$66:$K$66,0,MATCH('RFPR cover'!$C$7,$D$6:$K$6,0))) -> 2.714497268e-05 | N35: 2.714497268e-05
B36: NTS Exit Capacity | C36: % | D36: 0.001211641934 | E36: 0.00148922983 | F36: 0.005039817725 | G36: 0.003915702556 | H36: 0.004086799299 | I36: 0.003872152163 | J36: 0.002992200454 | K36: 0.002163857372 | M36: =AVERAGE(D55:INDEX(D55:K55,0,MATCH('RFPR cover'!$C$7,$D$6:$K$6,0)))/AVERAGE($D$66:INDEX($D$66:$K$66,0,MATCH('RFPR cover'!$C$7,$D$6:$K$6,0))) -> 0.003072254872 | N36: 0.003072254872
B37: Network Innovation | C37: % | D37: -7.551213512e-05 | E37: -0.0001989315673 | F37: -0.000284089608 | G37: -0.0003482301609 | H37: -0.0003064000181 | I37: -0.0001947357924 | J37: -0.0003079050674 | K37: -0.0002533456193 | M37: =AVERAGE(D56:INDEX(D56:K56,0,MATCH('RFPR cover'!$C$7,$D$6:$K$6,0)))/AVERAGE($D$66:INDEX($D$66:$K$66,0,MATCH('RFPR cover'!$C$7,$D$6:$K$6,0))) -> -0.0002438219768 | N37: -0.0002438219768
B38: =B57 -> Penalties and fines | C38: % | D38: -0.001344557755 | E38: -0.001807072757 | F38: -0.001567198635 | G38: -0.001275042348 | H38: -0.001751735601 | I38: -0.01136742812 | J38: -0.003076746222 | K38: -0.001135525853 | M38: =AVERAGE(D57:INDEX(D57:K57,0,MATCH('RFPR cover'!$C$7,$D$6:$K$6,0)))/AVERAGE($D$66:INDEX($D$66:$K$66,0,MATCH('RFPR cover'!$C$7,$D$6:$K$6,0))) -> -0.002850541066 | N38: -0.002850541066
B39: =B58 -> RoRE - Operational performance | C39: % | D39: =SUM(D29:D38) -> 0.0820285862 | E39: 0.1008153661 | F39: 0.08826076534 | G39: 0.1014484384 | H39: 0.1102507402 | I39: 0.07650928077 | J39: 0.07329368802 | K39: 0.03516437798 | M39: =SUM(M29:M38) -> 0.08321824565 | N39: =SUM(N29:N38) -> 0.08321824565
B40: Debt performance - at actual gearing | C40: % | D40: =(D59+D60)/D$66 -> 0.02231801133 | E40: =(E59+E60)/E$66 -> -0.004007456369 | F40: 0.008854841236 | G40: 0.01974816608 | H40: 0.05432476515 | I40: 0.04016069868 | J40: 0.02320545752 | K40: 0.000758292213 | M40: =(AVERAGE(D59:INDEX(D59:K59,0,MATCH('RFPR cover'!$C$7,$D$6:$K$6,0)))+AVERAGE(D60:INDEX(D60:K60,0,MATCH('RFPR cover'!$C$7,$D$6:$K$6,0))))/AVERAGE($D$66:INDEX($D$66:$K$66,0,MATCH('RFPR cover'!$C$7,$D$6:$K$6,0))) -> 0.0201427795 | N40: =(AVERAGE(D59:K59)+AVERAGE(D60:K60))/AVERAGE($D$66:$K$66) -> 0.0201427795
B41: Tax performance - at actual gearing | C41: % | D41: =(D61+D62)/D$66 -> -0.002078017411 | E41: =(E61+E62)/E$66 -> -0.004887061571 | F41: -0.005088792668 | G41: -0.003288710067 | H41: -0.0004100900199 | I41: 0.002859458701 | J41: 0.001808885117 | K41: 0.00154560051 | M41: =(AVERAGE(D61:INDEX(D61:K61,0,MATCH('RFPR cover'!$C$7,$D$6:$K$6,0)))+AVERAGE(D62:INDEX(D62:K62,0,MATCH('RFPR cover'!$C$7,$D$6:$K$6,0))))/AVERAGE($D$66:INDEX($D$66:$K$66,0,MATCH('RFPR cover'!$C$7,$D$6:$K$6,0))) -> -0.00126354783 | N41: =(AVERAGE(D61:K61)+AVERAGE(D62:K62))/AVERAGE($D$66:$K$66) -> -0.00126354783
B42: =B63 -> RoRE - including financing and tax | C42: % | D42: =SUM(D39:D41) -> 0.1022685801 | E42: =SUM(E39:E41) -> 0.09192084813 | F42: 0.09202681391 | G42: 0.1179078944 | H42: 0.1641654153 | I42: 0.1195294382 | J42: 0.09830803065 | K42: 0.0374682707 | M42: =SUM(M39:M41) -> 0.1020974773 | N42: =SUM(N39:N41) -> 0.1020974773
B45: RoRE input values
B46: ="Input values provided in "&'RFPR cover'!C14&" prices" -> Input values provided in £m 09/10 prices
B48: Equity Return on the RAV | C48: ='RFPR cover'!$C$14 -> £m 09/10 | D48: ='R9 - RAV'!D50 -> 37.74839646 | E48: ='R9 - RAV'!E50 -> 37.81691905 | F48: ='R9 - RAV'!F50 -> 38.09875633 | G48: ='R9 - RAV'!G50 -> 38.65084304 | H48: ='R9 - RAV'!H50 -> 39.36626674 | I48: ='R9 - RAV'!I50 -> 40.32148345 | J48: ='R9 - RAV'!J50 -> 41.5117294 | K48: ='R9 - RAV'!K50 -> 42.60072782 | M48: =SUM(D48:INDEX(D48:K48,0,MATCH('RFPR cover'!$C$7,$D$6:$K$6,0))) -> 316.1151223 | N48: =SUM(D48:K48) -> 316.1151223
B49: Totex outperformance | C49: ='RFPR cover'!$C$14 -> £m 09/10 | D49: ='R4 - Totex'!D35+'R4 - Totex'!D63 -> 19.95746822 | E49: ='R4 - Totex'!E35+'R4 - Totex'!E63 -> 27.80521583 | F49: ='R4 - Totex'!F35+'R4 - Totex'!F63 -> 19.23197416 | G49: ='R4 - Totex'!G35+'R4 - Totex'!G63 -> 24.73328136 | H49: ='R4 - Totex'!H35+'R4 - Totex'!H63 -> 24.42641837 | I49: ='R4 - Totex'!I35+'R4 - Totex'!I63 -> 9.469465738 | J49: ='R4 - Totex'!J35+'R4 - Totex'!J63 -> 1.786268027 | K49: ='R4 - Totex'!K35+'R4 - Totex'!K63 -> -24.79773649 | M49: =SUM(D49:INDEX(D49:K49,0,MATCH('RFPR cover'!$C$7,$D$6:$K$6,0))) -> 102.6123552 | N49: =SUM(D49:K49) -> 102.6123552
B50: IQI Reward | C50: ='RFPR cover'!$C$14 -> £m 09/10 | D50: ='R4 - Totex'!D79 -> 0.9412873291 | E50: ='R4 - Totex'!E79 -> 0.9636544369 | F50: ='R4 - Totex'!F79 -> 1.035373186 | G50: ='R4 - Totex'!G79 -> 1.007711702 | H50: ='R4 - Totex'!H79 -> 1.040049087 | I50: ='R4 - Totex'!I79 -> 1.02695946 | J50: ='R4 - Totex'!J79 -> 1.019953543 | K50: ='R4 - Totex'!K79 -> 1.018475093 | M50: =SUM(D50:INDEX(D50:K50,0,MATCH('RFPR cover'!$C$7,$D$6:$K$6,0))) -> 8.053463838 | N50: =SUM(D50:K50) -> 8.053463838
B51: ='R5 - Output Incentives'!B39 -> Broad Measure of Customer Satisfaction | C51: ='RFPR cover'!$C$14 -> £m 09/10 | D51: ='R5 - Output Incentives'!D39 -> 0.3477189179 | E51: ='R5 - Output Incentives'!E39 -> 0.06730212473 | F51: ='R5 - Output Incentives'!F39 -> 0.7744262062 | G51: ='R5 - Output Incentives'!G39 -> 0.7321263034 | H51: ='R5 - Output Incentives'!H39 -> 0.7070751262 | I51: ='R5 - Output Incentives'!I39 -> 0.8967084543 | J51: ='R5 - Output Incentives'!J39 -> 1.585183958 | K51: ='R5 - Output Incentives'!K39 -> 1.845515117 | M51: =SUM(D51:INDEX(D51:K51,0,MATCH('RFPR cover'!$C$7,$D$6:$K$6,0))) -> 6.956056208 | N51: 6.956056208
B52: ='R5 - Output Incentives'!B40 -> Shrinkage Allowance Revenue Adjustment | C52: ='RFPR cover'!$C$14 -> £m 09/10 | D52: ='R5 - Output Incentives'!D40 -> 0.396505871 | E52: ='R5 - Output Incentives'!E40 -> 0.2764632894 | F52: ='R5 - Output Incentives'!F40 -> 0.2018993822 | G52: ='R5 - Output Incentives'!G40 -> 0.1680543349 | H52: ='R5 - Output Incentives'!H40 -> 0.2644062603 | I52: ='R5 - Output Incentives'!I40 -> 0.46984945 | J52: ='R5 - Output Incentives'!J40 -> 0.2647159087 | K52: ='R5 - Output Incentives'!K40 -> 0.2579001597 | M52: =SUM(D52:INDEX(D52:K52,0,MATCH('RFPR cover'!$C$7,$D$6:$K$6,0))) -> 2.299794656 | N52: 2.299794656
B53: ='R5 - Output Incentives'!B41 -> Environment Emissions Incentive | C53: ='RFPR cover'!$C$14 -> £m 09/10 | D53: ='R5 - Output Incentives'!D41 -> 1.248178003 | E53: ='R5 - Output Incentives'!E41 -> 1.216215568 | F53: ='R5 - Output Incentives'!F41 -> 1.146736037 | G53: ='R5 - Output Incentives'!G41 -> 1.0120896 | H53: ='R5 - Output Incentives'!H41 -> 1.385782289 | I53: ='R5 - Output Incentives'!I41 -> 1.995197406 | J53: ='R5 - Output Incentives'!J41 -> 2.293882493 | K53: ='R5 - Output Incentives'!K41 -> 2.468930439 | M53: =SUM(D53:INDEX(D53:K53,0,MATCH('RFPR cover'!$C$7,$D$6:$K$6,0))) -> 12.76701183 | N53: 12.76701183
B54: ='R5 - Output Incentives'!B42 -> Discretionary Reward Scheme | C54: ='RFPR cover'!$C$14 -> £m 09/10 | D54: ='R5 - Output Incentives'!D42 -> 0.03726951428 | E54: ='R5 - Output Incentives'!E42 -> 0.03726951428 | F54: ='R5 - Output Incentives'!F42 -> 0.02395507208 | G54: ='R5 - Output Incentives'!G42 -> 0.02395507208 | H54: ='R5 - Output Incentives'!H42 -> 0.02395507208 | I54: ='R5 - Output Incentives'!I42 -> 0 | J54: ='R5 - Output Incentives'!J42 -> 0 | K54: ='R5 - Output Incentives'!K42 -> 0 | M54: =SUM(D54:INDEX(D54:K54,0,MATCH('RFPR cover'!$C$7,$D$6:$K$6,0))) -> 0.1464042448 | N54: 0.1464042448
B55: ='R5 - Output Incentives'!B43 -> NTS Exit Capacity | C55: ='RFPR cover'!$C$14 -> £m 09/10 | D55: ='R5 - Output Incentives'!D43 -> 0.89398412 | E55: ='R5 - Output Incentives'!E43 -> 1.002053408 | F55: ='R5 - Output Incentives'!F43 -> 3.584895748 | G55: ='R5 - Output Incentives'!G43 -> 2.619316408 | H55: ='R5 - Output Incentives'!H43 -> 2.53820611 | I55: ='R5 - Output Incentives'!I43 -> 2.491611232 | J55: ='R5 - Output Incentives'!J43 -> 1.967903635 | K55: ='R5 - Output Incentives'!K43 -> 1.471990919 | M55: =SUM(D55:INDEX(D55:K55,0,MATCH('RFPR cover'!$C$7,$D$6:$K$6,0))) -> 16.56996158 | N55: 16.56996158
B56: Network Innovation | C56: ='RFPR cover'!$C$14 -> £m 09/10 | D56: =-'R6 - Innovation'!D28 -> -0.05571501595 | E56: =-'R6 - Innovation'!E28 -> -0.1338544602 | F56: =-'R6 - Innovation'!F28 -> -0.2020770757 | G56: =-'R6 - Innovation'!G28 -> -0.2329403117 | H56: =-'R6 - Innovation'!H28 -> -0.190297184 | I56: =-'R6 - Innovation'!I28 -> -0.1253065136 | J56: =-'R6 - Innovation'!J28 -> -0.2025023091 | K56: =-'R6 - Innovation'!K28 -> -0.1723415119 | M56: =SUM(D56:INDEX(D56:K56,0,MATCH('RFPR cover'!$C$7,$D$6:$K$6,0))) -> -1.315034382 | N56: -1.315034382
B57: Penalties and fines | C57: ='RFPR cover'!$C$14 -> £m 09/10 | D57: =-'R13 - Other Activities'!D8 -> -0.99205322 | E57: =-'R13 - Other Activities'!E8 -> -1.215919382 | F57: =-'R13 - Other Activities'!F8 -> -1.114771214 | G57: =-'R13 - Other Activities'!G8 -> -0.852909355 | H57: =-'R13 - Other Activities'!H8 -> -1.087958003 | I57: =-'R13 - Other Activities'!I8 -> -7.314591576 | J57: =-'R13 - Other Activities'!J8 -> -2.023507504 | K57: =-'R13 - Other Activities'!K8 -> -0.7724555999 | M57: =SUM(D57:INDEX(D57:K57,0,MATCH('RFPR cover'!$C$7,$D$6:$K$6,0))) -> -15.37416585 | N57: -15.37416585
B58: RoRE - Operational performance | C58: ='RFPR cover'!$C$14 -> £m 09/10 | D58: =SUM(D48:D57) -> 60.5230402 | E58: 67.83531938 | F58: 62.78116783 | G58: 67.86152816 | H58: 68.47390387 | I58: 49.23137711 | J58: 48.20362715 | K58: 23.92100595 | M58: =SUM(M48:M57) -> 448.8309696 | N58: =SUM(N48:N57) -> 448.8309696
B59: Debt performance - at notional gearing | C59: ='RFPR cover'!$C$14 -> £m 09/10 | D59: ='R7 - Financing'!D90+'R10 - Tax'!D91 -> 14.8487079 | E59: ='R7 - Financing'!E90+'R10 - Tax'!E91 -> -5.53668399 | F59: ='R7 - Financing'!F90+'R10 - Tax'!F91 -> 4.31999079 | G59: ='R7 - Financing'!G90+'R10 - Tax'!G91 -> 12.55159678 | H59: ='R7 - Financing'!H90+'R10 - Tax'!H91 -> 34.13317975 | I59: ='R7 - Financing'!I90+'R10 - Tax'!I91 -> 26.10794813 | J59: ='R7 - Financing'!J90+'R10 - Tax'!J91 -> 14.91888759 | K59: ='R7 - Financing'!K90+'R10 - Tax'!K91 -> -0.1439993592 | M59: =SUM(D59:INDEX(D59:K59,0,MATCH('RFPR cover'!$C$7,$D$6:$K$6,0))) -> 101.1996276 | N59: =SUM(D59:K59) -> 101.1996276
B60: Debt performance - impact of actual gearing | C60: ='RFPR cover'!$C$14 -> £m 09/10 | D60: ='R7 - Financing'!D92+'R10 - Tax'!D92 -> 1.618160048 | E60: ='R7 - Financing'!E92+'R10 - Tax'!E92 -> 2.840199384 | F60: ='R7 - Financing'!F92+'R10 - Tax'!F92 -> 1.978586745 | G60: ='R7 - Financing'!G92+'R10 - Tax'!G92 -> 0.6584708107 | H60: ='R7 - Financing'!H92+'R10 - Tax'!H92 -> -0.3934629864 | I60: ='R7 - Financing'!I92+'R10 - Tax'!I92 -> -0.2657694838 | J60: ='R7 - Financing'!J92+'R10 - Tax'!J92 -> 0.3428252869 | K60: ='R7 - Financing'!K92+'R10 - Tax'!K92 -> 0.6598370787 | M60: =SUM(D60:INDEX(D60:K60,0,MATCH('RFPR cover'!$C$7,$D$6:$K$6,0))) -> 7.438846883 | N60: =SUM(D60:K60) -> 7.438846883
B61: Tax performance - at notional gearing | C61: ='RFPR cover'!$C$14 -> £m 09/10 | D61: ='R10 - Tax'!D84-'R10 - Tax'!D91 -> -1.53322076 | E61: ='R10 - Tax'!E84-'R10 - Tax'!E91 -> -3.288341802 | F61: ='R10 - Tax'!F84-'R10 - Tax'!F91 -> -3.619732338 | G61: ='R10 - Tax'!G84-'R10 - Tax'!G91 -> -2.199904644 | H61: ='R10 - Tax'!H84-'R10 - Tax'!H91 -> -0.2546963817 | I61: ='R10 - Tax'!I84-'R10 - Tax'!I91 -> 1.83997403 | J61: ='R10 - Tax'!J84-'R10 - Tax'!J91 -> 1.189663477 | K61: ='R10 - Tax'!K84-'R10 - Tax'!K91 -> 1.051413992 | M61: =SUM(D61:INDEX(D61:K61,0,MATCH('RFPR cover'!$C$7,$D$6:$K$6,0))) -> -6.814844428 | N61: =SUM(D61:K61) -> -6.814844428
B62: Tax performance - impact of actual gearing | C62: ='RFPR cover'!$C$14 -> £m 09/10 | D62: ='R10 - Tax'!D86-'R10 - Tax'!D92 -> 8.881784197e-16 | E62: ='R10 - Tax'!E86-'R10 - Tax'!E92 -> 0 | F62: ='R10 - Tax'!F86-'R10 - Tax'!F92 -> -8.881784197e-16 | G62: ='R10 - Tax'!G86-'R10 - Tax'!G92 -> 8.881784197e-16 | H62: ='R10 - Tax'!H86-'R10 - Tax'!H92 -> 2.664535259e-15 | I62: ='R10 - Tax'!I86-'R10 - Tax'!I92 -> -2.664535259e-15 | J62: ='R10 - Tax'!J86-'R10 - Tax'!J92 -> -8.881784197e-16 | K62: ='R10 - Tax'!K86-'R10 - Tax'!K92 -> -1.776356839e-15 | M62: =SUM(D62:INDEX(D62:K62,0,MATCH('RFPR cover'!$C$7,$D$6:$K$6,0))) -> -1.776356839e-15 | N62: =SUM(D62:K62) -> -1.776356839e-15
B63: RoRE - including financing and tax | C63: ='RFPR cover'!$C$14 -> £m 09/10 | D63: =SUM(D58:D62) -> 75.45668738 | E63: =SUM(E58:E62) -> 61.85049297 | F63: 65.46001302 | G63: 78.8716911 | H63: 101.9589242 | I63: 76.91352978 | J63: 64.6550035 | K63: 25.48825766 | M63: =SUM(M58:M62) -> 550.6545997 | N63: =SUM(N58:N62) -> 550.6545997
B65: NPV-neutral equity element of RAV | C65: ='RFPR cover'!$C$14 -> £m 09/10 | D65: ='R9 - RAV'!D46 -> 563.4089023 | E65: ='R9 - RAV'!E46 -> 564.4316277 | F65: ='R9 - RAV'!F46 -> 568.6381541 | G65: ='R9 - RAV'!G46 -> 576.8782544 | H65: ='R9 - RAV'!H46 -> 587.55622 | I65: ='R9 - RAV'!I46 -> 601.8131859 | J65: ='R9 - RAV'!J46 -> 619.5780507 | K65: ='R9 - RAV'!K46 -> 635.8317586
B66: Equity RAV based on actual gearing | C66: ='RFPR cover'!$C$14 -> £m 09/10 | D66: ='R8 - Net Debt'!D62 -> 737.8286399 | E66: ='R8 - Net Debt'!E62 -> 672.8668657 | F66: ='R8 - Net Debt'!F62 -> 711.3145641 | G66: ='R8 - Net Debt'!G62 -> 668.9262961 | H66: ='R8 - Net Debt'!H62 -> 621.0743236 | I66: ='R8 - Net Debt'!I62 -> 643.4693492 | J66: ='R8 - Net Debt'!J62 -> 657.6777408 | K66: ='R8 - Net Debt'!K62 -> 680.2624511

Sheet R2 - Revenue
A1: R2 - Revenue
A2: ='RFPR cover'!C5 -> Cadent-London
A3: ='RFPR cover'!C7 -> 2021
D5: =IF(D6<='RFPR cover'!$C$7,"Actuals","Forecast") -> Actuals | E5: =IF(E6<='RFPR cover'!$C$7,"Actuals","Forecast") -> Actuals | F5: =IF(F6<='RFPR cover'!$C$7,"Actuals","Forecast") -> Actuals | G5: =IF(G6<='RFPR cover'!$C$7,"Actuals","Forecast") -> Actuals | H5: =IF(H6<='RFPR cover'!$C$7,"Actuals","Forecast") -> Actuals | I5: =IF(I6<='RFPR cover'!$C$7,"Actuals","Forecast") -> Actuals | J5: =IF(J6<='RFPR cover'!$C$7,"Actuals","Forecast") -> Actuals | K5: =IF(K6<='RFPR cover'!$C$7,"Actuals","Forecast") -> Actuals
D6: ='RFPR cover'!$C$13 -> 2014 | E6: =D6+1 -> 2015 | F6: =E6+1 -> 2016 | G6: 2017 | H6: 2018 | I6: 2019 | J6: 2020 | K6: 2021
B8: Allowed Revenue - per latest submitted Revenue Return
B10: Opening Base Revenue Allowance | C10: ='RFPR cover'!$C$14 -> £m 09/10 | D10: 353.1 | E10: 346.4 | F10: 368.5 | G10: 358.9 | H10: 354 | I10: 353 | J10: 347.6 | K10: 347.2
B11: MOD | C11: ='RFPR cover'!$C$14 -> £m 09/10 | D11: 0 | E11: -2.8 | F11: -1.7 | G11: -4.5 | H11: -20.7 | I11: -23.9 | J11: -26.6 | K11: -31.9
B12: True Up | C12: ='RFPR cover'!$C$14 -> £m 09/10 | D12: 0 | E12: 0 | F12: 1.20747556 | G12: -4.8563477 | H12: -8.0213613 | I12: -1.40670517 | J12: 0.8800308845 | K12: -0.2667528
B13: Retail Price Index Forecast (RPIF term) | C13: Index | D13: 1.163016333 | E13: 1.205083814 | F13: 1.226652821 | G13: 1.232733287 | H13: 1.270922538 | I13: 1.314024254 | J13: 1.358588448 | K13: 1.379839549
B14: Nominal Base Revenue | C14: £m nominal | D14: =SUM(D10:D12)*D13 -> 410.6610672 | E14: =SUM(E10:E12)*E13 -> 414.0667986 | F14: 451.4174081 | G14: 430.8940956 | H14: 413.4039531 | I14: 430.5969374 | J14: 437.3024915 | K14: 434.6953338
B15: Incentive revenue adjustment | C15: £m nominal | D15: ='R5 - Output Incentives'!D102 -> 0.19089473 | E15: ='R5 - Output Incentives'!E102 -> 0.17473433 | F15: ='R5 - Output Incentives'!F102 -> 4.30339897 | G15: ='R5 - Output Incentives'!G102 -> 4.07822595 | H15: ='R5 - Output Incentives'!H102 -> 9.20445808 | I15: ='R5 - Output Incentives'!I102 -> 7.45912986 | J15: ='R5 - Output Incentives'!J102 -> 8.40451816 | K15: ='R5 - Output Incentives'!K102 -> 9.91480367
B16: Adjustments for Allowed Pass-Through items | C16: £m nominal | D16: 0.04079639 | E16: -0.09559037 | F16: -0.01068225 | G16: 0.6751505 | H16: 2.67130192 | I16: 2.86501322 | J16: 24.67266442 | K16: 25.35712587
B17: Network Innovation Allowance | C17: £m nominal | D17: ='R6 - Innovation'!D12 -> 0.53098115 | E17: ='R6 - Innovation'!E12 -> 1.43304676 | F17: ='R6 - Innovation'!F12 -> 1.78824525 | G17: ='R6 - Innovation'!G12 -> 1.42875 | H17: ='R6 - Innovation'!H12 -> 1.37073668 | I17: ='R6 - Innovation'!I12 -> 0.9066078837 | J17: ='R6 - Innovation'!J12 -> 1.13370598 | K17: ='R6 - Innovation'!K12 -> 1.458
B18: Low Carbon Networks Fund revenue adjustment | C18: £m nominal | D18: ='R6 - Innovation'!D17 -> 0 | E18: ='R6 - Innovation'!E17 -> 0 | F18: ='R6 - Innovation'!F17 -> 0 | G18: ='R6 - Innovation'!G17 -> 0 | H18: ='R6 - Innovation'!H17 -> 0 | I18: ='R6 - Innovation'!I17 -> 0 | J18: ='R6 - Innovation'!J17 -> 0 | K18: ='R6 - Innovation'!K17 -> 0
B19: NTS Exit Capacity Cost Adjustment | C19: £m nominal | D19: 0 | E19: 0 | F19: -1.63796533 | G19: -0.71153426 | H19: -2.01212017 | I19: -2.66382007 | J19: -2.54910451 | K19: -7.50406972
B20: Shrinkage Cost Adjustment | C20: £m nominal | D20: 0 | E20: 0 | F20: -0.95363287 | G20: -2.80817122 | H20: -3.70986696 | I20: -2.42619856 | J20: -1.95168217 | K20: -1.24915043
B21: [Input description] | C21: £m nominal | D21: 0 | E21: 0 | F21: 0 | G21: 0 | H21: 0 | I21: 0 | J21: 0 | K21: 0
B22: [Input description] | C22: £m nominal | D22: 0 | E22: 0 | F22: 0 | G22: 0 | H22: 0 | I22: 0 | J22: 0 | K22: 0
B23: [Input description] | C23: £m nominal | D23: 0 | E23: 0 | F23: 0 | G23: 0 | H23: 0 | I23: 0 | J23: 0 | K23: 0
B24: [Input description] | C24: £m nominal | D24: 0 | E24: 0 | F24: 0 | G24: 0 | H24: 0 | I24: 0 | J24: 0 | K24: 0
B25: Correction factor | C25: £m nominal | D25: 3.56448871 | E25: 0 | F25: 12.3764839 | G25: 1.31134476 | H25: 3.41238735 | I25: 4.29930698 | J25: 1.33360702 | K25: 2.3745843
B26: Allowed Network Revenue | C26: £m nominal | D26: =SUM(D14:D24,-D25) -> 407.8592508 | E26: =SUM(E14:E24,-E25) -> 415.5789894 | F26: 442.530288 | G26: 432.2451718 | H26: 417.5160753 | I26: 432.4383628 | J26: 465.6789864 | K26: 460.2974589
B28: (Under) / Over recovery | D28: =IF(ISBLANK(D33),0,D33-D26) -> 11.89588995 | E28: =IF(ISBLANK(E33),0,E33-E26) -> 1.260423641 | F28: 3.28515249 | G28: 4.145014402 | H28: 1.281609295 | I28: 2.274674919 | J28: 2.520338463 | K28: -0.5091712441
B31: Reconciliation: Regulated Network Revenue to Accounts
B33: Collected Regulated Network Revenue | D33: 419.7551407 | E33: 416.839413 | F33: 445.8154405 | G33: 436.3901862 | H33: 418.7976846 | I33: 434.7130377 | J33: 468.1993248 | K33: 459.7882876
B35: Other Turnover Items
B36: Network Innovation Competition (NIC) payments received from SO | C36: £m nominal | D36: 0 | E36: 0 | F36: 0 | G36: 0 | H36: 0 | I36: 0 | J36: 0 | K36: 0
B37: Legacy Metering Equipment charges | C37: £m nominal | D37: 0 | E37: 0 | F37: 0 | G37: 0 | H37: 0 | I37: 0 | J37: 0 | K37: 0
B38: Directly Remunerated Services revenue | C38: £m nominal | D38: 0 | E38: 0 | F38: 0 | G38: 0 | H38: 0 | I38: 0 | J38: 0 | K38: 0
B39: Network Asset Secondary Deliverables incentive/penalty | C39: £m nominal | D39: 0 | E39: 0 | F39: 0 | G39: 0 | H39: 0 | I39: 0 | J39: 0 | K39: 0
B40: Charging outside the Distribution Services Area (Out of Area Charges) | C40: £m nominal | D40: 0 | E40: 0 | F40: 0 | G40: 0 | H40: 0 | I40: 0 | J40: 0 | K40: 0
B41: De Minimis Business of the licensee | C41: £m nominal | D41: 0.2891237053 | E41: 1.05489087 | F41: 1.050592264 | G41: 2.634255162 | H41: 2.257208698 | I41: 1.641172409 | J41: 1.466989872 | K41: 1.009852456
B42: Other consented activities | C42: £m nominal | D42: 0 | E42: 0 | F42: 0 | G42: 0 | H42: 0 | I42: 0 | J42: 0 | K42: 0
B43: Data Services revenue | C43: £m nominal | D43: 0 | E43: 0 | F43: 0 | G43: 0 | H43: 0 | I43: 0 | J43: 0 | K43: 0
B44: [Input description, add additional rows as required] | C44: £m nominal | D44: 0 | E44: 0 | F44: 0 | G44: 0 | H44: 0 | I44: 0 | J44: 0 | K44: 0
B45: Total Other Turnover Items | C45: £m nominal | D45: =SUM(D36:D44) -> 0.2891237053 | E45: =SUM(E36:E44) -> 1.05489087 | F45: 1.050592264 | G45: 2.634255162 | H45: 2.257208698 | I45: 1.641172409 | J45: 1.466989872 | K45: 1.009852456
B47: Other adjustments - please list
B48: Excluded Services (Inc. Customer Contributions) | C48: £m nominal | D48: 4.804479398 | E48: 4.105497199 | F48: 5.245881515 | G48: 5.351922044 | H48: 6.750793811 | I48: 6.94986059 | J48: 6.458088829 | K48: 5.439024977
B49: Meter Reading and metering | C49: £m nominal | D49: 9.871462654 | E49: 8.955081595 | F49: 8.557494419 | G49: 5.730440016 | H49: 3.688876528 | I49: 3.440484129 | J49: 3.142362032 | K49: 0.53894495
B50: Services provided under consents | C50: £m nominal | D50: 1.788395865 | E50: 2.144513088 | F50: 1.945490839 | G50: 1.8229368 | H50: 0.7505067628 | I50: 1.177881189 | J50: 1.1714245 | K50: 1.114094295
B51: Other transportation Revenue | C51: £m nominal | D51: 0 | E51: 0 | F51: 0 | G51: 0.05004568327 | H51: -0.05004568327 | I51: 0.1165834958 | J51: 0.09045867065 | K51: 0
B52: Customer contributions | C52: £m nominal | D52: -5.171e-05 | E52: -0.01079307 | F52: 0 | G52: 0 | H52: 0 | I52: 0 | J52: 0 | K52: 0
B53: Xoserve | C53: £m nominal | D53: 18.21307234 | E53: 19.35117626 | F53: 18.51316837 | G53: 0 | H53: 0 | I53: 0 | J53: 0 | K53: 0
B54: Elimination of Inter Group/Business Trading | C54: £m nominal | D54: -45.70734259 | E54: -36.43455694 | F54: -27.3579207 | G54: 0 | H54: 0 | I54: 0 | J54: 0 | K54: 0
B55: Revenue classified as expenditure | C55: £m nominal | D55: 0 | E55: 0 | F55: 0 | G55: 1.839154618 | H55: 0 | I55: 0 | J55: 0 | K55: 0
B56: Other three network revenues | C56: £m nominal | D56: 1460.686431 | E56: 1432.208003 | F56: 1456.909673 | G56: 1433.296243 | H56: 1419.664097 | I56: 1513.731333 | J56: 1569.53252 | K56: 1580.86519
B57: Metering | C57: £m nominal | D57: 321 | E57: 309 | F57: 300 | G57: 0 | H57: 0 | I57: 0 | J57: 0 | K57: 0
B58: IFRS 15 Contribution released | C58: £m nominal | D58: 0 | E58: 0 | F58: 0 | G58: 0 | H58: 0 | I58: 32.98572425 | J58: 63.18916397 | K58: 26.87055449
B59: [Input description] | C59: £m nominal | D59: 0 | E59: 0 | F59: 0 | G59: 0 | H59: 0 | I59: 0 | J59: 0 | K59: 0
B60: [Input description] | C60: £m nominal | D60: 0 | E60: 0 | F60: 0 | G60: 0 | H60: 0 | I60: 0 | J60: 0 | K60: 0
B61: [Input description] | C61: £m nominal | D61: 0 | E61: 0 | F61: 0 | G61: 0 | H61: 0 | I61: 0 | J61: 0 | K61: 0
B62: [Input description] | C62: £m nominal | D62: 0 | E62: 0 | F62: 0 | G62: 0 | H62: 0 | I62: 0 | J62: 0 | K62: 0
B63: Roundings | C63: £m nominal | D63: 0.2532021333 | E63: 0.7439625011 | F63: 0.2893431945 | G63: -0.1442549046 | H63: 0.09336921892 | I63: 0.28799428 | J63: 1.749667023 | K63: -0.6259486
B64: Total other adjustments | C64: £m nominal | D64: =SUM(D48:D63) -> 1770.909649 | E64: 1740.062884 | F64: 1764.103131 | G64: 1447.946488 | H64: 1430.897598 | I64: 1558.689861 | J64: 1645.333685 | K64: 1614.20186
B66: Reconciled total revenue | C66: £m nominal | D66: =D33+D45+D64 -> 2190.953914 | E66: 2157.957188 | F66: 2210.969164 | G66: 1886.970929 | H66: 1851.952491 | I66: 1995.044071 | J66: 2115 | K66: 2075
B67: Turnover as per Profit and Loss (Accounts) | C67: £m nominal | D67: 2191 | E67: 2158 | F67: 2211 | G67: 1887 | H67: 1852 | I67: 1995 | J67: 2115 | K67: 2075
B68: Check | D68: =IF(ABS(D66-D67)<'RFPR cover'!$F$14,"OK","Error") -> OK | E68: =IF(ABS(E66-E67)<'RFPR cover'!$F$14,"OK","Error") -> OK | F68: =IF(ABS(F66-F67)<'RFPR cover'!$F$14,"OK","Error") -> OK | G68: =IF(ABS(G66-G67)<'RFPR cover'!$F$14,"OK","Error") -> OK | H68: =IF(ABS(H66-H67)<'RFPR cover'!$F$14,"OK","Error") -> OK | I68: =IF(ABS(I66-I67)<'RFPR cover'!$F$14,"OK","Error") -> OK | J68: =IF(ABS(J66-J67)<'RFPR cover'!$F$14,"OK","Error") -> OK | K68: =IF(ABS(K66-K67)<'RFPR cover'!$F$14,"OK","Error") -> OK

Sheet R3 - Rec to totex
A1: R3 - Reconciliation to totex
A2: ='RFPR cover'!C5 -> Cadent-London
A3: ='RFPR cover'!C7 -> 2021
D5: =IF(D6<='RFPR cover'!$C$7,"Actuals","N/A") -> Actuals | E5: =IF(E6<='RFPR cover'!$C$7,"Actuals","N/A") -> Actuals | F5: =IF(F6<='RFPR cover'!$C$7,"Actuals","N/A") -> Actuals | G5: =IF(G6<='RFPR cover'!$C$7,"Actuals","N/A") -> Actuals | H5: =IF(H6<='RFPR cover'!$C$7,"Actuals","N/A") -> Actuals | I5: =IF(I6<='RFPR cover'!$C$7,"Actuals","N/A") -> Actuals | J5: =IF(J6<='RFPR cover'!$C$7,"Actuals","N/A") -> Actuals | K5: =IF(K6<='RFPR cover'!$C$7,"Actuals","N/A") -> Actuals
D6: ='RFPR cover'!$C$13 -> 2014 | E6: =D6+1 -> 2015 | F6: =E6+1 -> 2016 | G6: 2017 | H6: 2018 | I6: 2019 | J6: 2020 | K6: 2021
B8: Total Expenditure Per Accounts
B9: Tangible Fixed Asset Additions | C9: £m nominal | D9: 509 | E9: 520 | F9: 581 | G9: 549 | H9: 610 | I9: 706 | J9: 815 | K9: 995
B10: Intangible Asset Additions (under IFRS) - IT Software | C10: £m nominal | D10: 35 | E10: 40 | F10: 24 | G10: 11 | H10: 2 | I10: 30 | J10: 46 | K10: 34
B11: Disposals (cash proceeds) [If Statutory Accounts treat this as an exceptional item, leave the input blank] | C11: £m nominal | D11: 0 | E11: 0 | F11: 0 | G11: 0 | H11: 0 | I11: -2 | J11: -1 | K11: 0
B12: Customer Contributions Additions | C12: £m nominal | D12: -21.08830086 | E12: -20.50484706 | F12: -22.98658171 | G12: -39.2042886 | H12: -59 | I12: -109 | J12: -94 | K12: -85
B13: Capitalised interest | C13: £m nominal | D13: -2 | E13: -2 | F13: 0 | G13: -1 | H13: 0 | I13: 0 | J13: 0 | K13: 0
B14: Revaluation of tangible fixed assets | C14: £m nominal | D14: 0 | E14: 0 | F14: 0 | G14: 0 | H14: 0 | I14: 0 | J14: 0 | K14: 0
A15: 1 | B15: [Input description] | C15: £m nominal | D15: 0 | E15: 0 | F15: 0 | G15: 0 | H15: 0 | I15: 0 | J15: 0 | K15: 0
A16: 2 | B16: [Input description] | C16: £m nominal | D16: 0 | E16: 0 | F16: 0 | G16: 0 | H16: 0 | I16: 0 | J16: 0 | K16: 0
A17: 3 | B17: [Input description] | C17: £m nominal | D17: 0 | E17: 0 | F17: 0 | G17: 0 | H17: 0 | I17: 0 | J17: 0 | K17: 0
B18: Capex Incurred | C18: £m nominal | D18: =SUM(D9:D17) -> 520.9116991 | E18: =SUM(E9:E17) -> 537.4951529 | F18: 582.0134183 | G18: 519.7957114 | H18: 553 | I18: 625 | J18: 766 | K18: 944
B19: Operational Costs Incurred | C19: £m nominal | D19: 1187 | E19: 1153 | F19: 1178 | G19: 1129 | H19: 1128 | I19: 1182 | J19: 1191 | K19: 1174
A20: 1 | B20: [Input description] | C20: £m nominal | D20: 0 | E20: 0 | F20: 0 | G20: 0 | H20: 0 | I20: 0 | J20: 0 | K20: 0
A21: 2 | B21: [Input description] | C21: £m nominal | D21: 0 | E21: 0 | F21: 0 | G21: 0 | H21: 0 | I21: 0 | J21: 0 | K21: 0
A22: 3 | B22: [Input description] | C22: £m nominal | D22: 0 | E22: 0 | F22: 0 | G22: 0 | H22: 0 | I22: 0 | J22: 0 | K22: 0
B23: Total Expenditure Incurred | C23: £m nominal | D23: =SUM(D18:D22) -> 1707.911699 | E23: =SUM(E18:E22) -> 1690.495153 | F23: 1760.013418 | G23: 1648.795711 | H23: 1681 | I23: 1807 | J23: 1957 | K23: 2118
B25: Reconciling Items to Total Net costs after non-price control allocations | C25: £m nominal
A26: 1 | B26: Total expenditure relating to excluded services (deminimis, excluded, consented and meter reading) | C26: £m nominal | D26: -88.77479166 | E26: -86.64717082 | F26: -66.48738517 | G26: -42.34823526 | H26: -33 | I26: -31.2133087 | J26: -29.41254488 | K26: -13.51016604
A27: 2 | B27: Depreciation & amortisation of Intangibles | C27: £m nominal | D27: -271 | E27: -287 | F27: -298 | G27: -309 | H27: -305 | I27: -319 | J27: -343 | K27: -376
A28: 3 | B28: Customer Contribution Amortisation | C28: £m nominal | D28: 21.10836141 | E28: 21.59868519 | F28: 22.23225969 | G28: 22.23225969 | H28: 20.73451775 | I28: 0 | J28: 0 | K28: 0
A29: 4 | B29: Total expenditure relating to Metering business | C29: £m nominal | D29: -215 | E29: -199 | F29: -179 | G29: 0 | H29: 0 | I29: 0 | J29: 0 | K29: 0
A30: 5 | B30: Inter business unit charging elimination | C30: £m nominal | D30: 45.70734259 | E30: 36.43455694 | F30: 27.3579207 | G30: 0 | H30: 0 | I30: 0 | J30: 0 | K30: 0
A31: 6 | B31: Profit / (Loss) on disposal | C31: £m nominal | D31: 83 | E31: 40 | F31: 0 | G31: -11 | H31: 0.4511035798 | I31: 2 | J31: 3 | K31: 1
A32: 7 | B32: Cadent Total GSOP Payments | C32: £m nominal | D32: -1.802924563 | E32: -2.269957382 | F32: -2.87115647 | G32: -3.112271917 | H32: -2.916930748 | I32: -3.31741929 | J32: -5.00557129 | K32: -2.35883085
A33: 8 | B33: Network Innovation Competition Costs | C33: £m nominal | D33: 0 | E33: 0 | F33: 0 | G33: -0.03567741 | H33: -1.06975698 | I33: -0.72411407 | J33: -0.99611846 | K33: 0.28220298
A34: 9 | B34: Supplier of Last Resort (SoLR) | C34: £m nominal | D34: 0 | E34: 0 | F34: 0 | G34: 0 | H34: 0 | I34: -3.18509389 | J34: -3.1000725 | K34: -3.94609369
A35: 10 | B35: Cash typical adjustments (provision movements) | C35: £m nominal | D35: -30 | E35: -1 | F35: 0 | G35: -15 | H35: -1 | I35: -6 | J35: -39 | K35: 8.65084533
A36: 11 | B36: Atypical items - Separation expenditure (Opex) | C36: £m nominal | D36: 0 | E36: 0 | F36: 0 | G36: -4.91904316 | H36: -21.22645788 | I36: -17.52971129 | J36: -19 | K36: -7
A37: 12 | B37: Atypical items - Separation expenditure (Capex) | C37: £m nominal | D37: 0 | E37: 0 | F37: 0 | G37: 0 | H37: 0 | I37: 0 | J37: -5.92985427 | K37: -2.2169228
A38: 13 | B38: Atypical Items - Grenfell investigation | C38: £m nominal | D38: 0 | E38: 0 | F38: 0 | G38: 0 | H38: -1.35563067 | I38: -1.09242274 | J38: 0.73110853 | K38: -0.23005095
A39: 14 | B39: Atypical Items - Energy Savings Trust contributions | C39: £m nominal | D39: 0 | E39: 0 | F39: 0 | G39: 0 | H39: 0 | I39: -8.9 | J39: 0 | K39: 0
A40: 15 | B40: Atypical Items - HRB recovery programme costs | C40: £m nominal | D40: 0 | E40: 0 | F40: 0 | G40: 0 | H40: 0 | I40: -3.67517683 | J40: -0.08331893 | K40: 0
A41: 16 | B41: Atypical Items - Guaranteed minimum pensions payments | C41: £m nominal | D41: 0 | E41: 0 | F41: 0 | G41: 0 | H41: 0 | I41: -14 | J41: 0 | K41: -0.7
A42: 17 | B42: Atypical Items - Service transformation costs | C42: £m nominal | D42: 0 | E42: 0 | F42: 0 | G42: 0 | H42: 0 | I42: -0.61276066 | J42: 0 | K42: 0
A43: 18 | B43: Atypical Items - Donation to National Energy Action | C43: £m nominal | D43: 0 | E43: 0 | F43: -3 | G43: 0 | H43: 0 | I43: 0 | J43: 0 | K43: 0
A44: 19 | B44: Atypical items - Legal fines and penalties | C44: £m nominal | D44: 0 | E44: 0 | F44: -3 | G44: 0 | H44: 0 | I44: 0 | J44: 0 | K44: 0
A45: 20 | B45: Atypical Items - Enhanced GSOP payments | C45: £m nominal | D45: 0 | E45: 0 | F45: 0 | G45: 0 | H45: -1.33857 | I45: 0 | J45: 0 | K45: 0
A46: 21 | B46: Atypical Items - Establishment of a Community Fund | C46: £m nominal | D46: 0 | E46: 0 | F46: 0 | G46: 0 | H46: 0 | I46: -4.123628 | J46: -5.691342 | K46: -8.48665578
A47: 22 | B47: IFRS 16 Impact | C47: £m nominal | D47: 0 | E47: 0 | F47: 0 | G47: 0 | H47: 0 | I47: 0 | J47: 4.03311072 | K47: 8
A48: 23 | B48: Total expenditure relating to other three networks | C48: £m nominal | D48: -950.360134 | E48: -935.2607709 | F48: -956.8016431 | G48: -959.7720182 | H48: -982.8059121 | I48: -1010.316715 | J48: -1114.177235 | K48: -1281.781019
A49: 24 | B49: Connections Income (including Biogas connections income) | C49: £m nominal | D49: -2.645291372 | E49: -3.052325003 | F49: -4.196006245 | G49: -4.255878701 | H49: -5.119461304 | I49: -5.534137577 | J49: -5.412629067 | K49: -4.61012709
A50: 25 | B50: Ongoing Pension Costs Accrued under IAS 19 (-ve) | C50: £m nominal | D50: 0.9495028378 | E50: 0.1570467577 | F50: -0.3354046421 | G50: -1.860962406 | H50: -1.930864998 | I50: 3.117082767 | J50: 0.0008149381153 | K50: 0.0219867
A51: 26 | B51: Incremental pension deficit funding | C51: £m nominal | D51: 0 | E51: 0 | F51: 0 | G51: 0 | H51: 0.2477801047 | I51: 0.26104188 | J51: 0.2397903353 | K51: -0.06637133326
A52: 27 | B52: Established pension deficit recovery plan payment | C52: £m nominal | D52: 0 | E52: 0 | F52: 0 | G52: 0 | H52: 7.935094742 | I52: 8.431672803 | J52: 7.059412911 | K52: 0.2423215553
A53: 28 | B53: A grossing up of costs and revenue in the regulatory accounts | C53: £m nominal | D53: 0 | E53: 0 | F53: 0 | G53: -1.678600693 | H53: 0 | I53: 0 | J53: 0 | K53: 0
A54: 29 | B54: Adjustment for efficient level of fines | C54: £m nominal | D54: -1.097390203 | E54: 0 | F54: 0 | G54: 0 | H54: 0 | I54: 0 | J54: 0 | K54: 0
A55: 30 | B55: Cash typical adjustments (Utilisation) | C55: £m nominal | D55: -4.115858785 | E55: 8.690438889 | F55: 4.983269655 | G55: 1.738691144 | H55: 1.111167518 | I55: 1.053912608 | J55: 5.184160495 | K55: 2.447972314
A56: 31 | B56: Cumulative impact of rounding in reg accounts | C56: £m nominal | D56: -0.5455629508 | E56: 0.6158992678 | F56: 0.2989575734 | G56: -0.283889499 | H56: -0.07188273061 | I56: 1.382949271 | J56: 1.324651379 | K56: 0.7502145915
A57: 32 | B57: [Input description] | C57: £m nominal | D57: 0 | E57: 0 | F57: 0 | G57: 0 | H57: 0 | I57: 0 | J57: 0 | K57: 0
A58: 33 | B58: [Input description] | C58: £m nominal | D58: 0 | E58: 0 | F58: 0 | G58: 0 | H58: 0 | I58: 0 | J58: 0 | K58: 0
A59: 34 | B59: [Input description] | C59: £m nominal | D59: 0 | E59: 0 | F59: 0 | G59: 0 | H59: 0 | I59: 0 | J59: 0 | K59: 0
A60: 35 | B60: [Input description] | C60: £m nominal | D60: 0 | E60: 0 | F60: 0 | G60: 0 | H60: 0 | I60: 0 | J60: 0 | K60: 0
B61: Total Reconciling Items | C61: £m nominal | D61: =SUM(D26:D60) -> -1414.576747 | E61: =SUM(E26:E60) -> -1406.733597 | F61: -1458.819188 | G61: -1329.295626 | H61: -1326.355804 | I61: -1412.977829 | J61: -1549.235637 | K61: -1679.510695
B63: Total Net costs after non-price control allocations | C63: £m nominal | D63: =D61+D23 -> 293.3349524 | E63: =E61+E23 -> 283.7615559 | F63: 301.1942303 | G63: 319.500085 | H63: 354.6441963 | I63: 394.0221713 | J63: 407.7643633 | K63: 438.4893055
B64: Total Costs per latest RRP submission | C64: £m nominal | D64: 293.3349524 | E64: 283.7615559 | F64: 301.1942303 | G64: 319.4782267 | H64: 354.6441963 | I64: 394.0221713 | J64: 407.7643633 | K64: 438.4893055
C65: check | D65: =IF(D$5="Actuals",IF(ABS(D63-D64)<1,"OK","ERROR"),"N/A") -> OK | E65: =IF(E$5="Actuals",IF(ABS(E63-E64)<1,"OK","ERROR"),"N/A") -> OK | F65: OK | G65: OK | H65: OK | I65: OK | J65: OK | K65: OK
B67: Reconciling Items to Totex
A68: 1 | B68: Shrinkage | C68: £m nominal | D68: 5.59469361 | E68: 4.34660389 | F68: 3.05071381 | G68: 3.165088018 | H68: 3.652389932 | I68: 4.568398455 | J68: 2.21020632 | K68: 2.21039427
A69: 2 | B69: Ofgem Licence | C69: £m nominal | D69: 1.294 | E69: 1.363936998 | F69: 1.390044221 | G69: 1.172599904 | H69: 1.5102528 | I69: 1.570661328 | J69: 1.73428738 | K69: 1.736177849
A70: 3 | B70: Network Rates | C70: £m nominal | D70: 27.704 | E70: 28.34911696 | F70: 28.99449593 | G70: 29.270238 | H70: 51.88919525 | I70: 53.2403518 | J70: 42.323114 | K70: 51.1059456
A71: 4 | B71: Established pension deficit recovery plan payment | C71: £m nominal | D71: 1.627073663 | E71: 2.844 | F71: 2.856985984 | G71: 2.906427774 | H71: 7.91327918 | I71: 8.431672803 | J71: 7.059412911 | K71: 0.2423215553
A72: 5 | B72: PPF levy costs | C72: £m nominal | D72: 0.02024045271 | E72: 0.169 | F72: 0.0130687826 | G72: 0.0139672087 | H72: 0.02181556198 | I72: 0.03527271078 | J72: 0.03048104858 | K72: 0.0347354784
A73: 6 | B73: Pension scheme administration costs | C73: £m nominal | D73: 0.1391531124 | E73: 0.146 | F73: 0.1462068901 | G73: 0.1463626991 | H73: 0.6613328352 | I73: 0.76319469 | J73: 0.7245882621 | K73: 0.7635567588
A74: 7 | B74: NTS Pension Recharge | C74: £m nominal | D74: 4.393 | E74: 4.579273848 | F74: 6.421768646 | G74: 6.455103876 | H74: 4.140058562 | I74: 4.279164 | J74: 0 | K74: 0
A75: 8 | B75: Bad debt | C75: £m nominal | D75: -0.002132038353 | E75: 0.134640097 | F75: -0.497350672 | G75: 0.2438137529 | H75: 0.5599500995 | I75: 0.02330513495 | J75: -0.0129431062 | K75: 0.27302432
A76: 9 | B76: NTS exit costs | C76: £m nominal | D76: 18.632 | E76: 19.70731033 | F76: 18.88441018 | G76: 18.7358854 | H76: 19.51712601 | I76: 15.78692838 | J76: 17.22834418 | K76: 25.09413784
A77: 10 | B77: Network Innovation (ex IRM) | C77: £m nominal | D77: 0.593 | E77: 1.706774737 | F77: 1.836608356 | G77: 1.583653521 | H77: 1.519859827 | I77: 1.007342093 | J77: 1.259673311 | K77: 1.62
A78: 11 | B78: Innovation Roll-out expenditure (IRM) | C78: £m nominal | D78: 0 | E78: 0 | F78: 0 | G78: 0 | H78: 0 | I78: 0 | J78: 0 | K78: 0
A79: 12 | B79: Unfunded Network Innovation | C79: £m nominal | D79: 0 | E79: 0.002678945 | F79: 0 | G79: 0.2039774852 | H79: 0.1474561037 | I79: 0.141101581 | J79: 0.2880789842 | K79: 0.256838625
A80: 13 | B80: SIU Gas Cost Price Differential | C80: £m nominal | D80: 0 | E80: 0 | F80: 0 | G80: 0.0008982225 | H80: 0.00015525 | I80: 0 | J80: 0 | K80: 0
A81: 14 | B81: [Input description] | C81: £m nominal | D81: 0 | E81: 0 | F81: 0 | G81: 0 | H81: 0 | I81: 0 | J81: 0 | K81: 0
A82: 15 | B82: [Input description] | C82: £m nominal | D82: 0 | E82: 0 | F82: 0 | G82: 0 | H82: 0 | I82: 0 | J82: 0 | K82: 0
A83: 16 | B83: [Input description] | C83: £m nominal | D83: 0 | E83: 0 | F83: 0 | G83: 0 | H83: 0 | I83: 0 | J83: 0 | K83: 0
A84: 17 | B84: [Input description] | C84: £m nominal | D84: 0 | E84: 0 | F84: 0 | G84: 0 | H84: 0 | I84: 0 | J84: 0 | K84: 0
A85: 18 | B85: [Input description] | C85: £m nominal | D85: 0 | E85: 0 | F85: 0 | G85: 0 | H85: 0 | I85: 0 | J85: 0 | K85: 0
A86: 19 | B86: [Input description] | C86: £m nominal | D86: 0 | E86: 0 | F86: 0 | G86: 0 | H86: 0 | I86: 0 | J86: 0 | K86: 0
A87: 20 | B87: [Input description] | C87: £m nominal | D87: 0 | E87: 0 | F87: 0 | G87: 0 | H87: 0 | I87: 0 | J87: 0 | K87: 0
A88: 21 | B88: [Input description] | C88: £m nominal | D88: 0 | E88: 0 | F88: 0 | G88: 0 | H88: 0 | I88: 0 | J88: 0 | K88: 0
A89: 22 | B89: [Input description] | C89: £m nominal | D89: 0 | E89: 0 | F89: 0 | G89: 0 | H89: 0 | I89: 0 | J89: 0 | K89: 0
A90: 23 | B90: [Input description] | C90: £m nominal | D90: 0 | E90: 0 | F90: 0 | G90: 0 | H90: 0 | I90: 0 | J90: 0 | K90: 0
A91: 24 | B91: [Input description] | C91: £m nominal | D91: 0 | E91: 0 | F91: 0 | G91: 0 | H91: 0 | I91: 0 | J91: 0 | K91: 0
A92: 25 | B92: [Input description] | C92: £m nominal | D92: 0 | E92: 0 | F92: 0 | G92: 0 | H92: 0 | I92: 0 | J92: 0 | K92: 0
B93: Total reconciling items not recognised in totex | C93: £m nominal | D93: =SUM(D68:D92) -> 59.9950288 | E93: =SUM(E68:E92) -> 63.3493358 | F93: 63.09695213 | G93: 63.89801586 | H93: 91.53287141 | I93: 89.84739298 | J93: 72.84524329 | K93: 83.3371323
B95: PCFM Totex (excluding enduring value) | C95: £m nominal | D95: =D63-D93 -> 233.3399236 | E95: =E63-E93 -> 220.4122201 | F95: 238.0972781 | G95: 255.6020691 | H95: 263.1113249 | I95: 304.1747783 | J95: 334.91912 | K95: 355.1521732
B96: RRP reported totex | C96: £m nominal | D96: ='R4 - Totex'!D90+'R4 - Totex'!D118 -> 233.340205 | E96: ='R4 - Totex'!E90+'R4 - Totex'!E118 -> 220.3887806 | F96: ='R4 - Totex'!F90+'R4 - Totex'!F118 -> 238.0975866 | G96: ='R4 - Totex'!G90+'R4 - Totex'!G118 -> 255.6020691 | H96: ='R4 - Totex'!H90+'R4 - Totex'!H118 -> 263.1190495 | I96: ='R4 - Totex'!I90+'R4 - Totex'!I118 -> 304.1747783 | J96: ='R4 - Totex'!J90+'R4 - Totex'!J118 -> 334.91912 | K96: ='R4 - Totex'!K90+'R4 - Totex'!K118 -> 355.1521732
C97: check | D97: =IF(D$5="Actuals",IF(ABS(D95-('R4 - Totex'!D90+'R4 - Totex'!D118))<'RFPR cover'!$F$14,"OK","Error"),"N/A") -> OK | E97: =IF(E$5="Actuals",IF(ABS(E95-('R4 - Totex'!E90+'R4 - Totex'!E118))<'RFPR cover'!$F$14,"OK","Error"),"N/A") -> OK | F97: =IF(F$5="Actuals",IF(ABS(F95-('R4 - Totex'!F90+'R4 - Totex'!F118))<'RFPR cover'!$F$14,"OK","Error"),"N/A") -> OK | G97: =IF(G$5="Actuals",IF(ABS(G95-('R4 - Totex'!G90+'R4 - Totex'!G118))<'RFPR cover'!$F$14,"OK","Error"),"N/A") -> OK | H97: =IF(H$5="Actuals",IF(ABS(H95-('R4 - Totex'!H90+'R4 - Totex'!H118))<'RFPR cover'!$F$14,"OK","Error"),"N/A") -> OK | I97: =IF(I$5="Actuals",IF(ABS(I95-('R4 - Totex'!I90+'R4 - Totex'!I118))<'RFPR cover'!$F$14,"OK","Error"),"N/A") -> OK | J97: =IF(J$5="Actuals",IF(ABS(J95-('R4 - Totex'!J90+'R4 - Totex'!J118))<'RFPR cover'!$F$14,"OK","Error"),"N/A") -> OK | K97: =IF(K$5="Actuals",IF(ABS(K95-('R4 - Totex'!K90+'R4 - Totex'!K118))<'RFPR cover'!$F$14,"OK","Error"),"N/A") -> OK

Sheet R4 - Totex
A1: R4 - Totex
A2: ='RFPR cover'!C5 -> Cadent-London
A3: ='RFPR cover'!C7 -> 2021
D5: =IF(D6<='RFPR cover'!$C$7,"Actuals","Forecast") -> Actuals | E5: =IF(E6<='RFPR cover'!$C$7,"Actuals","Forecast") -> Actuals | F5: =IF(F6<='RFPR cover'!$C$7,"Actuals","Forecast") -> Actuals | G5: =IF(G6<='RFPR cover'!$C$7,"Actuals","Forecast") -> Actuals | H5: =IF(H6<='RFPR cover'!$C$7,"Actuals","Forecast") -> Actuals | I5: =IF(I6<='RFPR cover'!$C$7,"Actuals","Forecast") -> Actuals | J5: =IF(J6<='RFPR cover'!$C$7,"Actuals","Forecast") -> Actuals | K5: =IF(K6<='RFPR cover'!$C$7,"Actuals","Forecast") -> Actuals
D6: ='RFPR cover'!$C$13 -> 2014 | E6: =D6+1 -> 2015 | F6: =E6+1 -> 2016 | G6: 2017 | H6: 2018 | I6: 2019 | J6: 2020 | K6: 2021 | L6: ="Cumulative to "&'RFPR cover'!$C$7 -> Cumulative to 2021 | M6: RIIO-1 period | N6: Enduring Value Appendix in Commentary
B8: Totex per the latest RRP submission
B10: =Data!B48 -> Totex excluding repex
B12: Latest Totex actuals/forecast | C12: ='RFPR cover'!$C$14 -> £m 09/10 | D12: 122.7047032 | E12: 108.224633 | F12: 106.2031319 | G12: 109.4269797 | H12: 112.7602587 | I12: 114.5741457 | J12: 121.8058411 | K12: 119.8044622 | L12: =SUM(D12:INDEX(D12:K12,0,MATCH('RFPR cover'!$C$7,$D$6:$K$6,0))) -> 915.5041555 | M12: =SUM(D12:K12) -> 915.5041555
B13: Totex allowance including allowed adjustments and uncertainty mechanisms | C13: ='RFPR cover'!$C$14 -> £m 09/10 | D13: 105.7013883 | E13: 104.4240705 | F13: 111.6834675 | G13: 111.5433403 | H13: 112.349073 | I13: 109.0475708 | J13: 100.2056953 | K13: 95.34933511 | L13: =SUM(D13:INDEX(D13:K13,0,MATCH('RFPR cover'!$C$7,$D$6:$K$6,0))) -> 850.3039408 | M13: =SUM(D13:K13) -> 850.3039408
B14: Totex out(under)performance | C14: ='RFPR cover'!$C$14 -> £m 09/10 | D14: =D13-D12 -> -17.00331488 | E14: =E13-E12 -> -3.800562481 | F14: 5.480335598 | G14: 2.116360559 | H14: -0.4111857002 | I14: -5.526574881 | J14: -21.6001458 | K14: -24.45512705 | L14: -65.20021463 | M14: -65.20021463
B16: Funding Adjustment Rate (often referred to as 'sharing factor') | C16: % | D16: =1-INDEX(Data!$D$73:$D$100,MATCH('RFPR cover'!$C$5,Data!$B$73:$B$100,0),0) -> 0.3696 | E16: =1-INDEX(Data!$D$73:$D$100,MATCH('RFPR cover'!$C$5,Data!$B$73:$B$100,0),0) -> 0.3696 | F16: =1-INDEX(Data!$D$73:$D$100,MATCH('RFPR cover'!$C$5,Data!$B$73:$B$100,0),0) -> 0.3696 | G16: =1-INDEX(Data!$D$73:$D$100,MATCH('RFPR cover'!$C$5,Data!$B$73:$B$100,0),0) -> 0.3696 | H16: =1-INDEX(Data!$D$73:$D$100,MATCH('RFPR cover'!$C$5,Data!$B$73:$B$100,0),0) -> 0.3696 | I16: =1-INDEX(Data!$D$73:$D$100,MATCH('RFPR cover'!$C$5,Data!$B$73:$B$100,0),0) -> 0.3696 | J16: =1-INDEX(Data!$D$73:$D$100,MATCH('RFPR cover'!$C$5,Data!$B$73:$B$100,0),0) -> 0.3696 | K16: =1-INDEX(Data!$D$73:$D$100,MATCH('RFPR cover'!$C$5,Data!$B$73:$B$100,0),0) -> 0.3696
B18: Customer share of out(under) performance | C18: ='RFPR cover'!$C$14 -> £m 09/10 | D18: =D14*D16 -> -6.284425178 | E18: =E14*E16 -> -1.404687893 | F18: 2.025532037 | G18: 0.7822068627 | H18: -0.1519742348 | I18: -2.042622076 | J18: -7.983413889 | K18: -9.038614958 | L18: =SUM(D18:INDEX(D18:K18,0,MATCH('RFPR cover'!$C$7,$D$6:$K$6,0))) -> -24.09799933 | M18: =SUM(D18:K18) -> -24.09799933
B19: NWO share of performance | C19: ='RFPR cover'!$C$14 -> £m 09/10 | D19: =D14*(1-D16) -> -10.7188897 | E19: =E14*(1-E16) -> -2.395874588 | F19: 3.454803561 | G19: 1.334153696 | H19: -0.2592114654 | I19: -3.483952805 | J19: -13.61673191 | K19: -15.41651209 | L19: =SUM(D19:INDEX(D19:K19,0,MATCH('RFPR cover'!$C$7,$D$6:$K$6,0))) -> -41.10221531 | M19: =SUM(D19:K19) -> -41.10221531
B21: Enduring Value adjustments to Totex performance
A22: a | B22: Gas Holders | C22: ='RFPR cover'!$C$14 -> £m 09/10 | D22: 13.03703828 | E22: 1.795520242 | F22: -1.951652437 | G22: -2.576181217 | H22: -2.576181217 | I22: -2.576181217 | J22: -2.576181217 | K22: -2.576181217 | L22: =SUM(D22:INDEX(D22:K22,0,MATCH('RFPR cover'!$C$7,$D$6:$K$6,0))) -> 0 | M22: =SUM(D22:K22) -> 0
A23: b | B23: Capex Enduring Value | C23: ='RFPR cover'!$C$14 -> £m 09/10 | D23: -5.818265801 | E23: -6.36704801 | F23: -10.61687196 | G23: -2.362977266 | H23: -0.3174596209 | I23: -3.547944646 | J23: 10.52202318 | K23: 18.50854412 | L23: =SUM(D23:INDEX(D23:K23,0,MATCH('RFPR cover'!$C$7,$D$6:$K$6,0))) -> 0 | M23: 0
A24: c | B24: [Enduring Value adjustment] | C24: ='RFPR cover'!$C$14 -> £m 09/10 | D24: 0 | E24: 0 | F24: 0 | G24: 0 | H24: 0 | I24: 0 | J24: 0 | K24: 0 | L24: =SUM(D24:INDEX(D24:K24,0,MATCH('RFPR cover'!$C$7,$D$6:$K$6,0))) -> 0 | M24: 0
A25: d | B25: [Enduring Value adjustment] | C25: ='RFPR cover'!$C$14 -> £m 09/10 | D25: 0 | E25: 0 | F25: 0 | G25: 0 | H25: 0 | I25: 0 | J25: 0 | K25: 0 | L25: =SUM(D25:INDEX(D25:K25,0,MATCH('RFPR cover'!$C$7,$D$6:$K$6,0))) -> 0 | M25: 0
A26: e | B26: [Enduring Value adjustment] | C26: ='RFPR cover'!$C$14 -> £m 09/10 | D26: 0 | E26: 0 | F26: 0 | G26: 0 | H26: 0 | I26: 0 | J26: 0 | K26: 0 | L26: =SUM(D26:INDEX(D26:K26,0,MATCH('RFPR cover'!$C$7,$D$6:$K$6,0))) -> 0 | M26: 0
A27: f | B27: [Enduring Value adjustment] | C27: ='RFPR cover'!$C$14 -> £m 09/10 | D27: 0 | E27: 0 | F27: 0 | G27: 0 | H27: 0 | I27: 0 | J27: 0 | K27: 0 | L27: =SUM(D27:INDEX(D27:K27,0,MATCH('RFPR cover'!$C$7,$D$6:$K$6,0))) -> 0 | M27: 0
B28: Total enduring value adjustments | C28: ='RFPR cover'!$C$14 -> £m 09/10 | D28: =SUM(D22:D27) -> 7.218772478 | E28: =SUM(E22:E27) -> -4.571527768 | F28: -12.5685244 | G28: -4.939158483 | H28: -2.893640838 | I28: -6.124125862 | J28: 7.945841964 | K28: 15.93236291 | L28: =SUM(D28:INDEX(D28:K28,0,MATCH('RFPR cover'!$C$7,$D$6:$K$6,0))) -> 0 | M28: =SUM(D28:K28) -> 0
B30: Enduring Value: Customer share of performance | C30: ='RFPR cover'!$C$14 -> £m 09/10 | D30: =D28*D16 -> 2.668058308 | E30: -1.689636663 | F30: -4.645326617 | G30: -1.825512975 | H30: -1.069489654 | I30: -2.263476919 | J30: 2.93678319 | K30: 5.88860133 | L30: =SUM(D30:INDEX(D30:K30,0,MATCH('RFPR cover'!$C$7,$D$6:$K$6,0))) -> 0 | M30: =SUM(D30:K30) -> 0
B31: Enduring Value: NWO share of performance | C31: ='RFPR cover'!$C$14 -> £m 09/10 | D31: =D28*(1-D16) -> 4.55071417 | E31: -2.881891105 | F31: -7.92319778 | G31: -3.113645508 | H31: -1.824151184 | I31: -3.860648944 | J31: 5.009058774 | K31: 10.04376158 | L31: =SUM(D31:INDEX(D31:K31,0,MATCH('RFPR cover'!$C$7,$D$6:$K$6,0))) -> 0 | M31: =SUM(D31:K31) -> 0
B33: Total out(under) performance (including enduring value adjustments)
B34: Customer share of performance | C34: ='RFPR cover'!$C$14 -> £m 09/10 | D34: =D18+D30 -> -3.61636687 | E34: =E18+E30 -> -3.094324556 | F34: -2.61979458 | G34: -1.043306113 | H34: -1.221463888 | I34: -4.306098995 | J34: -5.046630699 | K34: -3.150013628 | L34: =SUM(D34:INDEX(D34:K34,0,MATCH('RFPR cover'!$C$7,$D$6:$K$6,0))) -> -24.09799933 | M34: =SUM(D34:K34) -> -24.09799933
B35: NWO share of performance | C35: ='RFPR cover'!$C$14 -> £m 09/10 | D35: =D19+D31 -> -6.168175528 | E35: -5.277765693 | F35: -4.468394219 | G35: -1.779491811 | H35: -2.08336265 | I35: -7.344601749 | J35: -8.60767314 | K35: -5.372750517 | L35: =SUM(D35:INDEX(D35:K35,0,MATCH('RFPR cover'!$C$7,$D$6:$K$6,0))) -> -41.10221531 | M35: =SUM(D35:K35) -> -41.10221531
B36: Total | C36: ='RFPR cover'!$C$14 -> £m 09/10 | D36: =SUM(D34:D35) -> -9.784542398 | E36: =SUM(E34:E35) -> -8.372090249 | F36: -7.088188799 | G36: -2.822797924 | H36: -3.304826538 | I36: -11.65070074 | J36: -13.65430384 | K36: -8.522764145 | L36: =SUM(D36:INDEX(D36:K36,0,MATCH('RFPR cover'!$C$7,$D$6:$K$6,0))) -> -65.20021463 | M36: =SUM(D36:K36) -> -65.20021463
B38: =Data!B51 -> Repex
B40: Latest Totex actuals/forecast | C40: ='RFPR cover'!$C$14 -> £m 09/10 | D40: 77.2973467 | E40: 77.04509795 | F40: 91.81948654 | G40: 98.69436601 | H40: 93.75394951 | I40: 117.0849652 | J40: 126.8316365 | K40: 140.6942306 | L40: =SUM(D40:INDEX(D40:K40,0,MATCH('RFPR cover'!$C$7,$D$6:$K$6,0))) -> 823.221079 | M40: =SUM(D40:K40) -> 823.221079
B41: Totex allowance including allowed adjustments and uncertainty mechanisms | C41: ='RFPR cover'!$C$14 -> £m 09/10 | D41: 130.5017484 | E41: 132.6540235 | F41: 140.0092964 | G41: 133.8070231 | H41: 128.3353491 | I41: 124.168747 | J41: 131.2608465 | K41: 130.4576657 | L41: =SUM(D41:INDEX(D41:K41,0,MATCH('RFPR cover'!$C$7,$D$6:$K$6,0))) -> 1051.1947 | M41: =SUM(D41:K41) -> 1051.1947
B42: Totex out(under)performance | C42: ='RFPR cover'!$C$14 -> £m 09/10 | D42: =D41-D40 -> 53.20440173 | E42: =E41-E40 -> 55.60892553 | F42: 48.18980989 | G42: 35.11265704 | H42: 34.58139964 | I42: 7.083781862 | J42: 4.429209959 | K42: -10.23656491 | L42: 227.9736207 | M42: 227.9736207
B44: Funding Adjustment Rate (often referred to as 'sharing factor') | C44: % | D44: =1-INDEX(Data!$D$73:$D$100,MATCH('RFPR cover'!$C$5,Data!$B$73:$B$100,0),0) -> 0.3696 | E44: =1-INDEX(Data!$D$73:$D$100,MATCH('RFPR cover'!$C$5,Data!$B$73:$B$100,0),0) -> 0.3696 | F44: =1-INDEX(Data!$D$73:$D$100,MATCH('RFPR cover'!$C$5,Data!$B$73:$B$100,0),0) -> 0.3696 | G44: =1-INDEX(Data!$D$73:$D$100,MATCH('RFPR cover'!$C$5,Data!$B$73:$B$100,0),0) -> 0.3696 | H44: =1-INDEX(Data!$D$73:$D$100,MATCH('RFPR cover'!$C$5,Data!$B$73:$B$100,0),0) -> 0.3696 | I44: =1-INDEX(Data!$D$73:$D$100,MATCH('RFPR cover'!$C$5,Data!$B$73:$B$100,0),0) -> 0.3696 | J44: =1-INDEX(Data!$D$73:$D$100,MATCH('RFPR cover'!$C$5,Data!$B$73:$B$100,0),0) -> 0.3696 | K44: =1-INDEX(Data!$D$73:$D$100,MATCH('RFPR cover'!$C$5,Data!$B$73:$B$100,0),0) -> 0.3696
B46: Customer share of out(under) performance | C46: ='RFPR cover'!$C$14 -> £m 09/10 | D46: =D42*D44 -> 19.66434688 | E46: =E42*E44 -> 20.55305888 | F46: 17.81095374 | G46: 12.97763804 | H46: 12.78128531 | I46: 2.618165776 | J46: 1.637036001 | K46: -3.78343439 | L46: =SUM(D46:INDEX(D46:K46,0,MATCH('RFPR cover'!$C$7,$D$6:$K$6,0))) -> 84.25905023 | M46: =SUM(D46:K46) -> 84.25905023
B47: NWO share of performance | C47: ='RFPR cover'!$C$14 -> £m 09/10 | D47: =D42*(1-D44) -> 33.54005485 | E47: =E42*(1-E44) -> 35.05586665 | F47: 30.37885615 | G47: 22.135019 | H47: 21.80011433 | I47: 4.465616086 | J47: 2.792173958 | K47: -6.453130519 | L47: =SUM(D47:INDEX(D47:K47,0,MATCH('RFPR cover'!$C$7,$D$6:$K$6,0))) -> 143.7145705 | M47: =SUM(D47:K47) -> 143.7145705
B49: Enduring Value adjustments to Totex performance
A50: a | B50: Repex Enduring Value | C50: ='RFPR cover'!$C$14 -> £m 09/10 | D50: -11.76143894 | E50: -3.12957667 | F50: -10.59404787 | G50: 6.944406999 | H50: 7.470917967 | I50: 19.58827951 | J50: 12.05864088 | K50: -20.57718187 | L50: =SUM(D50:INDEX(D50:K50,0,MATCH('RFPR cover'!$C$7,$D$6:$K$6,0))) -> 1.88293825e-13 | M50: =SUM(D50:K50) -> 1.88293825e-13
A51: b | B51: [Enduring Value adjustment] | C51: ='RFPR cover'!$C$14 -> £m 09/10 | D51: 0 | E51: 0 | F51: 0 | G51: 0 | H51: 0 | I51: 0 | J51: 0 | K51: 0 | L51: =SUM(D51:INDEX(D51:K51,0,MATCH('RFPR cover'!$C$7,$D$6:$K$6,0))) -> 0 | M51: 0
A52: c | B52: [Enduring Value adjustment] | C52: ='RFPR cover'!$C$14 -> £m 09/10 | D52: 0 | E52: 0 | F52: 0 | G52: 0 | H52: 0 | I52: 0 | J52: 0 | K52: 0 | L52: =SUM(D52:INDEX(D52:K52,0,MATCH('RFPR cover'!$C$7,$D$6:$K$6,0))) -> 0 | M52: 0
A53: d | B53: [Enduring Value adjustment] | C53: ='RFPR cover'!$C$14 -> £m 09/10 | D53: 0 | E53: 0 | F53: 0 | G53: 0 | H53: 0 | I53: 0 | J53: 0 | K53: 0 | L53: =SUM(D53:INDEX(D53:K53,0,MATCH('RFPR cover'!$C$7,$D$6:$K$6,0))) -> 0 | M53: 0
A54: e | B54: [Enduring Value adjustment] | C54: ='RFPR cover'!$C$14 -> £m 09/10 | D54: 0 | E54: 0 | F54: 0 | G54: 0 | H54: 0 | I54: 0 | J54: 0 | K54: 0 | L54: =SUM(D54:INDEX(D54:K54,0,MATCH('RFPR cover'!$C$7,$D$6:$K$6,0))) -> 0 | M54: 0
A55: f | B55: [Enduring Value adjustment] | C55: ='RFPR cover'!$C$14 -> £m 09/10 | D55: 0 | E55: 0 | F55: 0 | G55: 0 | H55: 0 | I55: 0 | J55: 0 | K55: 0 | L55: =SUM(D55:INDEX(D55:K55,0,MATCH('RFPR cover'!$C$7,$D$6:$K$6,0))) -> 0 | M55: 0
B56: Total enduring value adjustments | C56: ='RFPR cover'!$C$14 -> £m 09/10 | D56: =SUM(D50:D55) -> -11.76143894 | E56: =SUM(E50:E55) -> -3.12957667 | F56: -10.59404787 | G56: 6.944406999 | H56: 7.470917967 | I56: 19.58827951 | J56: 12.05864088 | K56: -20.57718187 | L56: =SUM(D56:INDEX(D56:K56,0,MATCH('RFPR cover'!$C$7,$D$6:$K$6,0))) -> 1.88293825e-13 | M56: 1.88293825e-13
B58: Enduring Value: Customer share of performance | C58: ='RFPR cover'!$C$14 -> £m 09/10 | D58: =D56*D44 -> -4.347027831 | E58: -1.156691537 | F58: -3.915560093 | G58: 2.566652827 | H58: 2.761251281 | I58: 7.239828105 | J58: 4.456873668 | K58: -7.60532642 | L58: =SUM(D58:INDEX(D58:K58,0,MATCH('RFPR cover'!$C$7,$D$6:$K$6,0))) -> 6.838973832e-14 | M58: =SUM(D58:K58) -> 6.838973832e-14
B59: Enduring Value: NWO share of performance | C59: ='RFPR cover'!$C$14 -> £m 09/10 | D59: =D56*(1-D44) -> -7.414411106 | E59: -1.972885133 | F59: -6.678487778 | G59: 4.377754172 | H59: 4.709666687 | I59: 12.3484514 | J59: 7.601767209 | K59: -12.97185545 | L59: =SUM(D59:INDEX(D59:K59,0,MATCH('RFPR cover'!$C$7,$D$6:$K$6,0))) -> 1.190159082e-13 | M59: =SUM(D59:K59) -> 1.190159082e-13
B61: Total out(under) performance (including enduring value adjustments)
B62: Customer share of performance | C62: ='RFPR cover'!$C$14 -> £m 09/10 | D62: =D46+D58 -> 15.31731905 | E62: =E46+E58 -> 19.39636734 | F62: 13.89539364 | G62: 15.54429087 | H62: 15.54253659 | I62: 9.857993882 | J62: 6.093909669 | K62: -11.38876081 | L62: =SUM(D62:INDEX(D62:K62,0,MATCH('RFPR cover'!$C$7,$D$6:$K$6,0))) -> 84.25905023 | M62: =SUM(D62:K62) -> 84.25905023
B63: NWO share of performance | C63: ='RFPR cover'!$C$14 -> £m 09/10 | D63: =D47+D59 -> 26.12564375 | E63: 33.08298152 | F63: 23.70036838 | G63: 26.51277317 | H63: 26.50978102 | I63: 16.81406749 | J63: 10.39394117 | K63: -19.42498597 | L63: =SUM(D63:INDEX(D63:K63,0,MATCH('RFPR cover'!$C$7,$D$6:$K$6,0))) -> 143.7145705 | M63: =SUM(D63:K63) -> 143.7145705
B64: Total | C64: ='RFPR cover'!$C$14 -> £m 09/10 | D64: =SUM(D62:D63) -> 41.4429628 | E64: =SUM(E62:E63) -> 52.47934886 | F64: 37.59576202 | G64: 42.05706404 | H64: 42.05231761 | I64: 26.67206137 | J64: 16.48785084 | K64: -30.81374678 | L64: =SUM(D64:INDEX(D64:K64,0,MATCH('RFPR cover'!$C$7,$D$6:$K$6,0))) -> 227.9736207 | M64: =SUM(D64:K64) -> 227.9736207
B66: Totex Summary
B68: Total out(under) performance (including enduring value adjustments)
B69: Customer share of performance | C69: ='RFPR cover'!$C$14 -> £m 09/10 | D69: =D34+D62 -> 11.70095218 | E69: =E34+E62 -> 16.30204278 | F69: 11.27559906 | G69: 14.50098476 | H69: 14.3210727 | I69: 5.551894887 | J69: 1.04727897 | K69: -14.53877444 | L69: =SUM(D69:INDEX(D69:K69,0,MATCH('RFPR cover'!$C$7,$D$6:$K$6,0))) -> 60.1610509 | M69: =SUM(D69:K69) -> 60.1610509
B70: NWO share of performance | C70: ='RFPR cover'!$C$14 -> £m 09/10 | D70: =D35+D63 -> 19.95746822 | E70: 27.80521583 | F70: 19.23197416 | G70: 24.73328136 | H70: 24.42641837 | I70: 9.469465738 | J70: 1.786268027 | K70: -24.79773649 | L70: =SUM(D70:INDEX(D70:K70,0,MATCH('RFPR cover'!$C$7,$D$6:$K$6,0))) -> 102.6123552 | M70: =SUM(D70:K70) -> 102.6123552
B71: Total | C71: ='RFPR cover'!$C$14 -> £m 09/10 | D71: =SUM(D69:D70) -> 31.6584204 | E71: =SUM(E69:E70) -> 44.10725861 | F71: 30.50757322 | G71: 39.23426612 | H71: 38.74749107 | I71: 15.02136062 | J71: 2.833546997 | K71: -39.33651093 | L71: =SUM(D71:INDEX(D71:K71,0,MATCH('RFPR cover'!$C$7,$D$6:$K$6,0))) -> 162.7734061 | M71: =SUM(D71:K71) -> 162.7734061
B74: IQI Additional Income
B75: Additional Income is Pre-tax for Fast Track companies and Post-tax for Slow Track.
B77: IQI Additional Income per PCFM | C77: ='RFPR cover'!$C$14 -> £m 09/10 | D77: =INDEX(Data!$C$119:$L$146,MATCH('RFPR cover'!$C$5,Data!$B$119:$B$146,0),MATCH('R4 - Totex'!D$6,Data!$C$118:$L$118,0)) -> 1.222451077 | E77: =INDEX(Data!$C$119:$L$146,MATCH('RFPR cover'!$C$5,Data!$B$119:$B$146,0),MATCH('R4 - Totex'!E$6,Data!$C$118:$L$118,0)) -> 1.219815743 | F77: =INDEX(Data!$C$119:$L$146,MATCH('RFPR cover'!$C$5,Data!$B$119:$B$146,0),MATCH('R4 - Totex'!F$6,Data!$C$118:$L$118,0)) -> 1.294216483 | G77: =INDEX(Data!$C$119:$L$146,MATCH('RFPR cover'!$C$5,Data!$B$119:$B$146,0),MATCH('R4 - Totex'!G$6,Data!$C$118:$L$118,0)) -> 1.259639627 | H77: =INDEX(Data!$C$119:$L$146,MATCH('RFPR cover'!$C$5,Data!$B$119:$B$146,0),MATCH('R4 - Totex'!H$6,Data!$C$118:$L$118,0)) -> 1.284011218 | I77: =INDEX(Data!$C$119:$L$146,MATCH('RFPR cover'!$C$5,Data!$B$119:$B$146,0),MATCH('R4 - Totex'!I$6,Data!$C$118:$L$118,0)) -> 1.267851186 | J77: =INDEX(Data!$C$119:$L$146,MATCH('RFPR cover'!$C$5,Data!$B$119:$B$146,0),MATCH('R4 - Totex'!J$6,Data!$C$118:$L$118,0)) -> 1.259201906 | K77: =INDEX(Data!$C$119:$L$146,MATCH('RFPR cover'!$C$5,Data!$B$119:$B$146,0),MATCH('R4 - Totex'!K$6,Data!$C$118:$L$118,0)) -> 1.257376659 | L77: =SUM(D77:INDEX(D77:K77,0,MATCH('RFPR cover'!$C$7,$D$6:$K$6,0))) -> 10.0645639 | M77: =SUM(D77:K77) -> 10.0645639
B78: Corporation tax rate when recognised in allowed revenue | C78: % | D78: =IF(INDEX(Data!$J$73:$J$100,MATCH('RFPR cover'!$C$5,Data!$B$73:$B$100,0),0)="Pre",INDEX(Data!$G$18:$G$27,MATCH('R4 - Totex'!D$6,Data!$C$18:$C$27,0),0),"n/a") -> 0.23 | E78: =IF(INDEX(Data!$J$73:$J$100,MATCH('RFPR cover'!$C$5,Data!$B$73:$B$100,0),0)="Pre",INDEX(Data!$G$18:$G$27,MATCH('R4 - Totex'!E$6,Data!$C$18:$C$27,0),0),"n/a") -> 0.21 | F78: =IF(INDEX(Data!$J$73:$J$100,MATCH('RFPR cover'!$C$5,Data!$B$73:$B$100,0),0)="Pre",INDEX(Data!$G$18:$G$27,MATCH('R4 - Totex'!F$6,Data!$C$18:$C$27,0),0),"n/a") -> 0.2 | G78: =IF(INDEX(Data!$J$73:$J$100,MATCH('RFPR cover'!$C$5,Data!$B$73:$B$100,0),0)="Pre",INDEX(Data!$G$18:$G$27,MATCH('R4 - Totex'!G$6,Data!$C$18:$C$27,0),0),"n/a") -> 0.2 | H78: =IF(INDEX(Data!$J$73:$J$100,MATCH('RFPR cover'!$C$5,Data!$B$73:$B$100,0),0)="Pre",INDEX(Data!$G$18:$G$27,MATCH('R4 - Totex'!H$6,Data!$C$18:$C$27,0),0),"n/a") -> 0.19 | I78: =IF(INDEX(Data!$J$73:$J$100,MATCH('RFPR cover'!$C$5,Data!$B$73:$B$100,0),0)="Pre",INDEX(Data!$G$18:$G$27,MATCH('R4 - Totex'!I$6,Data!$C$18:$C$27,0),0),"n/a") -> 0.19 | J78: =IF(INDEX(Data!$J$73:$J$100,MATCH('RFPR cover'!$C$5,Data!$B$73:$B$100,0),0)="Pre",INDEX(Data!$G$18:$G$27,MATCH('R4 - Totex'!J$6,Data!$C$18:$C$27,0),0),"n/a") -> 0.19 | K78: =IF(INDEX(Data!$J$73:$J$100,MATCH('RFPR cover'!$C$5,Data!$B$73:$B$100,0),0)="Pre",INDEX(Data!$G$18:$G$27,MATCH('R4 - Totex'!K$6,Data!$C$18:$C$27,0),0),"n/a") -> 0.19
B79: Post tax | C79: ='RFPR cover'!$C$14 -> £m 09/10 | D79: =IF(ISNUMBER(D78),D77*(1-D78),D77) -> 0.9412873291 | E79: =IF(ISNUMBER(E78),E77*(1-E78),E77) -> 0.9636544369 | F79: 1.035373186 | G79: 1.007711702 | H79: 1.040049087 | I79: 1.02695946 | J79: 1.019953543 | K79: 1.018475093 | L79: =SUM(D79:INDEX(D79:K79,0,MATCH('RFPR cover'!$C$7,$D$6:$K$6,0))) -> 8.053463838 | M79: =SUM(D79:K79) -> 8.053463838
B84: £m Nominal
B86: =Data!B34 -> Financial Year Average RPI (RPIt) | C86: Index | D86: =Data!C$34 -> 1.166689067 | E86: =Data!D$34 -> 1.189556327 | F86: =Data!E$34 -> 1.202375711 | G86: =Data!F$34 -> 1.228139614 | H86: =Data!G$34 -> 1.274096595 | I86: =Data!H$34 -> 1.313027479 | J86: =Data!I$34 -> 1.347017848 | K86: =Data!J$34 -> 1.363354915
B88: =B10 -> Totex excluding repex
B90: Latest Totex actuals/forecast | C90: £m nominal | D90: =D12*D$86 -> 143.1582357 | E90: 128.7392969 | F90: 127.6960662 | G90: 134.3916086 | H90: 143.6674617 | I90: 150.4390017 | J90: 164.074642 | K90: 163.3360024 | L90: =SUM(D90:INDEX(D90:K90,0,MATCH('RFPR cover'!$C$7,$D$6:$K$6,0))) -> 1155.502315 | M90: =SUM(D90:K90) -> 1155.502315
B91: Totex allowance including forecast allowed adjustments and uncertainty mechanisms | C91: £m nominal | D91: 123.3206541 | E91: 124.2183137 | F91: 134.2854886 | G91: 136.9907948 | H91: 143.1435714 | I91: 143.182457 | J91: 134.9788601 | K91: 129.9949847 | L91: =SUM(D91:INDEX(D91:K91,0,MATCH('RFPR cover'!$C$7,$D$6:$K$6,0))) -> 1070.115124 | M91: =SUM(D91:K91) -> 1070.115124
B92: Totex out(under)performance | C92: £m nominal | D92: =D91-D90 -> -19.83758157 | E92: =E91-E90 -> -4.520983146 | F92: 6.58942241 | G92: 2.599186239 | H92: -0.5238903005 | I92: -7.256544682 | J92: -29.09578192 | K92: -33.34101767 | L92: -85.38719064 | M92: -85.38719064
B94: Funding Adjustment Rate (often referred to as 'sharing factor') | C94: % | D94: =1-INDEX(Data!$D$73:$D$100,MATCH('RFPR cover'!$C$5,Data!$B$73:$B$100,0),0) -> 0.3696 | E94: =1-INDEX(Data!$D$73:$D$100,MATCH('RFPR cover'!$C$5,Data!$B$73:$B$100,0),0) -> 0.3696 | F94: =1-INDEX(Data!$D$73:$D$100,MATCH('RFPR cover'!$C$5,Data!$B$73:$B$100,0),0) -> 0.3696 | G94: =1-INDEX(Data!$D$73:$D$100,MATCH('RFPR cover'!$C$5,Data!$B$73:$B$100,0),0) -> 0.3696 | H94: =1-INDEX(Data!$D$73:$D$100,MATCH('RFPR cover'!$C$5,Data!$B$73:$B$100,0),0) -> 0.3696 | I94: =1-INDEX(Data!$D$73:$D$100,MATCH('RFPR cover'!$C$5,Data!$B$73:$B$100,0),0) -> 0.3696 | J94: =1-INDEX(Data!$D$73:$D$100,MATCH('RFPR cover'!$C$5,Data!$B$73:$B$100,0),0) -> 0.3696 | K94: =1-INDEX(Data!$D$73:$D$100,MATCH('RFPR cover'!$C$5,Data!$B$73:$B$100,0),0) -> 0.3696
B96: Customer share of out(under) performance | C96: £m nominal | D96: =D92*D94 -> -7.33197015 | E96: =E92*E94 -> -1.670955371 | F96: 2.435450523 | G96: 0.960659234 | H96: -0.1936298551 | I96: -2.682018914 | J96: -10.753801 | K96: -12.32284013 | L96: =SUM(D96:INDEX(D96:K96,0,MATCH('RFPR cover'!$C$7,$D$6:$K$6,0))) -> -31.55910566 | M96: =SUM(D96:K96) -> -31.55910566
B97: NWO share of performance | C97: £m nominal | D97: =D92*(1-D94) -> -12.50561142 | E97: =E92*(1-E94) -> -2.850027775 | F97: 4.153971888 | G97: 1.638527005 | H97: -0.3302604454 | I97: -4.574525767 | J97: -18.34198092 | K97: -21.01817754 | L97: =SUM(D97:INDEX(D97:K97,0,MATCH('RFPR cover'!$C$7,$D$6:$K$6,0))) -> -53.82808498 | M97: =SUM(D97:K97) -> -53.82808498
B99: Enduring Value adjustments to Totex performance
A100: a | B100: =B22 -> Gas Holders | C100: £m nominal | D100: =D22*D$86 -> 15.21017003 | E100: 2.135872464 | F100: -2.346619486 | G100: -3.163910204 | H100: -3.282303716 | I100: -3.382596728 | J100: -3.470162079 | K100: -3.512249325 | L100: =SUM(D100:INDEX(D100:K100,0,MATCH('RFPR cover'!$C$7,$D$6:$K$6,0))) -> -1.811799042 | M100: =SUM(D100:K100) -> -1.811799042
A101: b | B101: Capex Enduring Value | C101: £m nominal | D101: -6.788107101 | E101: -7.573962244 | F101: -12.76546897 | G101: -2.902065986 | H101: -0.4044742221 | I101: -4.658548813 | J101: 14.17335302 | K101: 25.2337146 | L101: =SUM(D101:INDEX(D101:K101,0,MATCH('RFPR cover'!$C$7,$D$6:$K$6,0))) -> 4.314440289 | M101: 4.314440289
A102: c | B102: [Enduring Value adjustment] | C102: £m nominal | D102: 0 | E102: 0 | F102: 0 | G102: 0 | H102: 0 | I102: 0 | J102: 0 | K102: 0 | L102: =SUM(D102:INDEX(D102:K102,0,MATCH('RFPR cover'!$C$7,$D$6:$K$6,0))) -> 0 | M102: 0
A103: d | B103: [Enduring Value adjustment] | C103: £m nominal | D103: 0 | E103: 0 | F103: 0 | G103: 0 | H103: 0 | I103: 0 | J103: 0 | K103: 0 | L103: =SUM(D103:INDEX(D103:K103,0,MATCH('RFPR cover'!$C$7,$D$6:$K$6,0))) -> 0 | M103: 0
A104: e | B104: [Enduring Value adjustment] | C104: £m nominal | D104: 0 | E104: 0 | F104: 0 | G104: 0 | H104: 0 | I104: 0 | J104: 0 | K104: 0 | L104: =SUM(D104:INDEX(D104:K104,0,MATCH('RFPR cover'!$C$7,$D$6:$K$6,0))) -> 0 | M104: 0
A105: f | B105: [Enduring Value adjustment] | C105: £m nominal | D105: 0 | E105: 0 | F105: 0 | G105: 0 | H105: 0 | I105: 0 | J105: 0 | K105: 0 | L105: =SUM(D105:INDEX(D105:K105,0,MATCH('RFPR cover'!$C$7,$D$6:$K$6,0))) -> 0 | M105: 0
B106: Total enduring value adjustments | C106: £m nominal | D106: =SUM(D100:D105) -> 8.42206293 | E106: =SUM(E100:E105) -> -5.43808978 | F106: -15.11208846 | G106: -6.06597619 | H106: -3.686777938 | I106: -8.04114554 | J106: 10.70319094 | K106: 21.72146528 | L106: =SUM(D106:INDEX(D106:K106,0,MATCH('RFPR cover'!$C$7,$D$6:$K$6,0))) -> 2.502641246 | M106: 2.502641246
B108: Enduring Value: Customer share of performance | C108: £m nominal | D108: =D106*D94 -> 3.112794459 | E108: -2.009917983 | F108: -5.585427893 | G108: -2.2419848 | H108: -1.362633126 | I108: -2.972007392 | J108: 3.955899373 | K108: 8.028253567 | L108: =SUM(D108:INDEX(D108:K108,0,MATCH('RFPR cover'!$C$7,$D$6:$K$6,0))) -> 0.9249762047 | M108: =SUM(D108:K108) -> 0.9249762047
B109: Enduring Value: NWO share of performance | C109: £m nominal | D109: =D106*(1-D94) -> 5.309268471 | E109: -3.428171797 | F109: -9.526660563 | G109: -3.82399139 | H109: -2.324144812 | I109: -5.069138149 | J109: 6.747291571 | K109: 13.69321171 | L109: =SUM(D109:INDEX(D109:K109,0,MATCH('RFPR cover'!$C$7,$D$6:$K$6,0))) -> 1.577665042 | M109: =SUM(D109:K109) -> 1.577665042
B111: Total out(under) performance (including enduring value adjustments)
B112: Customer share of performance | C112: £m nominal | D112: =D96+D108 -> -4.219175691 | E112: =E96+E108 -> -3.680873353 | F112: -3.14997737 | G112: -1.281325566 | H112: -1.556262981 | I112: -5.654026306 | J112: -6.797901623 | K112: -4.294586563 | L112: =SUM(D112:INDEX(D112:K112,0,MATCH('RFPR cover'!$C$7,$D$6:$K$6,0))) -> -30.63412945 | M112: =SUM(D112:K112) -> -30.63412945
B113: NWO share of performance | C113: £m nominal | D113: =D97+D109 -> -7.196342954 | E113: -6.278199572 | F113: -5.372688675 | G113: -2.185464385 | H113: -2.654405258 | I113: -9.643663916 | J113: -11.59468935 | K113: -7.324965826 | L113: =SUM(D113:INDEX(D113:K113,0,MATCH('RFPR cover'!$C$7,$D$6:$K$6,0))) -> -52.25041994 | M113: =SUM(D113:K113) -> -52.25041994
B114: Total | C114: £m nominal | D114: =SUM(D112:D113) -> -11.41551865 | E114: =SUM(E112:E113) -> -9.959072926 | F114: -8.522666045 | G114: -3.466789951 | H114: -4.210668239 | I114: -15.29769022 | J114: -18.39259097 | K114: -11.61955239 | L114: =SUM(D114:INDEX(D114:K114,0,MATCH('RFPR cover'!$C$7,$D$6:$K$6,0))) -> -82.88454939 | M114: =SUM(D114:K114) -> -82.88454939
B116: =B38 -> Repex
B118: Latest Totex actuals/forecast | C118: £m nominal | D118: =D40*D$86 -> 90.18196933 | E118: 91.64948372 | F118: 110.4015204 | G118: 121.2104605 | H118: 119.4515878 | I118: 153.7357766 | J118: 170.8444781 | K118: 191.8161708 | L118: =SUM(D118:INDEX(D118:K118,0,MATCH('RFPR cover'!$C$7,$D$6:$K$6,0))) -> 1049.291447 | M118: =SUM(D118:K118) -> 1049.291447
B119: Totex allowance including forecast allowed adjustments and uncertainty mechanisms | C119: £m nominal | D119: 152.2549632 | E119: 157.7994329 | F119: 168.3437773 | G119: 164.3337056 | H119: 163.5116314 | I119: 163.0369769 | J119: 176.8107029 | K119: 177.8600997 | L119: =SUM(D119:INDEX(D119:K119,0,MATCH('RFPR cover'!$C$7,$D$6:$K$6,0))) -> 1323.95129 | M119: =SUM(D119:K119) -> 1323.95129
B120: Totex out(under)performance | C120: £m nominal | D120: =D119-D118 -> 62.07299384 | E120: =E119-E118 -> 66.1499492 | F120: 57.94225692 | G120: 43.12324505 | H120: 44.06004353 | I120: 9.301200238 | J120: 5.966224867 | K120: -13.95607108 | L120: 274.6598426 | M120: 274.6598426
B122: Funding Adjustment Rate (often referred to as 'sharing factor') | C122: % | D122: =1-INDEX(Data!$D$73:$D$100,MATCH('RFPR cover'!$C$5,Data!$B$73:$B$100,0),0) -> 0.3696 | E122: =1-INDEX(Data!$D$73:$D$100,MATCH('RFPR cover'!$C$5,Data!$B$73:$B$100,0),0) -> 0.3696 | F122: =1-INDEX(Data!$D$73:$D$100,MATCH('RFPR cover'!$C$5,Data!$B$73:$B$100,0),0) -> 0.3696 | G122: =1-INDEX(Data!$D$73:$D$100,MATCH('RFPR cover'!$C$5,Data!$B$73:$B$100,0),0) -> 0.3696 | H122: =1-INDEX(Data!$D$73:$D$100,MATCH('RFPR cover'!$C$5,Data!$B$73:$B$100,0),0) -> 0.3696 | I122: =1-INDEX(Data!$D$73:$D$100,MATCH('RFPR cover'!$C$5,Data!$B$73:$B$100,0),0) -> 0.3696 | J122: =1-INDEX(Data!$D$73:$D$100,MATCH('RFPR cover'!$C$5,Data!$B$73:$B$100,0),0) -> 0.3696 | K122: =1-INDEX(Data!$D$73:$D$100,MATCH('RFPR cover'!$C$5,Data!$B$73:$B$100,0),0) -> 0.3696
B124: Customer share of out(under) performance | C124: £m nominal | D124: =D120*D122 -> 22.94217852 | E124: =E120*E122 -> 24.44902122 | F124: 21.41545816 | G124: 15.93835137 | H124: 16.28459209 | I124: 3.437723608 | J124: 2.205116711 | K124: -5.158163873 | L124: =SUM(D124:INDEX(D124:K124,0,MATCH('RFPR cover'!$C$7,$D$6:$K$6,0))) -> 101.5142778 | M124: =SUM(D124:K124) -> 101.5142778
B125: NO share of performance | C125: £m nominal | D125: =D120*(1-D122) -> 39.13081532 | E125: =E120*(1-E122) -> 41.70092798 | F125: 36.52679876 | G125: 27.18489368 | H125: 27.77545144 | I125: 5.86347663 | J125: 3.761108156 | K125: -8.797907211 | L125: =SUM(D125:INDEX(D125:K125,0,MATCH('RFPR cover'!$C$7,$D$6:$K$6,0))) -> 173.1455647 | M125: =SUM(D125:K125) -> 173.1455647
B127: Enduring Value adjustments to Totex performance
A128: a | B128: =B50 -> Repex Enduring Value | C128: £m nominal | D128: =D50*D$86 -> -13.72194222 | E128: -3.722807729 | F128: -12.73802584 | G128: 8.528701329 | H128: 9.518671143 | I128: 25.71994925 | J128: 16.24320448 | K128: -28.05400205 | L128: =SUM(D128:INDEX(D128:K128,0,MATCH('RFPR cover'!$C$7,$D$6:$K$6,0))) -> 1.773748368 | M128: =SUM(D128:K128) -> 1.773748368
A129: b | B129: [Enduring Value adjustment] | C129: £m nominal | D129: 0 | E129: 0 | F129: 0 | G129: 0 | H129: 0 | I129: 0 | J129: 0 | K129: 0 | L129: =SUM(D129:INDEX(D129:K129,0,MATCH('RFPR cover'!$C$7,$D$6:$K$6,0))) -> 0 | M129: 0
A130: c | B130: [Enduring Value adjustment] | C130: £m nominal | D130: 0 | E130: 0 | F130: 0 | G130: 0 | H130: 0 | I130: 0 | J130: 0 | K130: 0 | L130: =SUM(D130:INDEX(D130:K130,0,MATCH('RFPR cover'!$C$7,$D$6:$K$6,0))) -> 0 | M130: 0
A131: d | B131: [Enduring Value adjustment] | C131: £m nominal | D131: 0 | E131: 0 | F131: 0 | G131: 0 | H131: 0 | I131: 0 | J131: 0 | K131: 0 | L131: =SUM(D131:INDEX(D131:K131,0,MATCH('RFPR cover'!$C$7,$D$6:$K$6,0))) -> 0 | M131: 0
A132: e | B132: [Enduring Value adjustment] | C132: £m nominal | D132: 0 | E132: 0 | F132: 0 | G132: 0 | H132: 0 | I132: 0 | J132: 0 | K132: 0 | L132: =SUM(D132:INDEX(D132:K132,0,MATCH('RFPR cover'!$C$7,$D$6:$K$6,0))) -> 0 | M132: 0
A133: f | B133: [Enduring Value adjustment] | C133: £m nominal | D133: 0 | E133: 0 | F133: 0 | G133: 0 | H133: 0 | I133: 0 | J133: 0 | K133: 0 | L133: =SUM(D133:INDEX(D133:K133,0,MATCH('RFPR cover'!$C$7,$D$6:$K$6,0))) -> 0 | M133: 0
B134: Total enduring value adjustments | C134: £m nominal | D134: =SUM(D128:D133) -> -13.72194222 | E134: =SUM(E128:E133) -> -3.722807729 | F134: -12.73802584 | G134: 8.528701329 | H134: 9.518671143 | I134: 25.71994925 | J134: 16.24320448 | K134: -28.05400205 | L134: =SUM(D134:INDEX(D134:K134,0,MATCH('RFPR cover'!$C$7,$D$6:$K$6,0))) -> 1.773748368 | M134: 1.773748368
B136: Enduring Value: Customer share of performance | C136: £m nominal | D136: =D134*D122 -> -5.071629846 | E136: -1.375949736 | F136: -4.70797435 | G136: 3.152208011 | H136: 3.518100855 | I136: 9.506093244 | J136: 6.003488377 | K136: -10.36875916 | L136: =SUM(D136:INDEX(D136:K136,0,MATCH('RFPR cover'!$C$7,$D$6:$K$6,0))) -> 0.6555773968 | M136: =SUM(D136:K136) -> 0.6555773968
B137: Enduring Value: NWO share of performance | C137: £m nominal | D137: =D134*(1-D122) -> -8.650312378 | E137: -2.346857992 | F137: -8.030051489 | G137: 5.376493318 | H137: 6.000570289 | I137: 16.21385601 | J137: 10.23971611 | K137: -17.68524289 | L137: =SUM(D137:INDEX(D137:K137,0,MATCH('RFPR cover'!$C$7,$D$6:$K$6,0))) -> 1.118170971 | M137: =SUM(D137:K137) -> 1.118170971
B139: Total out(under) performance (including enduring value adjustments)
B140: Customer share of performance | C140: £m nominal | D140: =D124+D136 -> 17.87054868 | E140: =E124+E136 -> 23.07307149 | F140: 16.70748381 | G140: 19.09055938 | H140: 19.80269294 | I140: 12.94381685 | J140: 8.208605088 | K140: -15.52692303 | L140: =SUM(D140:INDEX(D140:K140,0,MATCH('RFPR cover'!$C$7,$D$6:$K$6,0))) -> 102.1698552 | M140: =SUM(D140:K140) -> 102.1698552
B141: NWO share of performance | C141: £m nominal | D141: =D125+D137 -> 30.48050294 | E141: 39.35406998 | F141: 28.49674727 | G141: 32.561387 | H141: 33.77602173 | I141: 22.07733264 | J141: 14.00082426 | K141: -26.4831501 | L141: =SUM(D141:INDEX(D141:K141,0,MATCH('RFPR cover'!$C$7,$D$6:$K$6,0))) -> 174.2637357 | M141: =SUM(D141:K141) -> 174.2637357
B142: Total | C142: £m nominal | D142: =SUM(D140:D141) -> 48.35105162 | E142: =SUM(E140:E141) -> 62.42714147 | F142: 45.20423108 | G142: 51.65194638 | H142: 53.57871467 | I142: 35.02114949 | J142: 22.20942935 | K142: -42.01007313 | L142: =SUM(D142:INDEX(D142:K142,0,MATCH('RFPR cover'!$C$7,$D$6:$K$6,0))) -> 276.4335909 | M142: =SUM(D142:K142) -> 276.4335909
B144: Totex Summary
B146: Total out(under) performance (including enduring value adjustments)
B147: Customer share of performance | C147: £m nominal | D147: =D112+D140 -> 13.65137299 | E147: =E112+E140 -> 19.39219813 | F147: 13.55750644 | G147: 17.80923381 | H147: 18.24642996 | I147: 7.289790546 | J147: 1.410703464 | K147: -19.82150959 | L147: =SUM(D147:INDEX(D147:K147,0,MATCH('RFPR cover'!$C$7,$D$6:$K$6,0))) -> 71.53572575 | M147: =SUM(D147:K147) -> 71.53572575
B148: NWO share of performance | C148: £m nominal | D148: =D113+D141 -> 23.28415998 | E148: 33.07587041 | F148: 23.1240586 | G148: 30.37592261 | H148: 31.12161647 | I148: 12.43366872 | J148: 2.406134913 | K148: -33.80811593 | L148: =SUM(D148:INDEX(D148:K148,0,MATCH('RFPR cover'!$C$7,$D$6:$K$6,0))) -> 122.0133158 | M148: =SUM(D148:K148) -> 122.0133158
B149: Total | C149: £m nominal | D149: =SUM(D147:D148) -> 36.93553297 | E149: =SUM(E147:E148) -> 52.46806855 | F149: 36.68156504 | G149: 48.18515643 | H149: 49.36804643 | I149: 19.72345927 | J149: 3.816838378 | K149: -53.62962552 | L149: =SUM(D149:INDEX(D149:K149,0,MATCH('RFPR cover'!$C$7,$D$6:$K$6,0))) -> 193.5490415 | M149: =SUM(D149:K149) -> 193.5490415

Sheet R5 - Output Incentives
A1: R5 - Output Incentives
A2: ='RFPR cover'!C5 -> Cadent-London
A3: ='RFPR cover'!C7 -> 2021
D5: =IF(D6<='RFPR cover'!$C$7,"Actuals","Forecast") -> Actuals | E5: =IF(E6<='RFPR cover'!$C$7,"Actuals","Forecast") -> Actuals | F5: =IF(F6<='RFPR cover'!$C$7,"Actuals","Forecast") -> Actuals | G5: =IF(G6<='RFPR cover'!$C$7,"Actuals","Forecast") -> Actuals | H5: =IF(H6<='RFPR cover'!$C$7,"Actuals","Forecast") -> Actuals | I5: =IF(I6<='RFPR cover'!$C$7,"Actuals","Forecast") -> Actuals | J5: =IF(J6<='RFPR cover'!$C$7,"Actuals","Forecast") -> Actuals | K5: =IF(K6<='RFPR cover'!$C$7,"Actuals","Forecast") -> Actuals
D6: ='RFPR cover'!$C$13 -> 2014 | E6: =D6+1 -> 2015 | F6: =E6+1 -> 2016 | G6: 2017 | H6: 2018 | I6: 2019 | J6: 2020 | K6: 2021 | L6: ="Cumulative to "&'RFPR cover'!$C$7 -> Cumulative to 2021 | M6: RIIO-1 period
B8: Pre-tax Earned Incentives (Actuals may be updated once all incentives are determined)
B9: These values exclude any inflation, interest or time value of money adjustments
A11: a | B11: =Data!B153 -> Broad Measure of Customer Satisfaction | C11: ='RFPR cover'!$C$14 -> £m 09/10 | D11: 0.4346486474 | E11: 0.08412765591 | F11: 0.9560817361 | G11: 0.9038596339 | H11: 0.8729322546 | I11: 1.107047474 | J11: 1.957017232 | K11: 2.278413725 | L11: =SUM(D11:INDEX(D11:K11,0,MATCH('RFPR cover'!$C$7,$D$6:$K$6,0))) -> 8.59412836 | M11: =SUM(D11:K11) -> 8.59412836
A12: b | B12: =Data!B154 -> Shrinkage Allowance Revenue Adjustment | C12: ='RFPR cover'!$C$14 -> £m 09/10 | D12: 0.4956323387 | E12: 0.3455791117 | F12: 0.2492584965 | G12: 0.2074744875 | H12: 0.3264274819 | I12: 0.5800610494 | J12: 0.3268097639 | K12: 0.3183952589 | L12: =SUM(D12:INDEX(D12:K12,0,MATCH('RFPR cover'!$C$7,$D$6:$K$6,0))) -> 2.849637989 | M12: 2.849637989
A13: c | B13: =Data!B155 -> Environment Emissions Incentive | C13: ='RFPR cover'!$C$14 -> £m 09/10 | D13: 1.560222504 | E13: 1.52026946 | F13: 1.415723503 | G13: 1.249493333 | H13: 1.710842332 | I13: 2.463206674 | J13: 2.831953695 | K13: 3.048062271 | L13: =SUM(D13:INDEX(D13:K13,0,MATCH('RFPR cover'!$C$7,$D$6:$K$6,0))) -> 15.79977377 | M13: 15.79977377
A14: d | B14: =Data!B156 -> Discretionary Reward Scheme | C14: ='RFPR cover'!$C$14 -> £m 09/10 | D14: 0.04658689285 | E14: 0.04658689285 | F14: 0.02957416307 | G14: 0.02957416307 | H14: 0.02957416307 | I14: 0 | J14: 0 | K14: 0 | L14: =SUM(D14:INDEX(D14:K14,0,MATCH('RFPR cover'!$C$7,$D$6:$K$6,0))) -> 0.1818962749 | M14: 0.1818962749
A15: e | B15: =Data!B157 -> NTS Exit Capacity | C15: ='RFPR cover'!$C$14 -> £m 09/10 | D15: 1.11748015 | E15: 1.25256676 | F15: 4.42579722 | G15: 3.23372396 | H15: 3.13358779 | I15: 3.07606325 | J15: 2.42951066 | K15: 1.81727274 | L15: =SUM(D15:INDEX(D15:K15,0,MATCH('RFPR cover'!$C$7,$D$6:$K$6,0))) -> 20.48600253 | M15: 20.48600253
A16: f | B16: =Data!B158 ->  | C16: ='RFPR cover'!$C$14 -> £m 09/10 | D16: 0 | E16: 0 | F16: 0 | G16: 0 | H16: 0 | I16: 0 | J16: 0 | K16: 0 | L16: =SUM(D16:INDEX(D16:K16,0,MATCH('RFPR cover'!$C$7,$D$6:$K$6,0))) -> 0 | M16: 0
A17: g | B17: =Data!B159 ->  | C17: ='RFPR cover'!$C$14 -> £m 09/10 | D17: 0 | E17: 0 | F17: 0 | G17: 0 | H17: 0 | I17: 0 | J17: 0 | K17: 0 | L17: =SUM(D17:INDEX(D17:K17,0,MATCH('RFPR cover'!$C$7,$D$6:$K$6,0))) -> 0 | M17: 0
B18: Earned Incentive revenue | C18: ='RFPR cover'!$C$14 -> £m 09/10 | D18: =SUM(D11:D17) -> 3.654570532 | E18: =SUM(E11:E17) -> 3.24912988 | F18: 7.076435119 | G18: 5.624125578 | H18: 6.073364021 | I18: 7.226378447 | J18: 7.545291351 | K18: 7.462143995 | L18: =SUM(L11:L17) -> 47.91143892 | M18: =SUM(M11:M17) -> 47.91143892
B20: Additional Commentary
A21: =A11 -> a
A22: =A12 -> b
A23: =A13 -> c
A24: =A14 -> d
A25: =A15 -> e
A26: f
A27: g
B30: Post-tax Earned Incentives (Actuals may be updated once all incentives are determined)
B32: Year tax paid when incentive recognised in allowed revenue. Select from dropdown in Column C
B33: -
B34: t+0
B35: t+1
B36: t+2
B37: t+3
A39: =A11 -> a | B39: =$B$11&"" -> Broad Measure of Customer Satisfaction | C39: ='RFPR cover'!$C$14 -> £m 09/10 | D39: =D51 -> 0.3477189179 | E39: =E51 -> 0.06730212473 | F39: 0.7744262062 | G39: 0.7321263034 | H39: 0.7070751262 | I39: 0.8967084543 | J39: 1.585183958 | K39: 1.845515117 | L39: =SUM(D39:INDEX(D39:K39,0,MATCH('RFPR cover'!$C$7,$D$6:$K$6,0))) -> 6.956056208 | M39: =SUM(D39:K39) -> 6.956056208
A40: b | B40: =$B$12&"" -> Shrinkage Allowance Revenue Adjustment | C40: ='RFPR cover'!$C$14 -> £m 09/10 | D40: =D55 -> 0.396505871 | E40: =E55 -> 0.2764632894 | F40: 0.2018993822 | G40: 0.1680543349 | H40: 0.2644062603 | I40: 0.46984945 | J40: 0.2647159087 | K40: 0.2579001597 | L40: =SUM(D40:INDEX(D40:K40,0,MATCH('RFPR cover'!$C$7,$D$6:$K$6,0))) -> 2.299794656 | M40: 2.299794656
A41: c | B41: =$B$13&"" -> Environment Emissions Incentive | C41: ='RFPR cover'!$C$14 -> £m 09/10 | D41: =D59 -> 1.248178003 | E41: =E59 -> 1.216215568 | F41: 1.146736037 | G41: 1.0120896 | H41: 1.385782289 | I41: 1.995197406 | J41: 2.293882493 | K41: 2.468930439 | L41: =SUM(D41:INDEX(D41:K41,0,MATCH('RFPR cover'!$C$7,$D$6:$K$6,0))) -> 12.76701183 | M41: 12.76701183
A42: d | B42: =$B$14&"" -> Discretionary Reward Scheme | C42: ='RFPR cover'!$C$14 -> £m 09/10 | D42: =D63 -> 0.03726951428 | E42: =E63 -> 0.03726951428 | F42: 0.02395507208 | G42: 0.02395507208 | H42: 0.02395507208 | I42: 0 | J42: 0 | K42: 0 | L42: =SUM(D42:INDEX(D42:K42,0,MATCH('RFPR cover'!$C$7,$D$6:$K$6,0))) -> 0.1464042448 | M42: 0.1464042448
A43: e | B43: =$B$15&"" -> NTS Exit Capacity | C43: ='RFPR cover'!$C$14 -> £m 09/10 | D43: =D67 -> 0.89398412 | E43: =E67 -> 1.002053408 | F43: 3.584895748 | G43: 2.619316408 | H43: 2.53820611 | I43: 2.491611232 | J43: 1.967903635 | K43: 1.471990919 | L43: =SUM(D43:INDEX(D43:K43,0,MATCH('RFPR cover'!$C$7,$D$6:$K$6,0))) -> 16.56996158 | M43: 16.56996158
A44: f | B44: =$B$16&"" ->  | C44: ='RFPR cover'!$C$14 -> £m 09/10 | D44: =D71 -> 0 | E44: =E71 -> 0 | F44: 0 | G44: 0 | H44: 0 | I44: 0 | J44: 0 | K44: 0 | L44: =SUM(D44:INDEX(D44:K44,0,MATCH('RFPR cover'!$C$7,$D$6:$K$6,0))) -> 0 | M44: 0
A45: g | B45: =$B$17&"" ->  | C45: ='RFPR cover'!$C$14 -> £m 09/10 | D45: =D75 -> 0 | E45: =E75 -> 0 | F45: 0 | G45: 0 | H45: 0 | I45: 0 | J45: 0 | K45: 0 | L45: =SUM(D45:INDEX(D45:K45,0,MATCH('RFPR cover'!$C$7,$D$6:$K$6,0))) -> 0 | M45: 0
B46: Post-Tax Earned Incentive revenue | C46: ='RFPR cover'!$C$14 -> £m 09/10 | D46: =SUM(D39:D45) -> 2.923656426 | E46: =SUM(E39:E45) -> 2.599303904 | F46: 5.731912446 | G46: 4.555541718 | H46: 4.919424857 | I46: 5.853366542 | J46: 6.111685995 | K46: 6.044336636 | L46: 38.73922852 | M46: 38.73922852
A49: =$A$11 -> a | B49: =INDEX($B$11:$B$15,MATCH($A49,$A$11:$A$15,0),0)&"" -> Broad Measure of Customer Satisfaction | C49: ='RFPR cover'!$C$14 -> £m 09/10 | D49: =INDEX($D$11:$K$17,MATCH($A49,$A$11:$A$17,0),0) -> 0.4346486474 | E49: =INDEX($D$11:$K$17,MATCH($A49,$A$11:$A$17,0),0) -> 0.08412765591 | F49: 0.9560817361 | G49: 0.9038596339 | H49: 0.8729322546 | I49: 1.107047474 | J49: 1.957017232 | K49: 2.278413725 | L49: =SUM(D49:INDEX(D49:K49,0,MATCH('RFPR cover'!$C$7,$D$6:$K$6,0))) -> 8.59412836 | M49: =SUM(D49:K49) -> 8.59412836
B50: Corporation tax rate when recognised in allowed revenue | C50: t+2 | D50: =IF($C50=$B$33,$B$33,INDEX(Data!$G$14:$G$30,MATCH('R5 - Output Incentives'!D$6+RIGHT('R5 - Output Incentives'!$C50,2),Data!$C$14:$C$30,0),0)) -> 0.2 | E50: =IF($C50=$B$33,$B$33,INDEX(Data!$G$14:$G$30,MATCH('R5 - Output Incentives'!E$6+RIGHT('R5 - Output Incentives'!$C50,2),Data!$C$14:$C$30,0),0)) -> 0.2 | F50: =IF($C50=$B$33,$B$33,INDEX(Data!$G$14:$G$30,MATCH('R5 - Output Incentives'!F$6+RIGHT('R5 - Output Incentives'!$C50,2),Data!$C$14:$C$30,0),0)) -> 0.19 | G50: =IF($C50=$B$33,$B$33,INDEX(Data!$G$14:$G$30,MATCH('R5 - Output Incentives'!G$6+RIGHT('R5 - Output Incentives'!$C50,2),Data!$C$14:$C$30,0),0)) -> 0.19 | H50: =IF($C50=$B$33,$B$33,INDEX(Data!$G$14:$G$30,MATCH('R5 - Output Incentives'!H$6+RIGHT('R5 - Output Incentives'!$C50,2),Data!$C$14:$C$30,0),0)) -> 0.19 | I50: =IF($C50=$B$33,$B$33,INDEX(Data!$G$14:$G$30,MATCH('R5 - Output Incentives'!I$6+RIGHT('R5 - Output Incentives'!$C50,2),Data!$C$14:$C$30,0),0)) -> 0.19 | J50: =IF($C50=$B$33,$B$33,INDEX(Data!$G$14:$G$30,MATCH('R5 - Output Incentives'!J$6+RIGHT('R5 - Output Incentives'!$C50,2),Data!$C$14:$C$30,0),0)) -> 0.19 | K50: =IF($C50=$B$33,$B$33,INDEX(Data!$G$14:$G$30,MATCH('R5 - Output Incentives'!K$6+RIGHT('R5 - Output Incentives'!$C50,2),Data!$C$14:$C$30,0),0)) -> 0.19
B51: Post tax | D51: =IFERROR(D49*(1-D50),0) -> 0.3477189179 | E51: =IFERROR(E49*(1-E50),0) -> 0.06730212473 | F51: 0.7744262062 | G51: 0.7321263034 | H51: 0.7070751262 | I51: 0.8967084543 | J51: 1.585183958 | K51: 1.845515117 | L51: =SUM(D51:INDEX(D51:K51,0,MATCH('RFPR cover'!$C$7,$D$6:$K$6,0))) -> 6.956056208 | M51: =SUM(D51:K51) -> 6.956056208
A53: =$A$12 -> b | B53: =INDEX($B$11:$B$15,MATCH($A53,$A$11:$A$15,0),0)&"" -> Shrinkage Allowance Revenue Adjustment | C53: ='RFPR cover'!$C$14 -> £m 09/10 | D53: =INDEX($D$11:$K$17,MATCH($A53,$A$11:$A$17,0),0) -> 0.4956323387 | E53: =INDEX($D$11:$K$17,MATCH($A53,$A$11:$A$17,0),0) -> 0.3455791117 | F53: 0.2492584965 | G53: 0.2074744875 | H53: 0.3264274819 | I53: 0.5800610494 | J53: 0.3268097639 | K53: 0.3183952589 | L53: =SUM(D53:INDEX(D53:K53,0,MATCH('RFPR cover'!$C$7,$D$6:$K$6,0))) -> 2.849637989 | M53: =SUM(D53:K53) -> 2.849637989
B54: Corporation tax rate when recognised in allowed revenue | C54: t+2 | D54: =IF($C54=$B$33,$B$33,INDEX(Data!$G$14:$G$30,MATCH('R5 - Output Incentives'!D$6+RIGHT('R5 - Output Incentives'!$C54,2),Data!$C$14:$C$30,0),0)) -> 0.2 | E54: =IF($C54=$B$33,$B$33,INDEX(Data!$G$14:$G$30,MATCH('R5 - Output Incentives'!E$6+RIGHT('R5 - Output Incentives'!$C54,2),Data!$C$14:$C$30,0),0)) -> 0.2 | F54: =IF($C54=$B$33,$B$33,INDEX(Data!$G$14:$G$30,MATCH('R5 - Output Incentives'!F$6+RIGHT('R5 - Output Incentives'!$C54,2),Data!$C$14:$C$30,0),0)) -> 0.19 | G54: =IF($C54=$B$33,$B$33,INDEX(Data!$G$14:$G$30,MATCH('R5 - Output Incentives'!G$6+RIGHT('R5 - Output Incentives'!$C54,2),Data!$C$14:$C$30,0),0)) -> 0.19 | H54: =IF($C54=$B$33,$B$33,INDEX(Data!$G$14:$G$30,MATCH('R5 - Output Incentives'!H$6+RIGHT('R5 - Output Incentives'!$C54,2),Data!$C$14:$C$30,0),0)) -> 0.19 | I54: =IF($C54=$B$33,$B$33,INDEX(Data!$G$14:$G$30,MATCH('R5 - Output Incentives'!I$6+RIGHT('R5 - Output Incentives'!$C54,2),Data!$C$14:$C$30,0),0)) -> 0.19 | J54: =IF($C54=$B$33,$B$33,INDEX(Data!$G$14:$G$30,MATCH('R5 - Output Incentives'!J$6+RIGHT('R5 - Output Incentives'!$C54,2),Data!$C$14:$C$30,0),0)) -> 0.19 | K54: =IF($C54=$B$33,$B$33,INDEX(Data!$G$14:$G$30,MATCH('R5 - Output Incentives'!K$6+RIGHT('R5 - Output Incentives'!$C54,2),Data!$C$14:$C$30,0),0)) -> 0.19
B55: Post tax | D55: =IFERROR(D53*(1-D54),0) -> 0.396505871 | E55: =IFERROR(E53*(1-E54),0) -> 0.2764632894 | F55: 0.2018993822 | G55: 0.1680543349 | H55: 0.2644062603 | I55: 0.46984945 | J55: 0.2647159087 | K55: 0.2579001597 | L55: =SUM(D55:INDEX(D55:K55,0,MATCH('RFPR cover'!$C$7,$D$6:$K$6,0))) -> 2.299794656 | M55: =SUM(D55:K55) -> 2.299794656
A57: =$A$13 -> c | B57: =INDEX($B$11:$B$15,MATCH($A57,$A$11:$A$15,0),0)&"" -> Environment Emissions Incentive | C57: ='RFPR cover'!$C$14 -> £m 09/10 | D57: =INDEX($D$11:$K$17,MATCH($A57,$A$11:$A$17,0),0) -> 1.560222504 | E57: =INDEX($D$11:$K$17,MATCH($A57,$A$11:$A$17,0),0) -> 1.52026946 | F57: 1.415723503 | G57: 1.249493333 | H57: 1.710842332 | I57: 2.463206674 | J57: 2.831953695 | K57: 3.048062271 | L57: =SUM(D57:INDEX(D57:K57,0,MATCH('RFPR cover'!$C$7,$D$6:$K$6,0))) -> 15.79977377 | M57: =SUM(D57:K57) -> 15.79977377
B58: Corporation tax rate when recognised in allowed revenue | C58: t+2 | D58: =IF($C58=$B$33,$B$33,INDEX(Data!$G$14:$G$30,MATCH('R5 - Output Incentives'!D$6+RIGHT('R5 - Output Incentives'!$C58,2),Data!$C$14:$C$30,0),0)) -> 0.2 | E58: =IF($C58=$B$33,$B$33,INDEX(Data!$G$14:$G$30,MATCH('R5 - Output Incentives'!E$6+RIGHT('R5 - Output Incentives'!$C58,2),Data!$C$14:$C$30,0),0)) -> 0.2 | F58: =IF($C58=$B$33,$B$33,INDEX(Data!$G$14:$G$30,MATCH('R5 - Output Incentives'!F$6+RIGHT('R5 - Output Incentives'!$C58,2),Data!$C$14:$C$30,0),0)) -> 0.19 | G58: =IF($C58=$B$33,$B$33,INDEX(Data!$G$14:$G$30,MATCH('R5 - Output Incentives'!G$6+RIGHT('R5 - Output Incentives'!$C58,2),Data!$C$14:$C$30,0),0)) -> 0.19 | H58: =IF($C58=$B$33,$B$33,INDEX(Data!$G$14:$G$30,MATCH('R5 - Output Incentives'!H$6+RIGHT('R5 - Output Incentives'!$C58,2),Data!$C$14:$C$30,0),0)) -> 0.19 | I58: =IF($C58=$B$33,$B$33,INDEX(Data!$G$14:$G$30,MATCH('R5 - Output Incentives'!I$6+RIGHT('R5 - Output Incentives'!$C58,2),Data!$C$14:$C$30,0),0)) -> 0.19 | J58: =IF($C58=$B$33,$B$33,INDEX(Data!$G$14:$G$30,MATCH('R5 - Output Incentives'!J$6+RIGHT('R5 - Output Incentives'!$C58,2),Data!$C$14:$C$30,0),0)) -> 0.19 | K58: =IF($C58=$B$33,$B$33,INDEX(Data!$G$14:$G$30,MATCH('R5 - Output Incentives'!K$6+RIGHT('R5 - Output Incentives'!$C58,2),Data!$C$14:$C$30,0),0)) -> 0.19
B59: Post tax | D59: =IFERROR(D57*(1-D58),0) -> 1.248178003 | E59: =IFERROR(E57*(1-E58),0) -> 1.216215568 | F59: 1.146736037 | G59: 1.0120896 | H59: 1.385782289 | I59: 1.995197406 | J59: 2.293882493 | K59: 2.468930439 | L59: =SUM(D59:INDEX(D59:K59,0,MATCH('RFPR cover'!$C$7,$D$6:$K$6,0))) -> 12.76701183 | M59: =SUM(D59:K59) -> 12.76701183
A61: =$A$14 -> d | B61: =INDEX($B$11:$B$15,MATCH($A61,$A$11:$A$15,0),0)&"" -> Discretionary Reward Scheme | C61: ='RFPR cover'!$C$14 -> £m 09/10 | D61: =INDEX($D$11:$K$17,MATCH($A61,$A$11:$A$17,0),0) -> 0.04658689285 | E61: =INDEX($D$11:$K$17,MATCH($A61,$A$11:$A$17,0),0) -> 0.04658689285 | F61: 0.02957416307 | G61: 0.02957416307 | H61: 0.02957416307 | I61: 0 | J61: 0 | K61: 0 | L61: =SUM(D61:INDEX(D61:K61,0,MATCH('RFPR cover'!$C$7,$D$6:$K$6,0))) -> 0.1818962749 | M61: =SUM(D61:K61) -> 0.1818962749
B62: Corporation tax rate when recognised in allowed revenue | C62: t+2 | D62: =IF($C62=$B$33,$B$33,INDEX(Data!$G$14:$G$30,MATCH('R5 - Output Incentives'!D$6+RIGHT('R5 - Output Incentives'!$C62,2),Data!$C$14:$C$30,0),0)) -> 0.2 | E62: =IF($C62=$B$33,$B$33,INDEX(Data!$G$14:$G$30,MATCH('R5 - Output Incentives'!E$6+RIGHT('R5 - Output Incentives'!$C62,2),Data!$C$14:$C$30,0),0)) -> 0.2 | F62: =IF($C62=$B$33,$B$33,INDEX(Data!$G$14:$G$30,MATCH('R5 - Output Incentives'!F$6+RIGHT('R5 - Output Incentives'!$C62,2),Data!$C$14:$C$30,0),0)) -> 0.19 | G62: =IF($C62=$B$33,$B$33,INDEX(Data!$G$14:$G$30,MATCH('R5 - Output Incentives'!G$6+RIGHT('R5 - Output Incentives'!$C62,2),Data!$C$14:$C$30,0),0)) -> 0.19 | H62: =IF($C62=$B$33,$B$33,INDEX(Data!$G$14:$G$30,MATCH('R5 - Output Incentives'!H$6+RIGHT('R5 - Output Incentives'!$C62,2),Data!$C$14:$C$30,0),0)) -> 0.19 | I62: =IF($C62=$B$33,$B$33,INDEX(Data!$G$14:$G$30,MATCH('R5 - Output Incentives'!I$6+RIGHT('R5 - Output Incentives'!$C62,2),Data!$C$14:$C$30,0),0)) -> 0.19 | J62: =IF($C62=$B$33,$B$33,INDEX(Data!$G$14:$G$30,MATCH('R5 - Output Incentives'!J$6+RIGHT('R5 - Output Incentives'!$C62,2),Data!$C$14:$C$30,0),0)) -> 0.19 | K62: =IF($C62=$B$33,$B$33,INDEX(Data!$G$14:$G$30,MATCH('R5 - Output Incentives'!K$6+RIGHT('R5 - Output Incentives'!$C62,2),Data!$C$14:$C$30,0),0)) -> 0.19
B63: Post tax | D63: =IFERROR(D61*(1-D62),0) -> 0.03726951428 | E63: =IFERROR(E61*(1-E62),0) -> 0.03726951428 | F63: 0.02395507208 | G63: 0.02395507208 | H63: 0.02395507208 | I63: 0 | J63: 0 | K63: 0 | L63: =SUM(D63:INDEX(D63:K63,0,MATCH('RFPR cover'!$C$7,$D$6:$K$6,0))) -> 0.1464042448 | M63: =SUM(D63:K63) -> 0.1464042448
A65: =$A$15 -> e | B65: =INDEX($B$11:$B$15,MATCH($A65,$A$11:$A$15,0),0)&"" -> NTS Exit Capacity | C65: ='RFPR cover'!$C$14 -> £m 09/10 | D65: =INDEX($D$11:$K$17,MATCH($A65,$A$11:$A$17,0),0) -> 1.11748015 | E65: =INDEX($D$11:$K$17,MATCH($A65,$A$11:$A$17,0),0) -> 1.25256676 | F65: 4.42579722 | G65: 3.23372396 | H65: 3.13358779 | I65: 3.07606325 | J65: 2.42951066 | K65: 1.81727274 | L65: =SUM(D65:INDEX(D65:K65,0,MATCH('RFPR cover'!$C$7,$D$6:$K$6,0))) -> 20.48600253 | M65: =SUM(D65:K65) -> 20.48600253
B66: Corporation tax rate when recognised in allowed revenue | C66: t+2 | D66: =IF($C66=$B$33,$B$33,INDEX(Data!$G$14:$G$30,MATCH('R5 - Output Incentives'!D$6+RIGHT('R5 - Output Incentives'!$C66,2),Data!$C$14:$C$30,0),0)) -> 0.2 | E66: =IF($C66=$B$33,$B$33,INDEX(Data!$G$14:$G$30,MATCH('R5 - Output Incentives'!E$6+RIGHT('R5 - Output Incentives'!$C66,2),Data!$C$14:$C$30,0),0)) -> 0.2 | F66: =IF($C66=$B$33,$B$33,INDEX(Data!$G$14:$G$30,MATCH('R5 - Output Incentives'!F$6+RIGHT('R5 - Output Incentives'!$C66,2),Data!$C$14:$C$30,0),0)) -> 0.19 | G66: =IF($C66=$B$33,$B$33,INDEX(Data!$G$14:$G$30,MATCH('R5 - Output Incentives'!G$6+RIGHT('R5 - Output Incentives'!$C66,2),Data!$C$14:$C$30,0),0)) -> 0.19 | H66: =IF($C66=$B$33,$B$33,INDEX(Data!$G$14:$G$30,MATCH('R5 - Output Incentives'!H$6+RIGHT('R5 - Output Incentives'!$C66,2),Data!$C$14:$C$30,0),0)) -> 0.19 | I66: =IF($C66=$B$33,$B$33,INDEX(Data!$G$14:$G$30,MATCH('R5 - Output Incentives'!I$6+RIGHT('R5 - Output Incentives'!$C66,2),Data!$C$14:$C$30,0),0)) -> 0.19 | J66: =IF($C66=$B$33,$B$33,INDEX(Data!$G$14:$G$30,MATCH('R5 - Output Incentives'!J$6+RIGHT('R5 - Output Incentives'!$C66,2),Data!$C$14:$C$30,0),0)) -> 0.19 | K66: =IF($C66=$B$33,$B$33,INDEX(Data!$G$14:$G$30,MATCH('R5 - Output Incentives'!K$6+RIGHT('R5 - Output Incentives'!$C66,2),Data!$C$14:$C$30,0),0)) -> 0.19
B67: Post tax | D67: =IFERROR(D65*(1-D66),0) -> 0.89398412 | E67: =IFERROR(E65*(1-E66),0) -> 1.002053408 | F67: 3.584895748 | G67: 2.619316408 | H67: 2.53820611 | I67: 2.491611232 | J67: 1.967903635 | K67: 1.471990919 | L67: =SUM(D67:INDEX(D67:K67,0,MATCH('RFPR cover'!$C$7,$D$6:$K$6,0))) -> 16.56996158 | M67: =SUM(D67:K67) -> 16.56996158
A69: =$A$16 -> f | B69: =INDEX($B$11:$B$17,MATCH($A69,$A$11:$A$17,0),0)&"" ->  | C69: ='RFPR cover'!$C$14 -> £m 09/10 | D69: =INDEX($D$11:$K$17,MATCH($A69,$A$11:$A$17,0),0) -> 0 | E69: =INDEX($D$11:$K$17,MATCH($A69,$A$11:$A$17,0),0) -> 0 | F69: 0 | G69: 0 | H69: 0 | I69: 0 | J69: 0 | K69: 0 | L69: =SUM(D69:INDEX(D69:K69,0,MATCH('RFPR cover'!$C$7,$D$6:$K$6,0))) -> 0 | M69: =SUM(D69:K69) -> 0
B70: Corporation tax rate when recognised in allowed revenue | C70: t+2 | D70: =IF($C70=$B$33,$B$33,INDEX(Data!$G$14:$G$30,MATCH('R5 - Output Incentives'!D$6+RIGHT('R5 - Output Incentives'!$C70,2),Data!$C$14:$C$30,0),0)) -> 0.2 | E70: =IF($C70=$B$33,$B$33,INDEX(Data!$G$14:$G$30,MATCH('R5 - Output Incentives'!E$6+RIGHT('R5 - Output Incentives'!$C70,2),Data!$C$14:$C$30,0),0)) -> 0.2 | F70: =IF($C70=$B$33,$B$33,INDEX(Data!$G$14:$G$30,MATCH('R5 - Output Incentives'!F$6+RIGHT('R5 - Output Incentives'!$C70,2),Data!$C$14:$C$30,0),0)) -> 0.19 | G70: =IF($C70=$B$33,$B$33,INDEX(Data!$G$14:$G$30,MATCH('R5 - Output Incentives'!G$6+RIGHT('R5 - Output Incentives'!$C70,2),Data!$C$14:$C$30,0),0)) -> 0.19 | H70: =IF($C70=$B$33,$B$33,INDEX(Data!$G$14:$G$30,MATCH('R5 - Output Incentives'!H$6+RIGHT('R5 - Output Incentives'!$C70,2),Data!$C$14:$C$30,0),0)) -> 0.19 | I70: =IF($C70=$B$33,$B$33,INDEX(Data!$G$14:$G$30,MATCH('R5 - Output Incentives'!I$6+RIGHT('R5 - Output Incentives'!$C70,2),Data!$C$14:$C$30,0),0)) -> 0.19 | J70: =IF($C70=$B$33,$B$33,INDEX(Data!$G$14:$G$30,MATCH('R5 - Output Incentives'!J$6+RIGHT('R5 - Output Incentives'!$C70,2),Data!$C$14:$C$30,0),0)) -> 0.19 | K70: =IF($C70=$B$33,$B$33,INDEX(Data!$G$14:$G$30,MATCH('R5 - Output Incentives'!K$6+RIGHT('R5 - Output Incentives'!$C70,2),Data!$C$14:$C$30,0),0)) -> 0.19
B71: Post tax | D71: =IFERROR(D69*(1-D70),0) -> 0 | E71: =IFERROR(E69*(1-E70),0) -> 0 | F71: 0 | G71: 0 | H71: 0 | I71: 0 | J71: 0 | K71: 0 | L71: =SUM(D71:INDEX(D71:K71,0,MATCH('RFPR cover'!$C$7,$D$6:$K$6,0))) -> 0 | M71: =SUM(D71:K71) -> 0
A73: g | B73: =INDEX($B$11:$B$17,MATCH($A73,$A$11:$A$17,0),0)&"" ->  | C73: ='RFPR cover'!$C$14 -> £m 09/10 | D73: =INDEX($D$11:$K$17,MATCH($A73,$A$11:$A$17,0),0) -> 0 | E73: =INDEX($D$11:$K$17,MATCH($A73,$A$11:$A$17,0),0) -> 0 | F73: 0 | G73: 0 | H73: 0 | I73: 0 | J73: 0 | K73: 0 | L73: =SUM(D73:INDEX(D73:K73,0,MATCH('RFPR cover'!$C$7,$D$6:$K$6,0))) -> 0 | M73: =SUM(D73:K73) -> 0
B74: Corporation tax rate when recognised in allowed revenue | C74: t+2 | D74: =IF($C74=$B$33,$B$33,INDEX(Data!$G$14:$G$30,MATCH('R5 - Output Incentives'!D$6+RIGHT('R5 - Output Incentives'!$C74,2),Data!$C$14:$C$30,0),0)) -> 0.2 | E74: =IF($C74=$B$33,$B$33,INDEX(Data!$G$14:$G$30,MATCH('R5 - Output Incentives'!E$6+RIGHT('R5 - Output Incentives'!$C74,2),Data!$C$14:$C$30,0),0)) -> 0.2 | F74: =IF($C74=$B$33,$B$33,INDEX(Data!$G$14:$G$30,MATCH('R5 - Output Incentives'!F$6+RIGHT('R5 - Output Incentives'!$C74,2),Data!$C$14:$C$30,0),0)) -> 0.19 | G74: =IF($C74=$B$33,$B$33,INDEX(Data!$G$14:$G$30,MATCH('R5 - Output Incentives'!G$6+RIGHT('R5 - Output Incentives'!$C74,2),Data!$C$14:$C$30,0),0)) -> 0.19 | H74: =IF($C74=$B$33,$B$33,INDEX(Data!$G$14:$G$30,MATCH('R5 - Output Incentives'!H$6+RIGHT('R5 - Output Incentives'!$C74,2),Data!$C$14:$C$30,0),0)) -> 0.19 | I74: =IF($C74=$B$33,$B$33,INDEX(Data!$G$14:$G$30,MATCH('R5 - Output Incentives'!I$6+RIGHT('R5 - Output Incentives'!$C74,2),Data!$C$14:$C$30,0),0)) -> 0.19 | J74: =IF($C74=$B$33,$B$33,INDEX(Data!$G$14:$G$30,MATCH('R5 - Output Incentives'!J$6+RIGHT('R5 - Output Incentives'!$C74,2),Data!$C$14:$C$30,0),0)) -> 0.19 | K74: =IF($C74=$B$33,$B$33,INDEX(Data!$G$14:$G$30,MATCH('R5 - Output Incentives'!K$6+RIGHT('R5 - Output Incentives'!$C74,2),Data!$C$14:$C$30,0),0)) -> 0.19
B75: Post tax | D75: =IFERROR(D73*(1-D74),0) -> 0 | E75: =IFERROR(E73*(1-E74),0) -> 0 | F75: 0 | G75: 0 | H75: 0 | I75: 0 | J75: 0 | K75: 0 | L75: =SUM(D75:INDEX(D75:K75,0,MATCH('RFPR cover'!$C$7,$D$6:$K$6,0))) -> 0 | M75: =SUM(D75:K75) -> 0
B77: Impact on Allowed Revenue within RIIO-1
B78: This table shows the impact on allowed revenue in the relevant year - with actuals (subject to determination) and forecasts thereafter.
B79: The cells above the allowed revenue indicate the year of performance
C81: Performance Year | D81: =IF($C50=$B$33,D$6,IF(D$6-RIGHT($C50,1)<$D$6,"Pre-RIIO",D$6-RIGHT($C50,1))) -> Pre-RIIO | E81: Pre-RIIO | F81: 2014 | G81: 2015 | H81: 2016 | I81: 2017 | J81: 2018 | K81: 2019
A82: =A11 -> a | B82: =B11&"" -> Broad Measure of Customer Satisfaction | C82: £m nominal | D82: 0 | E82: 0 | F82: 0.50710128 | G82: 0.10007461 | H82: 1.14957271 | I82: 1.11006614 | J82: 1.11220308 | K82: 1.45358771
C84: Performance Year | D84: =IF($C54=$B$33,D$6,IF(D$6-RIGHT($C54,1)<$D$6,"Pre-RIIO",D$6-RIGHT($C54,1))) -> Pre-RIIO | E84: Pre-RIIO | F84: 2014 | G84: 2015 | H84: 2016 | I84: 2017 | J84: 2018 | K84: 2019
A85: =A12 -> b | B85: =B12&"" -> Shrinkage Allowance Revenue Adjustment | C85: £m nominal | D85: 0 | E85: 0 | F85: 0.55656609 | G85: 0.40594735 | H85: 0.29600317 | I85: 0.25166194 | J85: 0.41590129 | K85: 0.74328544
C87: Performance Year | D87: =IF($C58=$B$33,D$6,IF(D$6-RIGHT($C58,1)<$D$6,"Pre-RIIO",D$6-RIGHT($C58,1))) -> Pre-RIIO | E87: Pre-RIIO | F87: 2014 | G87: 2015 | H87: 2016 | I87: 2017 | J87: 2018 | K87: 2019
A88: =A13 -> c | B88: =B13&"" -> Environment Emissions Incentive | C88: £m nominal | D88: 0 | E88: 0 | F88: 1.75203852 | G88: 1.78584102 | H88: 1.68122111 | I88: 1.5156076 | J88: 2.1797844 | K88: 3.15633271
C90: Performance Year | D90: =IF($C62=$B$33,D$6,IF(D$6-RIGHT($C62,1)<$D$6,"Pre-RIIO",D$6-RIGHT($C62,1))) -> Pre-RIIO | E90: Pre-RIIO | F90: 2014 | G90: 2015 | H90: 2016 | I90: 2017 | J90: 2018 | K90: 2019
A91: =A14 -> d | B91: =B14&"" -> Discretionary Reward Scheme | C91: £m nominal | D91: 0.19089473 | E91: 0.17473433 | F91: 0 | G91: 0.11443045 | H91: 0 | I91: 0 | J91: 0.11963184 | K91: 0
C93: Performance Year | D93: =IF($C66=$B$33,D$6,IF(D$6-RIGHT($C66,1)<$D$6,"Pre-RIIO",D$6-RIGHT($C66,1))) -> Pre-RIIO | E93: =IF($C66=$B$33,E$6,IF(E$6-RIGHT($C66,1)<$D$6,"Pre-RIIO",E$6-RIGHT($C66,1))) -> Pre-RIIO | F93: 2014 | G93: 2015 | H93: 2016 | I93: 2017 | J93: 2018 | K93: 2019
A94: =A15 -> e | B94: =B15&"" -> NTS Exit Capacity | C94: £m nominal | D94: 0 | E94: 0 | F94: 1.48769308 | G94: 1.67193252 | H94: 6.07766109 | I94: 4.58179418 | J94: 4.57699755 | K94: 4.56159781
C96: Performance Year | D96: =IF($C70=$B$33,D$6,IF(D$6-RIGHT($C70,1)<$D$6,"Pre-RIIO",D$6-RIGHT($C70,1))) -> Pre-RIIO | E96: =IF($C70=$B$33,E$6,IF(E$6-RIGHT($C70,1)<$D$6,"Pre-RIIO",E$6-RIGHT($C70,1))) -> Pre-RIIO | F96: 2014 | G96: 2015 | H96: 2016 | I96: 2017 | J96: 2018 | K96: 2019
A97: =A16 -> f | B97: =B16&"" ->  | C97: £m nominal | D97: 0 | E97: 0 | F97: 0 | G97: 0 | H97: 0 | I97: 0 | J97: 0 | K97: 0
C99: Performance Year | D99: =IF($C74=$B$33,D$6,IF(D$6-RIGHT($C74,1)<$D$6,"Pre-RIIO",D$6-RIGHT($C74,1))) -> Pre-RIIO | E99: =IF($C74=$B$33,E$6,IF(E$6-RIGHT($C74,1)<$D$6,"Pre-RIIO",E$6-RIGHT($C74,1))) -> Pre-RIIO | F99: 2014 | G99: 2015 | H99: 2016 | I99: 2017 | J99: 2018 | K99: 2019
A100: =A17 -> g | B100: =B17&"" ->  | C100: £m nominal | D100: 0 | E100: 0 | F100: 0 | G100: 0 | H100: 0 | I100: 0 | J100: 0 | K100: 0
B102: Total Impact on Allowed Revenue | C102: £m nominal | D102: =SUM(D82,D85,D88,D91,D94,D97,D100) -> 0.19089473 | E102: =SUM(E82,E85,E88,E91,E94,E97,E100) -> 0.17473433 | F102: 4.30339897 | G102: 4.07822595 | H102: =SUM(H82,H85,H88,H91,H94,H97,H100) -> 9.20445808 | I102: 7.45912986 | J102: 8.40451816 | K102: 9.91480367
B104: Additional Commentary
A105: =A82 -> a
A106: =A85 -> b
A107: =A88 -> c
A108: =A91 -> d
A109: =A94 -> e
A110: =A97 -> f
A111: =A100 -> g

Sheet R6 - Innovation
A1: R6 - Innovation
A2: ='RFPR cover'!C5 -> Cadent-London
A3: ='RFPR cover'!C7 -> 2021 | B3: ='R1 - RoRE'!B3 -> 
D5: =IF(D6<='RFPR cover'!$C$7,"Actuals","Forecast") -> Actuals | E5: =IF(E6<='RFPR cover'!$C$7,"Actuals","Forecast") -> Actuals | F5: =IF(F6<='RFPR cover'!$C$7,"Actuals","Forecast") -> Actuals | G5: =IF(G6<='RFPR cover'!$C$7,"Actuals","Forecast") -> Actuals | H5: =IF(H6<='RFPR cover'!$C$7,"Actuals","Forecast") -> Actuals | I5: =IF(I6<='RFPR cover'!$C$7,"Actuals","Forecast") -> Actuals | J5: =IF(J6<='RFPR cover'!$C$7,"Actuals","Forecast") -> Actuals | K5: =IF(K6<='RFPR cover'!$C$7,"Actuals","Forecast") -> Actuals
D6: ='RFPR cover'!$C$13 -> 2014 | E6: =D6+1 -> 2015 | F6: =E6+1 -> 2016 | G6: 2017 | H6: 2018 | I6: 2019 | J6: 2020 | K6: 2021
B8: Network Innovation Allowance
B9: Eligible NIA expenditure and Bid Preparation costs | C9: £m nominal | D9: 0.59598325 | E9: 1.59227418 | F9: 1.98693917 | G9: 1.59 | H9: 1.52304076 | I9: 1.007342093 | J9: 1.259673311 | K9: 1.62
B10: Unrecoverable Expenditure (eg not conforming to technical requirements) | C10: £m nominal | D10: 0 | E10: 0 | F10: 0 | G10: 0 | H10: 0 | I10: 0 | J10: 0 | K10: 0
B11: Company Compulsory Contribution (including % contribution funded by licensee) | C11: £m nominal | D11: 0.0650021 | E11: 0.15922742 | F11: 0.19869392 | G11: 0.16125 | H11: 0.15230408 | I11: 0.1007342093 | J11: 0.1259673311 | K11: 0.162
B12: Allowed NIA adjustment | C12: £m nominal | D12: =D9-D10-D11 -> 0.53098115 | E12: =E9-E10-E11 -> 1.43304676 | F12: 1.78824525 | G12: 1.42875 | H12: 1.37073668 | I12: 0.9066078837 | J12: 1.13370598 | K12: 1.458
B14: Low Carbon Networks Fund
B15: Second Tier and Discretionary (as per latest Revenue RRP) | C15: £m nominal | D15: 0 | E15: 0 | F15: 0 | G15: 0 | H15: 0 | I15: 0 | J15: 0 | K15: 0
B16: First Tier Funding Mechanism (as per latest Revenue RRP) | C16: £m nominal | D16: 0 | E16: 0 | F16: 0 | G16: 0 | H16: 0 | I16: 0 | J16: 0 | K16: 0
B17: Low Carbon Networks Fund revenue adjustment | C17: £m nominal | D17: =D15-D16 -> 0 | E17: =E15-E16 -> 0 | F17: 0 | G17: 0 | H17: 0 | I17: 0 | J17: 0 | K17: 0
B19: Network Innovation Competition
B20: Awarded NIC funding actually spent or forecast to be spent | C20: £m nominal | D20: 0 | E20: 0.194257384 | F20: 0.1693915024 | G20: 1.294117213 | H20: 1.052057069 | I20: 0.832293668 | J20: 0.9712407254 | K20: 0.9
B21: Company Compulsory Contribution (including % contribution funded by licensee) | C21: £m nominal | D21: 0 | E21: 0 | F21: 0.04427864754 | G21: 0.1248332244 | H21: 0.0901529141 | I21: 0.1078195646 | J21: 0.1468068935 | K21: 0.07296264739
B23: Successful Delivery Rewards | C23: £m nominal | D23: 0 | E23: 0 | F23: 0 | G23: 0 | H23: 0 | I23: 0.04402287823 | J23: 0 | K23: 0
B27: RoRE Inputs
B28: Network innovation | C28: ='RFPR cover'!$C$14 -> £m 09/10 | D28: =(SUM(D10,D11,D21)-D23)/Data!C34 -> 0.05571501595 | E28: =(SUM(E10,E11,E21)-E23)/Data!D34 -> 0.1338544602 | F28: =(SUM(F10,F11,F21)-F23)/Data!E34 -> 0.2020770757 | G28: =(SUM(G10,G11,G21)-G23)/Data!F34 -> 0.2329403117 | H28: =(SUM(H10,H11,H21)-H23)/Data!G34 -> 0.190297184 | I28: =(SUM(I10,I11,I21)-I23)/Data!H34 -> 0.1253065136 | J28: =(SUM(J10,J11,J21)-J23)/Data!I34 -> 0.2025023091 | K28: =(SUM(K10,K11,K21)-K23)/Data!J34 -> 0.1723415119

Sheet R7 - Financing
A1: R7 - Financing
A2: ='RFPR cover'!C5 -> Cadent-London
A3: ='RFPR cover'!C7 -> 2021 | B3: ='R1 - RoRE'!B3 -> 
D5: =IF(D6<='RFPR cover'!$C$7,"Actuals","Forecast") -> Actuals | E5: =IF(E6<='RFPR cover'!$C$7,"Actuals","Forecast") -> Actuals | F5: =IF(F6<='RFPR cover'!$C$7,"Actuals","Forecast") -> Actuals | G5: =IF(G6<='RFPR cover'!$C$7,"Actuals","Forecast") -> Actuals | H5: =IF(H6<='RFPR cover'!$C$7,"Actuals","Forecast") -> Actuals | I5: =IF(I6<='RFPR cover'!$C$7,"Actuals","Forecast") -> Actuals | J5: =IF(J6<='RFPR cover'!$C$7,"Actuals","Forecast") -> Actuals | K5: =IF(K6<='RFPR cover'!$C$7,"Actuals","Forecast") -> Actuals
D6: ='RFPR cover'!$C$13 -> 2014 | E6: =D6+1 -> 2015 | F6: =E6+1 -> 2016 | G6: 2017 | H6: 2018 | I6: 2019 | J6: 2020 | K6: 2021 | L6: ="Cumulative to "&'RFPR cover'!$C$7 -> Cumulative to 2021 | M6: RIIO-1 period
B8: ='[3]R7a - Financing input'!C498 -> Net Interest Per Statutory Accounts | C8: £m nominal | D8: ='[3]R7a - Financing input'!M498 -> 190 | E8: ='[3]R7a - Financing input'!N498 -> 202 | F8: ='[3]R7a - Financing input'!O498 -> 157 | G8: ='[3]R7a - Financing input'!P498 -> 1009.9592 | H8: ='[3]R7a - Financing input'!Q498 -> 144.5319051 | I8: ='[3]R7a - Financing input'!R498 -> 146.4870987 | J8: ='[3]R7a - Financing input'!S498 -> 158.5290155 | K8: ='[3]R7a - Financing input'!T498 -> 124.1933551
B10: Reconciliation with Statutory Accounts
B11: ='[3]R7a - Financing input'!C506 -> Interest not qualifying for corporation tax relief | C11: £m nominal | D11: ='[3]R7a - Financing input'!M506 -> 0 | E11: ='[3]R7a - Financing input'!N506 -> 0 | F11: ='[3]R7a - Financing input'!O506 -> 0 | G11: ='[3]R7a - Financing input'!P506 -> 0 | H11: ='[3]R7a - Financing input'!Q506 -> 0 | I11: ='[3]R7a - Financing input'!R506 -> 0 | J11: ='[3]R7a - Financing input'!S506 -> 0 | K11: ='[3]R7a - Financing input'!T506 -> 0
B12: ='[3]R7a - Financing input'!C507 -> Fair value adjustments (e.g. losses on derivatives) | C12: £m nominal | D12: ='[3]R7a - Financing input'!M507 -> 0 | E12: ='[3]R7a - Financing input'!N507 -> 0 | F12: ='[3]R7a - Financing input'!O507 -> 0 | G12: ='[3]R7a - Financing input'!P507 -> -12 | H12: ='[3]R7a - Financing input'!Q507 -> 6.412367166 | I12: ='[3]R7a - Financing input'!R507 -> 8 | J12: ='[3]R7a - Financing input'!S507 -> 11.87911731 | K12: ='[3]R7a - Financing input'!T507 -> 12.94153078
B13: ='[3]R7a - Financing input'!C508 -> Dividends on preference shares | C13: £m nominal | D13: ='[3]R7a - Financing input'!M508 -> 0 | E13: ='[3]R7a - Financing input'!N508 -> 0 | F13: ='[3]R7a - Financing input'!O508 -> 0 | G13: ='[3]R7a - Financing input'!P508 -> 0 | H13: ='[3]R7a - Financing input'!Q508 -> 0 | I13: ='[3]R7a - Financing input'!R508 -> 0 | J13: ='[3]R7a - Financing input'!S508 -> 0 | K13: ='[3]R7a - Financing input'!T508 -> 0
B14: ='[3]R7a - Financing input'!C509 -> Costs of early redemption on long term debt | C14: £m nominal | D14: ='[3]R7a - Financing input'!M509 -> 0 | E14: ='[3]R7a - Financing input'!N509 -> -18.13 | F14: ='[3]R7a - Financing input'!O509 -> 0 | G14: ='[3]R7a - Financing input'!P509 -> 0 | H14: ='[3]R7a - Financing input'!Q509 -> 0 | I14: ='[3]R7a - Financing input'!R509 -> 0 | J14: ='[3]R7a - Financing input'!S509 -> -4.376 | K14: ='[3]R7a - Financing input'!T509 -> 0
B15: ='[3]R7a - Financing input'!C510 -> Swap Termination Costs paid | C15: £m nominal | D15: ='[3]R7a - Financing input'!M510 -> -0.3169319263 | E15: ='[3]R7a - Financing input'!N510 -> 0 | F15: ='[3]R7a - Financing input'!O510 -> 0 | G15: ='[3]R7a - Financing input'!P510 -> 0 | H15: ='[3]R7a - Financing input'!Q510 -> 0 | I15: ='[3]R7a - Financing input'!R510 -> 0 | J15: ='[3]R7a - Financing input'!S510 -> 0 | K15: ='[3]R7a - Financing input'!T510 -> 0
B16: ='[3]R7a - Financing input'!C511 -> Movements relating to pension fund liabilities reported within net interest | C16: £m nominal | D16: ='[3]R7a - Financing input'!M511 -> 11.22097399 | E16: ='[3]R7a - Financing input'!N511 -> 0 | F16: ='[3]R7a - Financing input'!O511 -> 0 | G16: ='[3]R7a - Financing input'!P511 -> -1 | H16: ='[3]R7a - Financing input'!Q511 -> 1.99999996 | I16: ='[3]R7a - Financing input'!R511 -> 14 | J16: ='[3]R7a - Financing input'!S511 -> 17 | K16: ='[3]R7a - Financing input'!T511 -> 21
B17: ='[3]R7a - Financing input'!C512 -> Debt issuance expenses (inc. amortisation to discounts that had previously benefitted from a tax deduction) | C17: £m nominal | D17: ='[3]R7a - Financing input'!M512 -> 0 | E17: ='[3]R7a - Financing input'!N512 -> 0 | F17: ='[3]R7a - Financing input'!O512 -> 0 | G17: ='[3]R7a - Financing input'!P512 -> -1 | H17: ='[3]R7a - Financing input'!Q512 -> -2.750202954 | I17: ='[3]R7a - Financing input'!R512 -> -2.77 | J17: ='[3]R7a - Financing input'!S512 -> -4.566235503 | K17: ='[3]R7a - Financing input'!T512 -> -3.06516627
B18: ='[3]R7a - Financing input'!C513 -> Commitment fees for undrawn liquidity backup lines | C18: £m nominal | D18: ='[3]R7a - Financing input'!M513 -> 0 | E18: ='[3]R7a - Financing input'!N513 -> 0 | F18: ='[3]R7a - Financing input'!O513 -> 0 | G18: ='[3]R7a - Financing input'!P513 -> -1 | H18: ='[3]R7a - Financing input'!Q513 -> -2.509623794 | I18: ='[3]R7a - Financing input'!R513 -> -2.15 | J18: ='[3]R7a - Financing input'!S513 -> -2.13299451 | K18: ='[3]R7a - Financing input'!T513 -> -1.95211823
B19: ='[3]R7a - Financing input'!C514 -> Less: Capitalised Interest | C19: £m nominal | D19: ='[3]R7a - Financing input'!M514 -> 0 | E19: ='[3]R7a - Financing input'!N514 -> 11.8 | F19: ='[3]R7a - Financing input'!O514 -> 0 | G19: ='[3]R7a - Financing input'!P514 -> 1 | H19: ='[3]R7a - Financing input'!Q514 -> 0 | I19: ='[3]R7a - Financing input'!R514 -> 0 | J19: ='[3]R7a - Financing input'!S514 -> 0 | K19: ='[3]R7a - Financing input'!T514 -> 0
B20: ='[3]R7a - Financing input'!C515 -> Less: Unwind of discount | C20: £m nominal | D20: ='[3]R7a - Financing input'!M515 -> -1.234323432 | E20: ='[3]R7a - Financing input'!N515 -> -4.32 | F20: ='[3]R7a - Financing input'!O515 -> -4 | G20: ='[3]R7a - Financing input'!P515 -> -2 | H20: ='[3]R7a - Financing input'!Q515 -> -2.16435857 | I20: ='[3]R7a - Financing input'!R515 -> -0.3 | J20: ='[3]R7a - Financing input'!S515 -> -0.30747824 | K20: ='[3]R7a - Financing input'!T515 -> -0.30747824
B21: ='[3]R7a - Financing input'!C516 -> Less: Term Debt / Letter of Credit / RCF Fees | C21: £m nominal | D21: ='[3]R7a - Financing input'!M516 -> 0 | E21: ='[3]R7a - Financing input'!N516 -> 0 | F21: ='[3]R7a - Financing input'!O516 -> 0 | G21: ='[3]R7a - Financing input'!P516 -> 0 | H21: ='[3]R7a - Financing input'!Q516 -> -1.610053807 | I21: ='[3]R7a - Financing input'!R516 -> -1.63 | J21: ='[3]R7a - Financing input'!S516 -> -1.62036365 | K21: ='[3]R7a - Financing input'!T516 -> -2.26122196
B22: ='[3]R7a - Financing input'!C517 -> losses/(gains) on derivative financial instruments | C22: £m nominal | D22: ='[3]R7a - Financing input'!M517 -> 10.14087222 | E22: ='[3]R7a - Financing input'!N517 -> -15.53 | F22: ='[3]R7a - Financing input'!O517 -> -6 | G22: ='[3]R7a - Financing input'!P517 -> 0 | H22: ='[3]R7a - Financing input'!Q517 -> 0 | I22: ='[3]R7a - Financing input'!R517 -> -18 | J22: ='[3]R7a - Financing input'!S517 -> -15.03896397 | K22: ='[3]R7a - Financing input'!T517 -> -0.7278433283
B23: ='[3]R7a - Financing input'!C518 -> Less: Commitment Commission and other | C23: £m nominal | D23: ='[3]R7a - Financing input'!M518 -> 0 | E23: ='[3]R7a - Financing input'!N518 -> -1.24 | F23: ='[3]R7a - Financing input'!O518 -> 0 | G23: ='[3]R7a - Financing input'!P518 -> 0 | H23: ='[3]R7a - Financing input'!Q518 -> 0 | I23: ='[3]R7a - Financing input'!R518 -> 0 | J23: ='[3]R7a - Financing input'!S518 -> 0 | K23: ='[3]R7a - Financing input'!T518 -> 0
B24: ='[3]R7a - Financing input'!C519 -> Economic cost of changing capital structure in FY16/17 | C24: £m nominal | D24: ='[3]R7a - Financing input'!M519 -> 0 | E24: ='[3]R7a - Financing input'!N519 -> 0 | F24: ='[3]R7a - Financing input'!O519 -> 0 | G24: ='[3]R7a - Financing input'!P519 -> 0 | H24: ='[3]R7a - Financing input'!Q519 -> 0 | I24: ='[3]R7a - Financing input'!R519 -> 0 | J24: ='[3]R7a - Financing input'!S519 -> 0 | K24: ='[3]R7a - Financing input'!T519 -> 0
B25: ='[3]R7a - Financing input'!C520 -> Less: Debt cap disallowance | C25: £m nominal | D25: ='[3]R7a - Financing input'!M520 -> -2.319436911 | E25: ='[3]R7a - Financing input'!N520 -> 0 | F25: ='[3]R7a - Financing input'!O520 -> 0 | G25: ='[3]R7a - Financing input'!P520 -> 0 | H25: ='[3]R7a - Financing input'!Q520 -> 0 | I25: ='[3]R7a - Financing input'!R520 -> 0 | J25: ='[3]R7a - Financing input'!S520 -> 0 | K25: ='[3]R7a - Financing input'!T520 -> 0
B26: ='[3]R7a - Financing input'!C521 -> Less finance costs relating to metering | C26: £m nominal | D26: ='[3]R7a - Financing input'!M521 -> -15 | E26: ='[3]R7a - Financing input'!N521 -> -12 | F26: ='[3]R7a - Financing input'!O521 -> -11 | G26: ='[3]R7a - Financing input'!P521 -> 0 | H26: ='[3]R7a - Financing input'!Q521 -> 0 | I26: ='[3]R7a - Financing input'!R521 -> 0 | J26: ='[3]R7a - Financing input'!S521 -> 0 | K26: ='[3]R7a - Financing input'!T521 -> 0
B27: ='[3]R7a - Financing input'!C522 -> Less finance costs relating to other three networks | C27: £m nominal | D27: ='[3]R7a - Financing input'!M522 -> -146.4262645 | E27: ='[3]R7a - Financing input'!N522 -> -125.86 | F27: ='[3]R7a - Financing input'!O522 -> -105 | G27: ='[3]R7a - Financing input'!P522 -> -123.139404 | H27: ='[3]R7a - Financing input'!Q522 -> -109.798648 | I27: ='[3]R7a - Financing input'!R522 -> -108.8177035 | J27: ='[3]R7a - Financing input'!S522 -> -120.1928109 | K27: ='[3]R7a - Financing input'!T522 -> -112.4341563
B28: ='[3]R7a - Financing input'!C523 -> Exceptional costs of early redemption on long term debt- TBC | C28: £m nominal | D28: ='[3]R7a - Financing input'!M523 -> 0 | E28: ='[3]R7a - Financing input'!N523 -> 0 | F28: ='[3]R7a - Financing input'!O523 -> 0 | G28: ='[3]R7a - Financing input'!P523 -> -833 | H28: ='[3]R7a - Financing input'!Q523 -> 0 | I28: ='[3]R7a - Financing input'!R523 -> 0 | J28: ='[3]R7a - Financing input'!S523 -> 0 | K28: ='[3]R7a - Financing input'!T523 -> 0
B29: ='[3]R7a - Financing input'!C524 -> Rounding | C29: £m nominal | D29: ='[3]R7a - Financing input'!M524 -> -1.010654234 | E29: ='[3]R7a - Financing input'!N524 -> 0.36 | F29: ='[3]R7a - Financing input'!O524 -> 0 | G29: ='[3]R7a - Financing input'!P524 -> -1.452200429 | H29: ='[3]R7a - Financing input'!Q524 -> 0.3216586914 | I29: ='[3]R7a - Financing input'!R524 -> 0 | J29: ='[3]R7a - Financing input'!S524 -> 0 | K29: ='[3]R7a - Financing input'!T524 -> 0
B30: Net Interest Per Regulatory (RIIO-1) Definition | C30: £m nominal | D30: =SUM(D8,D11:D29) -> 45.05423523 | E30: 37.08 | F30: 31 | G30: 36.367596 | H30: 34.43304378 | I30: 34.81939521 | J30: 39.17328603 | K30: 37.38690157
B31: Forecast new financing/refinancing Net Interest costs | C31: £m nominal
B32: Net Interest including forecast new financing/refinancing costs | C32: £m nominal | D32: =SUM(D30:D31) -> 45.05423523 | E32: =SUM(E30:E31) -> 37.08 | F32: 31 | G32: 36.367596 | H32: 34.43304378 | I32: 34.81939521 | J32: 39.17328603 | K32: 37.38690157
B33: External Net Interest | C33: £m nominal | D33: 41.96338042 | E33: 34.36 | F33: 29 | G33: 24.444564 | H33: 34.43304378 | I33: 34.81939521 | J33: 39.17328603 | K33: 37.38690157
B34: Intra-company Net Interest | C34: £m nominal | D34: 3.090854806 | E34: 2.72 | F34: 2 | G34: 11.923032 | H34: 0 | I34: 0 | J34: 0 | K34: 0
D35: =IF(ABS(D32-SUM(D33:D34))<'RFPR cover'!$F$14,"OK","ERROR") -> OK | E35: =IF(ABS(E32-SUM(E33:E34))<'RFPR cover'!$F$14,"OK","ERROR") -> OK | F35: =IF(ABS(F32-SUM(F33:F34))<'RFPR cover'!$F$14,"OK","ERROR") -> OK | G35: =IF(ABS(G32-SUM(G33:G34))<'RFPR cover'!$F$14,"OK","ERROR") -> OK | H35: =IF(ABS(H32-SUM(H33:H34))<'RFPR cover'!$F$14,"OK","ERROR") -> OK | I35: =IF(ABS(I32-SUM(I33:I34))<'RFPR cover'!$F$14,"OK","ERROR") -> OK | J35: =IF(ABS(J32-SUM(J33:J34))<'RFPR cover'!$F$14,"OK","ERROR") -> OK | K35: =IF(ABS(K32-SUM(K33:K34))<'RFPR cover'!$F$14,"OK","ERROR") -> OK
B37: Memo: Net interest (RIIO-1) Definition that relates to non-cash principal inflation accretion on bonds and loans | C37: £m nominal | D37: 0 | E37: 0 | F37: 0 | G37: 0 | H37: 7.413618305 | I37: 6.097385734 | J37: 6.374282983 | K37: 2.966512359
B39: Less inflation in interest charge | C39: £m nominal | D39: =('R8 - Net Debt'!D54-AVERAGE('R8 - Net Debt'!D8,('R8 - Net Debt'!D10-'[3]R8a - Net Debt input'!T18)))*(Data!C36-1) -> 41.12201094 | E39: =('R8 - Net Debt'!E54-AVERAGE(('R8 - Net Debt'!E8-'[3]R8a - Net Debt input'!T18),('R8 - Net Debt'!E10-'[3]R8a - Net Debt input'!U18)))*(Data!D36-1) -> 27.11236851 | F39: =('R8 - Net Debt'!F54-AVERAGE(('R8 - Net Debt'!F8-'[3]R8a - Net Debt input'!U18),('R8 - Net Debt'!F10-'[3]R8a - Net Debt input'!V18)))*(Data!E36-1) -> 13.67391611 | G39: =('R8 - Net Debt'!G54-AVERAGE(('R8 - Net Debt'!G8-'[3]R8a - Net Debt input'!V18),('R8 - Net Debt'!G10-'[3]R8a - Net Debt input'!W18)))*(Data!F36-1) -> 27.47705099 | H39: =('R8 - Net Debt'!H54-AVERAGE(('R8 - Net Debt'!H8-'[3]R8a - Net Debt input'!W18),('R8 - Net Debt'!H10-'[3]R8a - Net Debt input'!X18)))*(Data!G36-1) -> 55.10700195 | I39: =('R8 - Net Debt'!I54-AVERAGE(('R8 - Net Debt'!I8-'[3]R8a - Net Debt input'!X18),('R8 - Net Debt'!I10-'[3]R8a - Net Debt input'!Y18)))*(Data!H36-1) -> 51.40366778 | J39: =('R8 - Net Debt'!J54-AVERAGE(('R8 - Net Debt'!J8-'[3]R8a - Net Debt input'!Y18),('R8 - Net Debt'!J10-'[3]R8a - Net Debt input'!Z18)))*(Data!I36-1) -> 47.91025014 | K39: =('R8 - Net Debt'!K54-AVERAGE(('R8 - Net Debt'!K8-'[3]R8a - Net Debt input'!Z18),('R8 - Net Debt'!K10-'[3]R8a - Net Debt input'!AA18)))*(Data!J36-1) -> 26.22949913
B41: Assumed Regulatory finance cost at actual gearing | C41: £m nominal | D41: =D32-D39 -> 3.932224282 | E41: 9.967631489 | F41: 17.32608389 | G41: 8.890545007 | H41: -20.67395817 | I41: -16.58427257 | J41: -8.736964111 | K41: 11.15740243
B43: Financial Year Average RPI (RPIt) | C43: Index | D43: =Data!C34 -> 1.166689067 | E43: =Data!D34 -> 1.189556327 | F43: =Data!E34 -> 1.202375711 | G43: =Data!F34 -> 1.228139614 | H43: =Data!G34 -> 1.274096595 | I43: =Data!H34 -> 1.313027479 | J43: =Data!I34 -> 1.347017848 | K43: =Data!J34 -> 1.363354915
B45: Assumed regulatory finance cost at actual gearing | C45: ='RFPR cover'!$C$14 -> £m 09/10 | D45: =D41/D43 -> 3.370413242 | E45: 8.379285001 | F45: 14.40987516 | G45: 7.239034479 | H45: -16.22636639 | I45: -12.63056017 | J45: -6.486153189 | K45: 8.183784213 | L45: =SUM(D45:INDEX(D45:K45,0,MATCH('RFPR cover'!$C$7,$D$6:$K$6,0))) -> 6.239312347 | M45: =SUM(D45:K45) -> 6.239312347
B47: Adjustments to be applied to Assumed Finance cost for performance assessment
B48: ='[3]R7a - Financing input'!C527 -> Add back Debt Issuance expenses | C48: £m nominal | D48: ='[3]R7a - Financing input'!M527 -> 0 | E48: ='[3]R7a - Financing input'!N527 -> 0 | F48: ='[3]R7a - Financing input'!O527 -> 0 | G48: ='[3]R7a - Financing input'!P527 -> 1 | H48: ='[3]R7a - Financing input'!Q527 -> 2.750202954 | I48: ='[3]R7a - Financing input'!R527 -> 2.77 | J48: ='[3]R7a - Financing input'!S527 -> 4.566235503 | K48: ='[3]R7a - Financing input'!T527 -> 3.06516627 | L48: =SUM(D48:INDEX(D48:K48,0,MATCH('RFPR cover'!$C$7,$D$6:$K$6,0))) -> 14.15160473 | M48: =SUM(D48:K48) -> 14.15160473
B49: New/refinanced debt issuance expenses | C49: £m nominal | L49: =SUM(D49:INDEX(D49:K49,0,MATCH('RFPR cover'!$C$7,$D$6:$K$6,0))) -> 0 | M49: =SUM(D49:K49) -> 0
B50: ='[3]R7a - Financing input'!C528 -> Costs of early redemption on long term debt (excluding exceptional costs of buy backs associated with M&A activity) | C50: £m nominal | D50: ='[3]R7a - Financing input'!M528 -> 0 | E50: ='[3]R7a - Financing input'!N528 -> 18.13 | F50: ='[3]R7a - Financing input'!O528 -> 0 | G50: ='[3]R7a - Financing input'!P528 -> 0 | H50: ='[3]R7a - Financing input'!Q528 -> 0 | I50: ='[3]R7a - Financing input'!R528 -> 0 | J50: ='[3]R7a - Financing input'!S528 -> 4.376 | K50: ='[3]R7a - Financing input'!T528 -> 0 | L50: =SUM(D50:INDEX(D50:K50,0,MATCH('RFPR cover'!$C$7,$D$6:$K$6,0))) -> 22.506 | M50: =SUM(D50:K50) -> 22.506
B51: ='[3]R7a - Financing input'!C529 -> Add accrual for inflation accretion on index-linked swaps (if applicable) | C51: £m nominal | D51: ='[3]R7a - Financing input'!M529 -> 0 | E51: ='[3]R7a - Financing input'!N529 -> 0 | F51: ='[3]R7a - Financing input'!O529 -> 0 | G51: ='[3]R7a - Financing input'!P529 -> 0 | H51: ='[3]R7a - Financing input'!Q529 -> 0 | I51: ='[3]R7a - Financing input'!R529 -> 0 | J51: ='[3]R7a - Financing input'!S529 -> 0 | K51: ='[3]R7a - Financing input'!T529 -> 0 | L51: =SUM(D51:INDEX(D51:K51,0,MATCH('RFPR cover'!$C$7,$D$6:$K$6,0))) -> 0 | M51: 0
B52: ='[3]R7a - Financing input'!C530 -> Correction of debt issuance expense add back above | C52: £m nominal | D52: ='[3]R7a - Financing input'!M530 -> 0 | E52: ='[3]R7a - Financing input'!N530 -> 0 | F52: ='[3]R7a - Financing input'!O530 -> 0 | G52: ='[3]R7a - Financing input'!P530 -> -0.6567477153 | H52: ='[3]R7a - Financing input'!Q530 -> -1.811514265 | I52: ='[3]R7a - Financing input'!R530 -> -1.828953683 | J52: ='[3]R7a - Financing input'!S530 -> 0 | K52: ='[3]R7a - Financing input'!T530 -> 0 | L52: =SUM(D52:INDEX(D52:K52,0,MATCH('RFPR cover'!$C$7,$D$6:$K$6,0))) -> -4.297215664 | M52: -4.297215664
B53: ='[3]R7a - Financing input'!C531 -> Correction of inflation strip calculation | C53: £m nominal | D53: ='[3]R7a - Financing input'!M531 -> 7.227440822 | E53: ='[3]R7a - Financing input'!N531 -> 3.114583784 | F53: ='[3]R7a - Financing input'!O531 -> 1.048841208 | G53: ='[3]R7a - Financing input'!P531 -> 0.7509989348 | H53: ='[3]R7a - Financing input'!Q531 -> 2.507052284 | I53: ='[3]R7a - Financing input'!R531 -> 4.967062691 | J53: ='[3]R7a - Financing input'!S531 -> 0 | K53: ='[3]R7a - Financing input'!T531 -> 0 | L53: =SUM(D53:INDEX(D53:K53,0,MATCH('RFPR cover'!$C$7,$D$6:$K$6,0))) -> 19.61597972 | M53: 19.61597972
B54: ='[3]R7a - Financing input'!C532 -> Other Adjustments [please specify] | C54: £m nominal | D54: ='[3]R7a - Financing input'!M532 -> 0 | E54: ='[3]R7a - Financing input'!N532 -> 0 | F54: ='[3]R7a - Financing input'!O532 -> 0 | G54: ='[3]R7a - Financing input'!P532 -> 0 | H54: ='[3]R7a - Financing input'!Q532 -> 0 | I54: ='[3]R7a - Financing input'!R532 -> 0 | J54: ='[3]R7a - Financing input'!S532 -> 0 | K54: ='[3]R7a - Financing input'!T532 -> 0 | L54: =SUM(D54:INDEX(D54:K54,0,MATCH('RFPR cover'!$C$7,$D$6:$K$6,0))) -> 0 | M54: 0
B55: ='[3]R7a - Financing input'!C533 -> Other Adjustments [please specify] | C55: £m nominal | D55: ='[3]R7a - Financing input'!M533 -> 0 | E55: ='[3]R7a - Financing input'!N533 -> 0 | F55: ='[3]R7a - Financing input'!O533 -> 0 | G55: ='[3]R7a - Financing input'!P533 -> 0 | H55: ='[3]R7a - Financing input'!Q533 -> 0 | I55: ='[3]R7a - Financing input'!R533 -> 0 | J55: ='[3]R7a - Financing input'!S533 -> 0 | K55: ='[3]R7a - Financing input'!T533 -> 0 | L55: =SUM(D55:INDEX(D55:K55,0,MATCH('RFPR cover'!$C$7,$D$6:$K$6,0))) -> 0 | M55: 0
B57: Total Adjustments to be applied for performance assessment (at actual gearing) | C57: £m nominal | D57: =SUM(D48:D55) -> 7.227440822 | E57: =SUM(E48:E55) -> 21.24458378 | F57: 1.048841208 | G57: 1.094251219 | H57: 3.445740973 | I57: 5.908109008 | J57: 8.942235503 | K57: 3.06516627 | L57: =SUM(D57:INDEX(D57:K57,0,MATCH('RFPR cover'!$C$7,$D$6:$K$6,0))) -> 51.97636879 | M57: 51.97636879
B58: Total Adjustments to be applied for performance assessment (at actual gearing) | C58: ='RFPR cover'!$C$14 -> £m 09/10 | D58: =D57/D43 -> 6.194830331 | E58: =E57/E43 -> 17.85924996 | F58: 0.8723073815 | G58: 0.8909827575 | H58: 2.704458192 | I58: 4.499608046 | J58: 6.638542701 | K58: 2.248252627 | L58: =SUM(D58:INDEX(D58:K58,0,MATCH('RFPR cover'!$C$7,$D$6:$K$6,0))) -> 41.908232 | M58: =SUM(D58:K58) -> 41.908232
B61: Cost of Debt out(under)performance at notional gearing
B62: Performance against allowance is impacted by deviating from notional levels of gearing
B64: Notional Gearing | C64: % | D64: ='RFPR cover'!$C$12 -> 0.65 | E64: ='RFPR cover'!$C$12 -> 0.65 | F64: ='RFPR cover'!$C$12 -> 0.65 | G64: ='RFPR cover'!$C$12 -> 0.65 | H64: ='RFPR cover'!$C$12 -> 0.65 | I64: ='RFPR cover'!$C$12 -> 0.65 | J64: ='RFPR cover'!$C$12 -> 0.65 | K64: ='RFPR cover'!$C$12 -> 0.65
B65: Actual Gearing | C65: % | D65: ='R8 - Net Debt'!D64 -> 0.5416472425 | E65: ='R8 - Net Debt'!E64 -> 0.5827600874 | F65: ='R8 - Net Debt'!F64 -> 0.5621818627 | G65: ='R8 - Net Debt'!G64 -> 0.5941531825 | H65: ='R8 - Net Debt'!H64 -> 0.6300336787 | I65: ='R8 - Net Debt'!I64 -> 0.6257737825 | J65: ='R8 - Net Debt'!J64 -> 0.628477463 | K65: ='R8 - Net Debt'!K64 -> 0.6255426775
B67: Assumed regulatory finance cost at actual gearing | C67: £m nominal | D67: =D41 -> 3.932224282 | E67: 9.967631489 | F67: 17.32608389 | G67: 8.890545007 | H67: -20.67395817 | I67: -16.58427257 | J67: -8.736964111 | K67: 11.15740243
B68: Adjustment to regulatory finance cost relating to variance from notional gearing | C68: £m nominal | D68: =((D64-D65)/D65)*D67 -> 0.7866140739 | E68: =((E64-E65)/E65)*E67 -> 1.150083344 | F68: 2.706498582 | G68: 0.835657637 | H68: -0.6551759126 | I68: -0.6420438281 | J68: -0.2992018719 | K68: 0.4362295326
B69: Assumed regulatory finance cost at notional gearing | C69: £m nominal | D69: =SUM(D67:D68) -> 4.718838356 | E69: =SUM(E67:E68) -> 11.11771483 | F69: 20.03258247 | G69: 9.726202644 | H69: -21.32913408 | I69: -17.2263164 | J69: -9.036165983 | K69: 11.59363197
B71: Assumed regulatory finance cost at notional gearing | C71: ='RFPR cover'!$C$14 -> £m 09/10 | D71: =D69/D43 -> 4.044640931 | E71: 9.346102056 | F71: 16.66083429 | G71: 7.919460082 | H71: -16.74059421 | I71: -13.1195399 | J71: -6.708274873 | K71: 8.50375191 | L71: =SUM(D71:INDEX(D71:K71,0,MATCH('RFPR cover'!$C$7,$D$6:$K$6,0))) -> 9.906380282 | M71: =SUM(D71:K71) -> 9.906380282
B72: Adjustments to be applied for performance assessment (at notional gearing) | C72: ='RFPR cover'!$C$14 -> £m 09/10 | D72: =D58*((D64-D65)/D65)+D58 -> 7.434062983 | E72: =E58*((E64-E65)/E65)+E58 -> 19.91988251 | F72: 1.008570065 | G72: 0.9747297657 | H72: 2.79016485 | I72: 4.673805953 | J72: 6.865883042 | K72: 2.336154287 | L72: =SUM(D72:INDEX(D72:K72,0,MATCH('RFPR cover'!$C$7,$D$6:$K$6,0))) -> 46.00325346 | M72: =SUM(D72:K72) -> 46.00325346
B74: Cost of Debt Allowance
B76: The latest published PCFM contains the allowed cost of debt rate (%) for the reporting year.
B77: However, the RAV does not account for the reporting year actual expenditure and additional allowances.
B78: Consequently the return element of revenue does not currently reflect the monetary allowance. This is updated and available in the forthcoming annual iteration process.
B79: To address this timing issue, network operators should forecast the allowance in row 79 (linked to R9-RAV table) - which will be trued-up over time.
B81: Cost of Debt Allowance as per latest published PCFM (prior year AIP) | C81: ='RFPR cover'!$C$14 -> £m 09/10 | D81: 30.57688631 | E81: 28.57194031 | F81: 27.04694738 | G81: 25.63300979 | H81: 24.30440038 | I81: 21.3348723 | J81: 18.0724043 | K81: 12.84365533
B82: Forecast revised Cost of Debt Allowance | C82: ='RFPR cover'!$C$14 -> £m 09/10 | D82: ='R9 - RAV'!D49 -> 30.5528599 | E82: ='R9 - RAV'!E49 -> 28.51186051 | F82: ='R9 - RAV'!F49 -> 26.9290783 | G82: ='R9 - RAV'!G49 -> 25.49801884 | H82: ='R9 - RAV'!H49 -> 24.22410358 | I82: ='R9 - RAV'!I49 -> 21.34717344 | J82: ='R9 - RAV'!J49 -> 18.18019023 | K82: ='R9 - RAV'!K49 -> 12.87105146 | L82: =SUM(D82:INDEX(D82:K82,0,MATCH('RFPR cover'!$C$7,$D$6:$K$6,0))) -> 188.1143363 | M82: =SUM(D82:K82) -> 188.1143363
B85: Out(under) performance
B87: Pre-Tax performance
B88: Pre-Tax Cost of Debt out(under)performance at actual gearing | C88: ='RFPR cover'!$C$14 -> £m 09/10 | D88: =D82-D45-D58 -> 20.98761633 | E88: =E82-E45-E58 -> 2.273325546 | F88: 11.64689576 | G88: 17.36800161 | H88: 37.74601179 | I88: 29.47812556 | J88: 18.02780072 | K88: 2.439014615 | L88: =SUM(D88:INDEX(D88:K88,0,MATCH('RFPR cover'!$C$7,$D$6:$K$6,0))) -> 139.9667919 | M88: =SUM(D88:K88) -> 139.9667919
B90: Pre-Tax Cost of Debt out(under)performance at notional gearing | C90: ='RFPR cover'!$C$14 -> £m 09/10 | D90: =D82-D71-D72 -> 19.07415599 | E90: =E82-E71-E72 -> -0.75412406 | F90: 9.259673944 | G90: 16.603829 | H90: 38.17453295 | I90: 29.79290739 | J90: 18.02258206 | K90: 2.031145258 | L90: =SUM(D90:INDEX(D90:K90,0,MATCH('RFPR cover'!$C$7,$D$6:$K$6,0))) -> 132.2047025 | M90: =SUM(D90:K90) -> 132.2047025
B92: Pre-Tax Impact on out(under) performance relating to deviating from notional levels of gearing | C92: ='RFPR cover'!$C$14 -> £m 09/10 | D92: =D88-D90 -> 1.913460341 | E92: 3.027449606 | F92: 2.387221812 | G92: 0.7641726111 | H92: -0.4285211605 | I92: -0.3147818274 | J92: 0.005218657944 | K92: 0.4078693569 | L92: =SUM(D92:INDEX(D92:K92,0,MATCH('RFPR cover'!$C$7,$D$6:$K$6,0))) -> 7.762089397 | M92: =SUM(D92:K92) -> 7.762089397

Sheet R8 - Net Debt
A1: R8 - Net Debt
A2: ='RFPR cover'!C5 -> Cadent-London
A3: ='RFPR cover'!C7 -> 2021 | B3: ='R1 - RoRE'!B3 -> 
D5: =IF(D6<='RFPR cover'!$C$7,"Actuals","Forecast") -> Actuals | E5: =IF(E6<='RFPR cover'!$C$7,"Actuals","Forecast") -> Actuals | F5: =IF(F6<='RFPR cover'!$C$7,"Actuals","Forecast") -> Actuals | G5: =IF(G6<='RFPR cover'!$C$7,"Actuals","Forecast") -> Actuals | H5: =IF(H6<='RFPR cover'!$C$7,"Actuals","Forecast") -> Actuals | I5: =IF(I6<='RFPR cover'!$C$7,"Actuals","Forecast") -> Actuals | J5: =IF(J6<='RFPR cover'!$C$7,"Actuals","Forecast") -> Actuals | K5: =IF(K6<='RFPR cover'!$C$7,"Actuals","Forecast") -> Actuals
D6: ='RFPR cover'!$C$13 -> 2014 | E6: =D6+1 -> 2015 | F6: =E6+1 -> 2016 | G6: 2017 | H6: 2018 | I6: 2019 | J6: 2020 | K6: 2021
B8: Opening Cash, short term deposits and overdrafts (per Balance Sheet) | C8: £m nominal | D8: -513 | E8: =D10 -> -257.707346 | F8: =E10 -> -230.1982394 | G8: -67.9508992 | H8: -38.99908504 | I8: -164.53 | J8: -328.34 | K8: -335.7
B10: Closing Cash, short term deposits and overdrafts (per Balance Sheet) | C10: £m nominal | D10: ='[3]R8a - Net Debt input'!T20 -> -257.707346 | E10: ='[3]R8a - Net Debt input'!U20 -> -230.1982394 | F10: ='[3]R8a - Net Debt input'!V20 -> -67.9508992 | G10: ='[3]R8a - Net Debt input'!W20 -> -38.99908504 | H10: ='[3]R8a - Net Debt input'!X20 -> -164.53 | I10: ='[3]R8a - Net Debt input'!Y20 -> -328.34 | J10: ='[3]R8a - Net Debt input'!Z20 -> -335.7 | K10: ='[3]R8a - Net Debt input'!AA20 -> -826.1311099
B11: External borrowings, bonds, external loans and finance leases (+ve) | C11: £m nominal | D11: ='[3]R8a - Net Debt input'!T63 -> 4571.476896 | E11: ='[3]R8a - Net Debt input'!U63 -> 4673.721831 | F11: ='[3]R8a - Net Debt input'!V63 -> 4702.326905 | G11: ='[3]R8a - Net Debt input'!W63 -> 1709.99927 | H11: ='[3]R8a - Net Debt input'!X63 -> 6330.666466 | I11: ='[3]R8a - Net Debt input'!Y63 -> 6684.145364 | J11: ='[3]R8a - Net Debt input'!Z63 -> 6966.039115 | K11: ='[3]R8a - Net Debt input'!AA63 -> 7428.536388
B12: Loans from other group companies (+ve) | C12: £m nominal | D12: ='[3]R8a - Net Debt input'!T78 -> 0 | E12: ='[3]R8a - Net Debt input'!U78 -> 0 | F12: ='[3]R8a - Net Debt input'!V78 -> 0 | G12: ='[3]R8a - Net Debt input'!W78 -> 4311.999103 | H12: ='[3]R8a - Net Debt input'!X78 -> 0 | I12: ='[3]R8a - Net Debt input'!Y78 -> 0 | J12: ='[3]R8a - Net Debt input'!Z78 -> 0 | K12: ='[3]R8a - Net Debt input'!AA78 -> 0
B13: Loans to other group companies (-ve) | C13: £m nominal | D13: ='[3]R8a - Net Debt input'!T93 -> 1196.767773 | E13: ='[3]R8a - Net Debt input'!U93 -> 1241.041197 | F13: ='[3]R8a - Net Debt input'!V93 -> 955.0530052 | G13: ='[3]R8a - Net Debt input'!W93 -> 0 | H13: ='[3]R8a - Net Debt input'!X93 -> 0 | I13: ='[3]R8a - Net Debt input'!Y93 -> 0 | J13: ='[3]R8a - Net Debt input'!Z93 -> 0 | K13: ='[3]R8a - Net Debt input'!AA93 -> 0
B14: Other amounts due to/(from) group companies per Balance Sheet | C14: £m nominal | D14: ='[3]R8a - Net Debt input'!T108 -> 0 | E14: ='[3]R8a - Net Debt input'!U108 -> 0 | F14: ='[3]R8a - Net Debt input'!V108 -> 0 | G14: ='[3]R8a - Net Debt input'!W108 -> 0 | H14: ='[3]R8a - Net Debt input'!X108 -> 0 | I14: ='[3]R8a - Net Debt input'!Y108 -> 0 | J14: ='[3]R8a - Net Debt input'!Z108 -> 0 | K14: ='[3]R8a - Net Debt input'!AA108 -> 0
B15: Guarantees given on behalf of other group companies (per Notes to the Accounts) (+ve) | C15: £m nominal | D15: ='[3]R8a - Net Debt input'!T124 -> 0 | E15: ='[3]R8a - Net Debt input'!U124 -> 0 | F15: ='[3]R8a - Net Debt input'!V124 -> 0 | G15: ='[3]R8a - Net Debt input'!W124 -> 0 | H15: ='[3]R8a - Net Debt input'!X124 -> 40.91 | I15: ='[3]R8a - Net Debt input'!Y124 -> 41.91 | J15: ='[3]R8a - Net Debt input'!Z124 -> 69.77177841 | K15: ='[3]R8a - Net Debt input'!AA124 -> 63.90936975
B16: Currency SWAPS | C16: £m nominal | D16: ='[3]R8a - Net Debt input'!T140 -> 0 | E16: ='[3]R8a - Net Debt input'!U140 -> 0 | F16: ='[3]R8a - Net Debt input'!V140 -> 0 | G16: ='[3]R8a - Net Debt input'!W140 -> 0 | H16: ='[3]R8a - Net Debt input'!X140 -> -14.64129762 | I16: ='[3]R8a - Net Debt input'!Y140 -> -4.74769047 | J16: ='[3]R8a - Net Debt input'!Z140 -> -26.10001358 | K16: ='[3]R8a - Net Debt input'!AA140 -> 48.30554987
B17: Interest rate SWAPS | C17: £m nominal | D17: ='[3]R8a - Net Debt input'!T168 -> 0 | E17: ='[3]R8a - Net Debt input'!U168 -> 0 | F17: ='[3]R8a - Net Debt input'!V168 -> 0 | G17: ='[3]R8a - Net Debt input'!W168 -> 0 | H17: ='[3]R8a - Net Debt input'!X168 -> 0 | I17: ='[3]R8a - Net Debt input'!Y168 -> 0 | J17: ='[3]R8a - Net Debt input'!Z168 -> 0 | K17: ='[3]R8a - Net Debt input'!AA168 -> 0
B18: Inflation-linked SWAPS | C18: £m nominal | D18: ='[3]R8a - Net Debt input'!T195 -> 0 | E18: ='[3]R8a - Net Debt input'!U195 -> 0 | F18: ='[3]R8a - Net Debt input'!V195 -> 0 | G18: ='[3]R8a - Net Debt input'!W195 -> 0 | H18: ='[3]R8a - Net Debt input'!X195 -> 5.52257724 | I18: ='[3]R8a - Net Debt input'!Y195 -> 34.6005225 | J18: ='[3]R8a - Net Debt input'!Z195 -> 58.91810593 | K18: ='[3]R8a - Net Debt input'!AA195 -> 66.74754241
B19: Interest Rate Forward Contracts | C19: £m nominal | D19: ='[3]R8a - Net Debt input'!T218 -> 0 | E19: ='[3]R8a - Net Debt input'!U218 -> 0 | F19: ='[3]R8a - Net Debt input'!V218 -> 0 | G19: ='[3]R8a - Net Debt input'!W218 -> 0 | H19: ='[3]R8a - Net Debt input'!X218 -> 0 | I19: ='[3]R8a - Net Debt input'!Y218 -> 0 | J19: ='[3]R8a - Net Debt input'!Z218 -> 0 | K19: ='[3]R8a - Net Debt input'!AA218 -> 0
B20: Foreign exchange forward rate contracts | C20: £m nominal | D20: ='[3]R8a - Net Debt input'!T246 -> 0 | E20: ='[3]R8a - Net Debt input'!U246 -> 0 | F20: ='[3]R8a - Net Debt input'!V246 -> 0 | G20: ='[3]R8a - Net Debt input'!W246 -> 0 | H20: ='[3]R8a - Net Debt input'!X246 -> 0 | I20: ='[3]R8a - Net Debt input'!Y246 -> 0 | J20: ='[3]R8a - Net Debt input'!Z246 -> 0.10614119 | K20: ='[3]R8a - Net Debt input'!AA246 -> 0.18268189
B21: Other swaps, forward rate contracts & OTC options | C21: £m nominal | D21: ='[3]R8a - Net Debt input'!T272 -> -205.5373223 | E21: ='[3]R8a - Net Debt input'!U272 -> -281.5647887 | F21: ='[3]R8a - Net Debt input'!V272 -> -320.4290109 | G21: ='[3]R8a - Net Debt input'!W272 -> 0 | H21: ='[3]R8a - Net Debt input'!X272 -> 0 | I21: ='[3]R8a - Net Debt input'!Y272 -> 0 | J21: ='[3]R8a - Net Debt input'!Z272 -> 0 | K21: ='[3]R8a - Net Debt input'!AA272 -> 0
B22: Other derivatives including exchange traded futures and options | C22: £m nominal | D22: ='[3]R8a - Net Debt input'!T288 -> 0 | E22: ='[3]R8a - Net Debt input'!U288 -> 0 | F22: ='[3]R8a - Net Debt input'!V288 -> 0 | G22: ='[3]R8a - Net Debt input'!W288 -> 0 | H22: ='[3]R8a - Net Debt input'!X288 -> 0 | I22: ='[3]R8a - Net Debt input'!Y288 -> 0 | J22: ='[3]R8a - Net Debt input'!Z288 -> 0 | K22: ='[3]R8a - Net Debt input'!AA288 -> 0
B23: Total Debt per Statutory Accounts | C23: £m nominal | D23: =SUM(D10:D22) -> 5305 | E23: =SUM(E10:E22) -> 5403 | F23: 5269 | G23: 5982.999288 | H23: 6197.927745 | I23: 6427.568196 | J23: 6733.035127 | K23: 6781.550422
B25: Conversion to Regulatory (RIIO-1) Definition of Net Debt
B26: ='[3]R8a - Net Debt input'!D318 -> Unamortised Issue Costs | C26: £m nominal | D26: ='[3]R8a - Net Debt input'!T318 -> 0 | E26: ='[3]R8a - Net Debt input'!U318 -> 0 | F26: ='[3]R8a - Net Debt input'!V318 -> 0 | G26: ='[3]R8a - Net Debt input'!W318 -> 11.76529318 | H26: ='[3]R8a - Net Debt input'!X318 -> 11.70151638 | I26: ='[3]R8a - Net Debt input'!Y318 -> 10.9 | J26: ='[3]R8a - Net Debt input'!Z318 -> 14.36155951 | K26: ='[3]R8a - Net Debt input'!AA318 -> 14.46798041
B27: ='[3]R8a - Net Debt input'!D319 -> Fixed asset investments not readily convertible to cash | C27: £m nominal | D27: ='[3]R8a - Net Debt input'!T319 -> 0 | E27: ='[3]R8a - Net Debt input'!U319 -> 0 | F27: ='[3]R8a - Net Debt input'!V319 -> 0 | G27: ='[3]R8a - Net Debt input'!W319 -> 0 | H27: ='[3]R8a - Net Debt input'!X319 -> 0 | I27: ='[3]R8a - Net Debt input'!Y319 -> 0 | J27: ='[3]R8a - Net Debt input'!Z319 -> 0 | K27: ='[3]R8a - Net Debt input'!AA319 -> 0
B28: ='[3]R8a - Net Debt input'!D320 -> Preference shares | C28: £m nominal | D28: ='[3]R8a - Net Debt input'!T320 -> 0 | E28: ='[3]R8a - Net Debt input'!U320 -> 0 | F28: ='[3]R8a - Net Debt input'!V320 -> 0 | G28: ='[3]R8a - Net Debt input'!W320 -> 0 | H28: ='[3]R8a - Net Debt input'!X320 -> 0 | I28: ='[3]R8a - Net Debt input'!Y320 -> 0 | J28: ='[3]R8a - Net Debt input'!Z320 -> 0 | K28: ='[3]R8a - Net Debt input'!AA320 -> 0
B29: ='[3]R8a - Net Debt input'!D321 -> Long term loans (Not for benefit of regulated business or distribution in nature) | C29: £m nominal | D29: ='[3]R8a - Net Debt input'!T321 -> 0 | E29: ='[3]R8a - Net Debt input'!U321 -> 0 | F29: ='[3]R8a - Net Debt input'!V321 -> 0 | G29: ='[3]R8a - Net Debt input'!W321 -> 0 | H29: ='[3]R8a - Net Debt input'!X321 -> 0 | I29: ='[3]R8a - Net Debt input'!Y321 -> 0 | J29: ='[3]R8a - Net Debt input'!Z321 -> 0 | K29: ='[3]R8a - Net Debt input'!AA321 -> 0
B30: ='[3]R8a - Net Debt input'!D322 -> Currency debt amount to reflect ultimate sterling liability | C30: £m nominal | D30: ='[3]R8a - Net Debt input'!T322 -> 0 | E30: ='[3]R8a - Net Debt input'!U322 -> 0 | F30: ='[3]R8a - Net Debt input'!V322 -> 0 | G30: ='[3]R8a - Net Debt input'!W322 -> -9.751834099 | H30: ='[3]R8a - Net Debt input'!X322 -> -5.349132993 | I30: ='[3]R8a - Net Debt input'!Y322 -> -1.74 | J30: ='[3]R8a - Net Debt input'!Z322 -> -17.71589001 | K30: ='[3]R8a - Net Debt input'!AA322 -> -19.38318735
B31: ='[3]R8a - Net Debt input'!D323 -> Impact of fair value adjustments | C31: £m nominal | D31: ='[3]R8a - Net Debt input'!T323 -> 42.38373791 | E31: ='[3]R8a - Net Debt input'!U323 -> -6.4196 | F31: ='[3]R8a - Net Debt input'!V323 -> -28.08 | G31: ='[3]R8a - Net Debt input'!W323 -> -317.4531761 | H31: ='[3]R8a - Net Debt input'!X323 -> -309.3773091 | I31: ='[3]R8a - Net Debt input'!Y323 -> -301.32 | J31: ='[3]R8a - Net Debt input'!Z323 -> -283.6513216 | K31: ='[3]R8a - Net Debt input'!AA323 -> -271.1186843
B32: ='[3]R8a - Net Debt input'!D324 -> Accrued Interest | C32: £m nominal | D32: ='[3]R8a - Net Debt input'!T324 -> -50.67388744 | E32: ='[3]R8a - Net Debt input'!U324 -> -49.606 | F32: ='[3]R8a - Net Debt input'!V324 -> -50.31 | G32: ='[3]R8a - Net Debt input'!W324 -> -40.00826043 | H32: ='[3]R8a - Net Debt input'!X324 -> -40.91080948 | I32: ='[3]R8a - Net Debt input'!Y324 -> -41.91 | J32: ='[3]R8a - Net Debt input'!Z324 -> -44.0983376 | K32: ='[3]R8a - Net Debt input'!AA324 -> -44.03666732
B33: ='[3]R8a - Net Debt input'!D325 -> ILS financial exposure; direct offset with row 180 (no net impact on regulatory net debt) | C33: £m nominal | D33: ='[3]R8a - Net Debt input'!T325 -> 0 | E33: ='[3]R8a - Net Debt input'!U325 -> 0 | F33: ='[3]R8a - Net Debt input'!V325 -> 0 | G33: ='[3]R8a - Net Debt input'!W325 -> 0 | H33: ='[3]R8a - Net Debt input'!X325 -> -5.52257724 | I33: ='[3]R8a - Net Debt input'!Y325 -> -34.600522 | J33: ='[3]R8a - Net Debt input'!Z325 -> -58.91810593 | K33: ='[3]R8a - Net Debt input'!AA325 -> -66.74754241
B34: ='[3]R8a - Net Debt input'!D326 -> ILS financial exposure; financials presented up to FY16/17 relate to pre segmentation derivatives. Post FY 17/18 balances relate to accretions on instrument B2.1. | C34: £m nominal | D34: ='[3]R8a - Net Debt input'!T326 -> 57.6433474 | E34: ='[3]R8a - Net Debt input'!U326 -> 34.4324 | F34: ='[3]R8a - Net Debt input'!V326 -> 26.325 | G34: ='[3]R8a - Net Debt input'!W326 -> 0 | H34: ='[3]R8a - Net Debt input'!X326 -> 0 | I34: ='[3]R8a - Net Debt input'!Y326 -> 27.848262 | J34: ='[3]R8a - Net Debt input'!Z326 -> 37.16919655 | K34: ='[3]R8a - Net Debt input'!AA326 -> 42.9211242
B35: ='[3]R8a - Net Debt input'!D327 -> Less: Derivatives excluding Cross currency | C35: £m nominal | D35: ='[3]R8a - Net Debt input'!T327 -> 0 | E35: ='[3]R8a - Net Debt input'!U327 -> 0 | F35: ='[3]R8a - Net Debt input'!V327 -> 0 | G35: ='[3]R8a - Net Debt input'!W327 -> 0 | H35: ='[3]R8a - Net Debt input'!X327 -> 0 | I35: ='[3]R8a - Net Debt input'!Y327 -> 0 | J35: ='[3]R8a - Net Debt input'!Z327 -> 0 | K35: ='[3]R8a - Net Debt input'!AA327 -> 0
B36: ='[3]R8a - Net Debt input'!D328 -> Net debt relating to Metering | C36: £m nominal | D36: ='[3]R8a - Net Debt input'!T328 -> -299 | E36: ='[3]R8a - Net Debt input'!U328 -> -430 | F36: ='[3]R8a - Net Debt input'!V328 -> -332 | G36: ='[3]R8a - Net Debt input'!W328 -> 0 | H36: ='[3]R8a - Net Debt input'!X328 -> 0 | I36: ='[3]R8a - Net Debt input'!Y328 -> 0 | J36: ='[3]R8a - Net Debt input'!Z328 -> 0 | K36: ='[3]R8a - Net Debt input'!AA328 -> 0
B37: ='[3]R8a - Net Debt input'!D329 -> Net debt relating to other three networks | C37: £m nominal | D37: ='[3]R8a - Net Debt input'!T329 -> -3904.159884 | E37: ='[3]R8a - Net Debt input'!U329 -> -3823.2861 | F37: ='[3]R8a - Net Debt input'!V329 -> -3772.772 | G37: ='[3]R8a - Net Debt input'!W329 -> -4281.980407 | H37: ='[3]R8a - Net Debt input'!X329 -> -4452.275155 | I37: ='[3]R8a - Net Debt input'!Y329 -> -4611.279856 | J37: ='[3]R8a - Net Debt input'!Z329 -> -4792.52669 | K37: ='[3]R8a - Net Debt input'!AA329 -> -4816.263972
B38: ='[3]R8a - Net Debt input'!D330 -> 9. IFRS 16 Lease Liabilities | C38: £m nominal | D38: ='[3]R8a - Net Debt input'!T330 -> 0 | E38: ='[3]R8a - Net Debt input'!U330 -> 0 | F38: ='[3]R8a - Net Debt input'!V330 -> 0 | G38: ='[3]R8a - Net Debt input'!W330 -> 0 | H38: ='[3]R8a - Net Debt input'!X330 -> 0 | I38: ='[3]R8a - Net Debt input'!Y330 -> 0 | J38: ='[3]R8a - Net Debt input'!Z330 -> -25.67344081 | K38: ='[3]R8a - Net Debt input'!AA330 -> -19.87270243
B39: ='[3]R8a - Net Debt input'!D331 -> 10. [Insert adjustment as necessary] | C39: £m nominal | D39: ='[3]R8a - Net Debt input'!T331 -> 0 | E39: ='[3]R8a - Net Debt input'!U331 -> 0 | F39: ='[3]R8a - Net Debt input'!V331 -> 0 | G39: ='[3]R8a - Net Debt input'!W331 -> 0 | H39: ='[3]R8a - Net Debt input'!X331 -> 0 | I39: ='[3]R8a - Net Debt input'!Y331 -> 0 | J39: ='[3]R8a - Net Debt input'!Z331 -> 0 | K39: ='[3]R8a - Net Debt input'!AA331 -> 0
B40: ='[3]R8a - Net Debt input'!D332 -> 11. [Insert adjustment as necessary] | C40: £m nominal | D40: ='[3]R8a - Net Debt input'!T332 -> 0 | E40: ='[3]R8a - Net Debt input'!U332 -> 0 | F40: ='[3]R8a - Net Debt input'!V332 -> 0 | G40: ='[3]R8a - Net Debt input'!W332 -> 0 | H40: ='[3]R8a - Net Debt input'!X332 -> 0 | I40: ='[3]R8a - Net Debt input'!Y332 -> 0 | J40: ='[3]R8a - Net Debt input'!Z332 -> 0 | K40: ='[3]R8a - Net Debt input'!AA332 -> 0
B41: ='[3]R8a - Net Debt input'!D333 -> 12. [Insert adjustment as necessary] | C41: £m nominal | D41: ='[3]R8a - Net Debt input'!T333 -> 0.06 | E41: ='[3]R8a - Net Debt input'!U333 -> -0.73 | F41: ='[3]R8a - Net Debt input'!V333 -> 0 | G41: ='[3]R8a - Net Debt input'!W333 -> -0.03061514993 | H41: ='[3]R8a - Net Debt input'!X333 -> 0.05999985 | I41: ='[3]R8a - Net Debt input'!Y333 -> 0 | J41: ='[3]R8a - Net Debt input'!Z333 -> 0 | K41: ='[3]R8a - Net Debt input'!AA333 -> 0
B42: Total Net Debt per Regulatory (RIIO-1) definition | C42: £m nominal | D42: =SUM(D23,D26:D41) -> 1151.253314 | E42: =SUM(E23,E26:E41) -> 1127.3907 | F42: 1112.163 | G42: 1345.540288 | H42: 1396.254278 | I42: 1475.46608 | J42: 1561.982097 | K42: 1601.516771
B43: Forecast new debt/refinancing | C43: £m nominal
B44: Regulatory Net Debt including forecast new debt/refinancing | C44: £m nominal | D44: =SUM(D42:D43) -> 1151.253314 | E44: =SUM(E42:E43) -> 1127.3907 | F44: 1112.163 | G44: 1345.540288 | H44: 1396.254278 | I44: 1475.46608 | J44: 1561.982097 | K44: 1601.516771
D45: =IF(ABS(D42-'[3]R8a - Net Debt input'!T334)<'RFPR cover'!$F$14,"OK","Error") -> OK | E45: =IF(ABS(E42-'[3]R8a - Net Debt input'!U334)<'RFPR cover'!$F$14,"OK","Error") -> OK | F45: =IF(ABS(F42-'[3]R8a - Net Debt input'!V334)<'RFPR cover'!$F$14,"OK","Error") -> OK | G45: =IF(ABS(G42-'[3]R8a - Net Debt input'!W334)<'RFPR cover'!$F$14,"OK","Error") -> OK | H45: =IF(ABS(H42-'[3]R8a - Net Debt input'!X334)<'RFPR cover'!$F$14,"OK","Error") -> OK | I45: =IF(ABS(I42-'[3]R8a - Net Debt input'!Y334)<'RFPR cover'!$F$14,"OK","Error") -> OK | J45: =IF(ABS(J42-'[3]R8a - Net Debt input'!Z334)<'RFPR cover'!$F$14,"OK","Error") -> OK | K45: =IF(ABS(K42-'[3]R8a - Net Debt input'!AA334)<'RFPR cover'!$F$14,"OK","Error") -> OK
B47: Opening Regulatory Net Debt including forecast new debt/refinancing | C47: £m nominal | D47: 929.1382425 | E47: =D48 -> 1151.253314 | F47: =E48 -> 1127.3907 | G47: 1112.163 | H47: 1345.540288 | I47: 1396.254278 | J47: 1475.46608 | K47: 1561.982097
B48: Closing Regulatory Net Debt including forecast new debt/refinancing | C48: £m nominal | D48: =D44 -> 1151.253314 | E48: =E44 -> 1127.3907 | F48: =F44 -> 1112.163 | G48: 1345.540288 | H48: 1396.254278 | I48: 1475.46608 | J48: 1561.982097 | K48: 1601.516771
B50: Allocation of net debt (Per regulatory definition. Transmission companies only)
B51: System operator allocation (transmission companies only) | C51: % | D51: ='[3]R8a - Net Debt input'!T337 -> 0 | E51: ='[3]R8a - Net Debt input'!U337 -> 0 | F51: ='[3]R8a - Net Debt input'!V337 -> 0 | G51: ='[3]R8a - Net Debt input'!W337 -> 0 | H51: ='[3]R8a - Net Debt input'!X337 -> 0 | I51: ='[3]R8a - Net Debt input'!Y337 -> 0 | J51: ='[3]R8a - Net Debt input'!Z337 -> 0 | K51: ='[3]R8a - Net Debt input'!AA337 -> 0
B52: Transmission or distribution allocation | C52: % | D52: =1-D51 -> 1 | E52: =1-E51 -> 1 | F52: 1 | G52: 1 | H52: 1 | I52: 1 | J52: 1 | K52: 1
B54: Average Net Debt (per Regulatory Definition) | C54: £m nominal | D54: =AVERAGE(D47:D48)*D52 -> 1040.195778 | E54: =AVERAGE(E47:E48)*E52 -> 1139.322007 | F54: 1119.77685 | G54: 1228.851644 | H54: 1370.897283 | I54: 1435.860179 | J54: 1518.724089 | K54: 1581.749434
B55: Equity RAV | C55: £m nominal | D55: =D56-D54 -> 880.2345253 | E55: =E56-E54 -> 815.7226703 | F55: 872.0640903 | G55: 839.3888034 | H55: 805.0138297 | I55: 858.6753531 | J55: 897.7891168 | K55: 946.8541147
B56: Average RAV | C56: £m nominal | D56: =IF(D6='RFPR cover'!$C$13,AVERAGE(('R9 - RAV'!D16*'R9 - RAV'!D36),'R9 - RAV'!D38),AVERAGE('R9 - RAV'!C38:D38)) -> 1920.430304 | E56: =IF(E6='RFPR cover'!$C$13,AVERAGE(('R9 - RAV'!E16*'R9 - RAV'!E36),'R9 - RAV'!E38),AVERAGE('R9 - RAV'!D38:E38)) -> 1955.044677 | F56: =IF(F6='RFPR cover'!$C$13,AVERAGE(('R9 - RAV'!F16*'R9 - RAV'!F36),'R9 - RAV'!F38),AVERAGE('R9 - RAV'!E38:F38)) -> 1991.84094 | G56: =IF(G6='RFPR cover'!$C$13,AVERAGE(('R9 - RAV'!G16*'R9 - RAV'!G36),'R9 - RAV'!G38),AVERAGE('R9 - RAV'!F38:G38)) -> 2068.240447 | H56: =IF(H6='RFPR cover'!$C$13,AVERAGE(('R9 - RAV'!H16*'R9 - RAV'!H36),'R9 - RAV'!H38),AVERAGE('R9 - RAV'!G38:H38)) -> 2175.911113 | I56: =IF(I6='RFPR cover'!$C$13,AVERAGE(('R9 - RAV'!I16*'R9 - RAV'!I36),'R9 - RAV'!I38),AVERAGE('R9 - RAV'!H38:I38)) -> 2294.535532 | J56: =IF(J6='RFPR cover'!$C$13,AVERAGE(('R9 - RAV'!J16*'R9 - RAV'!J36),'R9 - RAV'!J38),AVERAGE('R9 - RAV'!I38:J38)) -> 2416.513205 | K56: =IF(K6='RFPR cover'!$C$13,AVERAGE(('R9 - RAV'!K16*'R9 - RAV'!K36),'R9 - RAV'!K38),AVERAGE('R9 - RAV'!J38:K38)) -> 2528.603549
B57: Actual Regulatory Gearing | C57: % | D57: =D54/D56 -> 0.5416472425 | E57: =E54/E56 -> 0.5827600874 | F57: 0.5621818627 | G57: 0.5941531825 | H57: 0.6300336787 | I57: 0.6257737825 | J57: 0.628477463 | K57: 0.6255426775
B58: Notional Gearing | C58: % | D58: ='RFPR cover'!$C$12 -> 0.65 | E58: ='RFPR cover'!$C$12 -> 0.65 | F58: ='RFPR cover'!$C$12 -> 0.65 | G58: ='RFPR cover'!$C$12 -> 0.65 | H58: ='RFPR cover'!$C$12 -> 0.65 | I58: ='RFPR cover'!$C$12 -> 0.65 | J58: ='RFPR cover'!$C$12 -> 0.65 | K58: ='RFPR cover'!$C$12 -> 0.65
B59: Gearing Ratio delta | C59: % | D59: =IF(ISBLANK(D23),"n/a",D57-D58) -> -0.1083527575 | E59: -0.06723991259 | F59: -0.0878181373 | G59: -0.0558468175 | H59: -0.01996632126 | I59: -0.02422621753 | J59: -0.021522537 | K59: -0.02445732252
B61: NPV Neutral assumed Average Net Debt | C61: ='RFPR cover'!$C$14 -> £m 09/10 | D61: =D63*D57 -> 871.911081 | E61: 939.7949277 | F61: 913.3658763 | G61: 979.2972879 | H61: 1057.657734 | I61: 1075.996896 | J61: 1112.545261 | K61: 1136.399716
B62: NPV Neutral assumed Equity RAV | C62: ='RFPR cover'!$C$14 -> £m 09/10 | D62: =D63*(1-D57) -> 737.8286399 | E62: =E63*(1-E57) -> 672.8668657 | F62: 711.3145641 | G62: 668.9262961 | H62: 621.0743236 | I62: 643.4693492 | J62: 657.6777408 | K62: 680.2624511
B63: NPV Neutral assumed Average RAV | C63: ='RFPR cover'!$C$14 -> £m 09/10 | D63: ='R9 - RAV'!D47 -> 1609.739721 | E63: ='R9 - RAV'!E47 -> 1612.661793 | F63: ='R9 - RAV'!F47 -> 1624.68044 | G63: ='R9 - RAV'!G47 -> 1648.223584 | H63: ='R9 - RAV'!H47 -> 1678.732057 | I63: ='R9 - RAV'!I47 -> 1719.466245 | J63: ='R9 - RAV'!J47 -> 1770.223002 | K63: ='R9 - RAV'!K47 -> 1816.662167
B64: Actual Regulatory Gearing | C64: % | D64: =D61/D63 -> 0.5416472425 | E64: =E61/E63 -> 0.5827600874 | F64: 0.5621818627 | G64: 0.5941531825 | H64: 0.6300336787 | I64: 0.6257737825 | J64: 0.628477463 | K64: 0.6255426775
B65: Notional Gearing | C65: % | D65: ='RFPR cover'!$C$12 -> 0.65 | E65: ='RFPR cover'!$C$12 -> 0.65 | F65: ='RFPR cover'!$C$12 -> 0.65 | G65: ='RFPR cover'!$C$12 -> 0.65 | H65: ='RFPR cover'!$C$12 -> 0.65 | I65: ='RFPR cover'!$C$12 -> 0.65 | J65: ='RFPR cover'!$C$12 -> 0.65 | K65: ='RFPR cover'!$C$12 -> 0.65
B66: Gearing Ratio delta | C66: % | D66: =IF(ISBLANK(D23),"n/a",D64-D65) -> -0.1083527575 | E66: -0.06723991259 | F66: -0.0878181373 | G66: -0.0558468175 | H66: -0.01996632126 | I66: -0.02422621753 | J66: -0.021522537 | K66: -0.02445732252

Sheet R9 - RAV
A1: R9 - Regulatory Asset Value (RAV)
A2: ='RFPR cover'!C5 -> Cadent-London
A3: ='RFPR cover'!C7 -> 2021
D5: =IF(D6<='RFPR cover'!$C$7-1,"Actuals","Forecast") -> Actuals | E5: =IF(E6<='RFPR cover'!$C$7-1,"Actuals","Forecast") -> Actuals | F5: =IF(F6<='RFPR cover'!$C$7-1,"Actuals","Forecast") -> Actuals | G5: =IF(G6<='RFPR cover'!$C$7-1,"Actuals","Forecast") -> Actuals | H5: =IF(H6<='RFPR cover'!$C$7-1,"Actuals","Forecast") -> Actuals | I5: =IF(I6<='RFPR cover'!$C$7-1,"Actuals","Forecast") -> Actuals | J5: =IF(J6<='RFPR cover'!$C$7-1,"Actuals","Forecast") -> Actuals | K5: =IF(K6<='RFPR cover'!$C$7-1,"Actuals","Forecast") -> Forecast
D6: ='RFPR cover'!$C$13 -> 2014 | E6: =D6+1 -> 2015 | F6: =E6+1 -> 2016 | G6: 2017 | H6: 2018 | I6: 2019 | J6: 2020 | K6: 2021
B8: RAV per latest published PCFM
B9: The latest published PCFM does not account for the impact of the reporting years totex. This will be published in the forthcoming annual iteration process.
B11: Closing RAV per latest published PCFM | C11: ='RFPR cover'!$C$14 -> £m 09/10 | D11: 1645.371094 | E11: 1652.011832 | F11: 1676.074715 | G11: 1701.568544 | H11: 1730.171613 | I11: 1767.992858 | J11: 1811.976934 | K11: 1870.49188
B13: Revised RAV - including forecast totex, allowances and enduring value
B14: Revised adjusted RAV including forecast totex, allowances and enduring value
B16: Opening RAV (before transfers) | C16: ='RFPR cover'!$C$14 -> £m 09/10 | D16: 1643.611604 | E16: =D29 -> 1642.73191 | F16: =E29 -> 1647.683672 | G16: 1665.784339 | H16: 1694.128226 | I16: 1726.343052 | J16: 1774.011459 | K16: 1825.998718
B17: Transfers | C17: ='RFPR cover'!$C$14 -> £m 09/10 | D17: 0 | E17: 0 | F17: 0 | G17: 0 | H17: 0 | I17: 0 | J17: 0 | K17: 0
B18: Opening RAV (after transfers) | C18: ='RFPR cover'!$C$14 -> £m 09/10 | D18: =SUM(D16:D17) -> 1643.611604 | E18: =SUM(E16:E17) -> 1642.73191 | F18: 1647.683672 | G18: 1665.784339 | H18: 1694.128226 | I18: 1726.343052 | J18: 1774.011459 | K18: 1825.998718
B19: Net additions (after disposals) | C19: ='RFPR cover'!$C$14 -> £m 09/10 | D19: 82.97786431 | E19: 89.83793818 | F19: 101.6799454 | G19: 104.1790159 | H19: 113.091106 | I19: 129.7950397 | J19: 144.106516 | K19: 157.997786
B20: Net additions (after disposals) - enduring value adjustment | C20: ='RFPR cover'!$C$14 -> £m 09/10 | D20: -2.639183071 | E20: -1.803723692 | F20: -6.152835625 | G20: 2.396215283 | H20: 3.272336193 | I20: 9.678318172 | J20: 8.234376762 | K20: -10.61465112
B21: Total Net Additions | C21: ='RFPR cover'!$C$14 -> £m 09/10 | D21: =SUM(D19:D20) -> 80.33868124 | E21: 88.03421449 | F21: 95.52710981 | G21: 106.5752312 | H21: 116.3634422 | I21: 139.4733578 | J21: 152.3408928 | K21: 147.3831349
B22: Depreciation | C22: ='RFPR cover'!$C$14 -> £m 09/10 | D22: -81.2183746 | E22: -83.19720012 | F22: -77.61706246 | G22: -78.68518621 | H22: -84.48803766 | I22: -91.99417365 | J22: -100.1173009 | K22: -110.2797882
B23: Depreciation - enduring value adjustment | C23: ='RFPR cover'!$C$14 -> £m 09/10 | D23: 0 | E23: 0.11474709 | F23: 0.1906199239 | G23: 0.4538418528 | H23: 0.3394211474 | I23: 0.1892234123 | J23: -0.2363336009 | K23: -0.5897595207
B24: Total Depreciation | C24: ='RFPR cover'!$C$14 -> £m 09/10 | D24: =SUM(D22:D23) -> -81.2183746 | E24: -83.08245303 | F24: -77.42644254 | G24: -78.23134435 | H24: -84.14861651 | I24: -91.80495024 | J24: -100.3536345 | K24: -110.8695478
B25: [Input other adjustment] | C25: ='RFPR cover'!$C$14 -> £m 09/10 | D25: 0 | E25: 0 | F25: 0 | G25: 0 | H25: 0 | I25: 0 | J25: 0 | K25: 0
B26: [Input other adjustment] | C26: ='RFPR cover'!$C$14 -> £m 09/10 | D26: 0 | E26: 0 | F26: 0 | G26: 0 | H26: 0 | I26: 0 | J26: 0 | K26: 0
B27: [Input other adjustment] | C27: ='RFPR cover'!$C$14 -> £m 09/10 | D27: 0 | E27: 0 | F27: 0 | G27: 0 | H27: 0 | I27: 0 | J27: 0 | K27: 0
B28: Other adjustments | C28: ='RFPR cover'!$C$14 -> £m 09/10 | D28: =SUM(D25:D27) -> 0 | E28: =SUM(E25:E27) -> 0 | F28: 0 | G28: 0 | H28: 0 | I28: 0 | J28: 0 | K28: 0
B29: Adjusted Closing RAV | C29: ='RFPR cover'!$C$14 -> £m 09/10 | D29: =D18+D21+D24+D28 -> 1642.73191 | E29: =E18+E21+E24+E28 -> 1647.683672 | F29: 1665.784339 | G29: 1694.128226 | H29: 1726.343052 | I29: 1774.011459 | J29: 1825.998718 | K29: 1862.512305
B31: Total enduring value and other adjustments | C31: ='RFPR cover'!$C$14 -> £m 09/10 | D31: =(D20+D23+D28) -> -2.639183071 | E31: -1.688976602 | F31: -5.962215701 | G31: 2.850057136 | H31: 3.61175734 | I31: 9.867541584 | J31: 7.998043162 | K31: -11.20441064
B32: CHECK | D32: =IF(D5="Actuals",IF(ABS((D29-SUM($D$31:D31))-D11)<'RFPR cover'!$F$14,"TRUE","FALSE"),"NA") -> TRUE | E32: =IF(E5="Actuals",IF(ABS((E29-SUM($D$31:E31))-E11)<'RFPR cover'!$F$14,"TRUE","FALSE"),"NA") -> TRUE | F32: =IF(F5="Actuals",IF(ABS((F29-SUM($D$31:F31))-F11)<'RFPR cover'!$F$14,"TRUE","FALSE"),"NA") -> TRUE | G32: =IF(G5="Actuals",IF(ABS((G29-SUM($D$31:G31))-G11)<'RFPR cover'!$F$14,"TRUE","FALSE"),"NA") -> TRUE | H32: =IF(H5="Actuals",IF(ABS((H29-SUM($D$31:H31))-H11)<'RFPR cover'!$F$14,"TRUE","FALSE"),"NA") -> TRUE | I32: =IF(I5="Actuals",IF(ABS((I29-SUM($D$31:I31))-I11)<'RFPR cover'!$F$14,"TRUE","FALSE"),"NA") -> TRUE | J32: =IF(J5="Actuals",IF(ABS((J29-SUM($D$31:J31))-J11)<'RFPR cover'!$F$14,"TRUE","FALSE"),"NA") -> TRUE | K32: =IF(K5="Actuals",IF(ABS((K29-SUM($D$31:K31))-K11)<'RFPR cover'!$F$14,"TRUE","FALSE"),"NA") -> NA
B34: Year end RPI | C34: Index | D34: =Data!C$35 -> 1.182989058 | E34: =Data!D$35 -> 1.193648704 | F34: =Data!E$35 -> 1.210796832 | G34: =Data!F$35 -> 1.251118104 | H34: =Data!G$35 -> 1.293061497 | I34: =Data!H$35 -> 1.328516409 | J34: =Data!I$35 -> 1.356092452 | K34: =Data!J$35 -> 1.385754077
B35: Financial Year Average RPI (RPIt) | C35: Index | D35: =Data!C$34 -> 1.166689067 | E35: =Data!D$34 -> 1.189556327 | F35: =Data!E$34 -> 1.202375711 | G35: =Data!F$34 -> 1.228139614 | H35: =Data!G$34 -> 1.274096595 | I35: =Data!H$34 -> 1.313027479 | J35: =Data!I$34 -> 1.347017848 | K35: =Data!J$34 -> 1.363354915
B36: Index for Opening RAV conversion to nominal in yr 1 | C36: Index | D36: =INDEX(Data!$F$14:$F$30,MATCH($D$6-1,Data!$C$14:$C$30,0),0)/IF('RFPR cover'!$C$6="ED1",Data!$E$17,Data!$E$14) -> 1.154486089
B38: Adjusted Closing RAV | C38: £m nominal | D38: =D29*D34 -> 1943.333875 | E38: 1966.75548 | F38: 2016.9264 | G38: 2119.554495 | H38: 2232.267731 | I38: 2356.803333 | J38: 2476.223078 | K38: 2580.98402
B40: Cost of debt | C40: annual real % | D40: =INDEX(Data!$K$73:$T$100,MATCH('RFPR cover'!$C$5,Data!$B$73:$B$100,0),MATCH('R9 - RAV'!D$6,Data!$K$72:$T$72,0)) -> 0.0292 | E40: =INDEX(Data!$K$73:$T$100,MATCH('RFPR cover'!$C$5,Data!$B$73:$B$100,0),MATCH('R9 - RAV'!E$6,Data!$K$72:$T$72,0)) -> 0.0272 | F40: =INDEX(Data!$K$73:$T$100,MATCH('RFPR cover'!$C$5,Data!$B$73:$B$100,0),MATCH('R9 - RAV'!F$6,Data!$K$72:$T$72,0)) -> 0.0255 | G40: =INDEX(Data!$K$73:$T$100,MATCH('RFPR cover'!$C$5,Data!$B$73:$B$100,0),MATCH('R9 - RAV'!G$6,Data!$K$72:$T$72,0)) -> 0.0238 | H40: =INDEX(Data!$K$73:$T$100,MATCH('RFPR cover'!$C$5,Data!$B$73:$B$100,0),MATCH('R9 - RAV'!H$6,Data!$K$72:$T$72,0)) -> 0.0222 | I40: =INDEX(Data!$K$73:$T$100,MATCH('RFPR cover'!$C$5,Data!$B$73:$B$100,0),MATCH('R9 - RAV'!I$6,Data!$K$72:$T$72,0)) -> 0.0191 | J40: =INDEX(Data!$K$73:$T$100,MATCH('RFPR cover'!$C$5,Data!$B$73:$B$100,0),MATCH('R9 - RAV'!J$6,Data!$K$72:$T$72,0)) -> 0.0158 | K40: =INDEX(Data!$K$73:$T$100,MATCH('RFPR cover'!$C$5,Data!$B$73:$B$100,0),MATCH('R9 - RAV'!K$6,Data!$K$72:$T$72,0)) -> 0.0109
B41: Cost of equity | C41: annual real % | D41: ='RFPR cover'!$C$10 -> 0.067 | E41: ='RFPR cover'!$C$10 -> 0.067 | F41: ='RFPR cover'!$C$10 -> 0.067 | G41: ='RFPR cover'!$C$10 -> 0.067 | H41: ='RFPR cover'!$C$10 -> 0.067 | I41: ='RFPR cover'!$C$10 -> 0.067 | J41: ='RFPR cover'!$C$10 -> 0.067 | K41: ='RFPR cover'!$C$10 -> 0.067
B42: Notional gearing | C42: % | D42: ='RFPR cover'!$C$12 -> 0.65 | E42: ='RFPR cover'!$C$12 -> 0.65 | F42: ='RFPR cover'!$C$12 -> 0.65 | G42: ='RFPR cover'!$C$12 -> 0.65 | H42: ='RFPR cover'!$C$12 -> 0.65 | I42: ='RFPR cover'!$C$12 -> 0.65 | J42: ='RFPR cover'!$C$12 -> 0.65 | K42: ='RFPR cover'!$C$12 -> 0.65
B43: Vanilla WACC | C43: annual real % | D43: =D40*D42+D41*(1-D42) -> 0.04243 | E43: 0.04113 | F43: 0.040025 | G43: 0.03892 | H43: 0.03788 | I43: 0.035865 | J43: 0.03372 | K43: 0.030535
B45: NPV-neutral debt element of RAV | C45: ='RFPR cover'!$C$14 -> £m 09/10 | D45: =D47*D42 -> 1046.330819 | E45: 1048.230166 | F45: 1056.042286 | G45: 1071.34533 | H45: 1091.175837 | I45: 1117.65306 | J45: 1150.644951 | K45: 1180.830409
B46: NPV-neutral equity element of RAV | C46: ='RFPR cover'!$C$14 -> £m 09/10 | D46: =D47*(1-D42) -> 563.4089023 | E46: 564.4316277 | F46: 568.6381541 | G46: 576.8782544 | H46: 587.55622 | I46: 601.8131859 | J46: 619.5780507 | K46: 635.8317586
B47: NPV-neutral RAV return base | C47: ='RFPR cover'!$C$14 -> £m 09/10 | D47: =AVERAGE(D16,D29*(1/(1+D43))) -> 1609.739721 | E47: 1612.661793 | F47: 1624.68044 | G47: 1648.223584 | H47: 1678.732057 | I47: 1719.466245 | J47: 1770.223002 | K47: 1816.662167
B49: Debt Return on RAV | C49: ='RFPR cover'!$C$14 -> £m 09/10 | D49: =D40*D45 -> 30.5528599 | E49: =E40*E45 -> 28.51186051 | F49: 26.9290783 | G49: 25.49801884 | H49: 24.22410358 | I49: 21.34717344 | J49: 18.18019023 | K49: 12.87105146
B50: Equity Return on RAV | C50: ='RFPR cover'!$C$14 -> £m 09/10 | D50: 37.74839646 | E50: 37.81691905 | F50: 38.09875633 | G50: 38.65084304 | H50: 39.36626674 | I50: 40.32148345 | J50: 41.5117294 | K50: 42.60072782
B51: Total return on RAV | C51: ='RFPR cover'!$C$14 -> £m 09/10 | D51: =SUM(D49:D50) -> 68.30125636 | E51: =SUM(E49:E50) -> 66.32877956 | F51: 65.02783463 | G51: 64.14886189 | H51: 63.59037032 | I51: 61.66865689 | J51: 59.69191963 | K51: 55.47177928
B53: NPV-neutral debt element of RAV | C53: £m nominal | D53: =D$35*D45 -> 1220.742727 | E53: 1246.928826 | F53: 1269.759595 | G53: 1315.761639 | H53: 1390.263419 | I53: 1467.509179 | J53: 1549.939286 | K53: 1609.890942
B54: NPV-neutral equity element of RAV | C54: £m nominal | D54: 657.3230068 | E54: 671.4232138 | F54: 683.7167048 | G54: 708.4870364 | H54: 748.6033792 | I54: 790.1972501 | J54: 834.5826925 | K54: 866.8643533
B55: Adjusted NPV-neutral average RAV | C55: £m nominal | D55: =SUM(D53:D54) -> 1878.065734 | E55: =SUM(E53:E54) -> 1918.35204 | F55: 1953.476299 | G55: 2024.248675 | H55: 2138.866798 | I55: 2257.706429 | J55: 2384.521979 | K55: 2476.755295
B57: Debt Return on RAV | C57: £m nominal | D57: =D$35*D49 -> 35.64568763 | E57: 33.91646406 | F57: 32.37886966 | G57: 31.31512701 | H57: 30.86384789 | I57: 28.02942532 | J57: 24.48904072 | K57: 17.54781127
B58: Equity Return on NPV-neutral RAV | C58: £m nominal | D58: 44.04064146 | E58: 44.98535533 | F58: 45.80901922 | G58: 47.46863144 | H58: 50.15642641 | I58: 52.94321576 | J58: 55.9170404 | K58: 58.07991167
B59: Total return on RAV | C59: £m nominal | D59: =SUM(D57:D58) -> 79.68632908 | E59: 78.90181939 | F59: 78.18788888 | G59: 78.78375845 | H59: 81.0202743 | I59: 80.97264107 | J59: 80.40608112 | K59: 75.62772294

Sheet R10 - Tax
A1: R10 - Tax
A2: ='RFPR cover'!C5 -> Cadent-London
A3: ='RFPR cover'!C7 -> 2021
D5: =IF(D6<=('RFPR cover'!$C$7-1),"Actuals","Forecast") -> Actuals | E5: =IF(E6<=('RFPR cover'!$C$7-1),"Actuals","Forecast") -> Actuals | F5: =IF(F6<=('RFPR cover'!$C$7-1),"Actuals","Forecast") -> Actuals | G5: =IF(G6<=('RFPR cover'!$C$7-1),"Actuals","Forecast") -> Actuals | H5: =IF(H6<=('RFPR cover'!$C$7-1),"Actuals","Forecast") -> Actuals | I5: =IF(I6<=('RFPR cover'!$C$7-1),"Actuals","Forecast") -> Actuals | J5: =IF(J6<=('RFPR cover'!$C$7-1),"Actuals","Forecast") -> Actuals | K5: =IF(K6<=('RFPR cover'!$C$7-1),"Actuals","Forecast") -> Forecast
D6: ='RFPR cover'!$C$13 -> 2014 | E6: =D6+1 -> 2015 | F6: =E6+1 -> 2016 | G6: 2017 | H6: 2018 | I6: 2019 | J6: 2020 | K6: 2021
B8: CT600 will not have been submitted for the current reporting year.
B9: It is assumed the current tax charge per the statutory accounts will equal the tax liability in the forthcoming CT600, where this is not the case the licensee should provide an explanation in the commentary of the variance.
B10: This will be corrected / trued-up in future years
B12: Tax liability per latest submitted CT600 (pre-group relief) | C12: £m nominal | D12: 154.975 | E12: 126.992 | F12: 134.012 | G12: -25.7 | H12: 125.2 | I12: 132.89854 | J12: 144.81819
B14: Adjustments to remove non-regulated tax liability
B15: Tax on non-regulated activities | C15: £m nominal | D15: 44.6468619 | E15: 42.4797453 | F15: 43.44862871 | G15: 0.4293253918 | H15: 0.7552502622 | I15: 0.5849864272 | J15: -3.292726117
B16: Tax relating to capital contributions (excluded services) | C16: £m nominal | D16: -4.498791074 | E16: -3.427918254 | F16: -83.87205642 | G16: -0.7489804721 | H16: -0.5642697889 | I16: -0.215764 | J16: 0.4880066873
B17: Tax on Separation costs/restructuring costs | C17: £m nominal | D17: 1.381593191 | E17: 0 | F17: 0 | G17: -2.28009114 | H17: -3.8 | I17: -3.116 | J17: -2.064399715
B18: Transfer pricing and de-grouping charge adjustment | C18: £m nominal | D18: 7.160544 | E18: 6.69186 | F18: 7.863804 | G18: -4 | H18: 0 | I18: 0 | J18: 0
B19: Tax on Payments to Cadent Foundation | C19: £m nominal | D19: 0 | E19: 0 | F19: 0 | G19: 0 | H19: 0 | I19: 0 | J19: -1.767
B20: Tax on Payment to Energy Savings Trust, GSOP and Grenfell | C20: £m nominal | D20: 0 | E20: 0 | F20: 0 | G20: 0 | H20: 0 | I20: -3.116 | J20: -0.8121479244
B21: Tax relating to other three networks (included in CT600) | C21: £m nominal | D21: 82.11831449 | E21: 61.76841915 | F21: 123.1508729 | G21: -22.20846352 | H21: 99.45107658 | I21: 110.8529289 | J21: 115.7955228
B22: Non-regulated tax | C22: £m nominal | D22: =SUM(D15:D21) -> 130.8085225 | E22: =SUM(E15:E21) -> 107.5121062 | F22: 90.59124915 | G22: -28.80820974 | H22: 95.84205705 | I22: 104.9901513 | J22: 108.3472557 | K22: 0
B24: Other adjustments
B25: Tax on output incentives | C25: £m nominal | D25: =('R5 - Output Incentives'!D102)*INDEX(Data!$G$14:$G$30,MATCH('R10 - Tax'!D$6,Data!$C$14:$C$30,0),1) -> 0.0439057879 | E25: =('R5 - Output Incentives'!E102)*INDEX(Data!$G$14:$G$30,MATCH('R10 - Tax'!E$6,Data!$C$14:$C$30,0),1) -> 0.0366942093 | F25: =('R5 - Output Incentives'!F102)*INDEX(Data!$G$14:$G$30,MATCH('R10 - Tax'!F$6,Data!$C$14:$C$30,0),1) -> 0.860679794 | G25: =('R5 - Output Incentives'!G102)*INDEX(Data!$G$14:$G$30,MATCH('R10 - Tax'!G$6,Data!$C$14:$C$30,0),1) -> 0.81564519 | H25: =('R5 - Output Incentives'!H102)*INDEX(Data!$G$14:$G$30,MATCH('R10 - Tax'!H$6,Data!$C$14:$C$30,0),1) -> 1.748847035 | I25: =('R5 - Output Incentives'!I102)*INDEX(Data!$G$14:$G$30,MATCH('R10 - Tax'!I$6,Data!$C$14:$C$30,0),1) -> 1.417234673 | J25: =('R5 - Output Incentives'!J102)*INDEX(Data!$G$14:$G$30,MATCH('R10 - Tax'!J$6,Data!$C$14:$C$30,0),1) -> 1.59685845 | K25: =('R5 - Output Incentives'!K102)*INDEX(Data!$G$14:$G$30,MATCH('R10 - Tax'!K$6,Data!$C$14:$C$30,0),1) -> 1.883812697
B26: Tax on IQI | C26: £m nominal | D26: =('R4 - Totex'!D77-'R4 - Totex'!D79)*D42 -> 0.3280306705 | E26: =('R4 - Totex'!E77-'R4 - Totex'!E79)*E42 -> 0.3047183023 | F26: =('R4 - Totex'!F77-'R4 - Totex'!F79)*F42 -> 0.3112268926 | G26: =('R4 - Totex'!G77-'R4 - Totex'!G79)*G42 -> 0.3094026649 | H26: =('R4 - Totex'!H77-'R4 - Totex'!H79)*H42 -> 0.310831321 | I26: =('R4 - Totex'!I77-'R4 - Totex'!I79)*I42 -> 0.3162974547 | J26: =('R4 - Totex'!J77-'R4 - Totex'!J79)*J42 -> 0.3222718138 | K26: =('R4 - Totex'!K77-'R4 - Totex'!K79)*K42 -> 0.3257076231
B27: Collected revenue adjustment ('k') | C27: £m nominal | D27: 1.916223612 | E27: 0.2647023987 | F27: -1.81821855 | G27: 0.5666968894 | H27: -0.4046490526 | I27: -0.3850356339 | J27: 0.2372227282
B28: Pension - timing adjustment | C28: £m nominal | D28: 0.3809797548 | E28: 0.145786221 | F28: 0.001121206165 | G28: -0.004488390883 | H28: -0.9702438213 | I28: -0.6724647105 | J28: -0.07364243381
B29: Pension - disallowed contributions | C29: £m nominal | D29: 0 | E29: 0 | F29: 0 | G29: 0 | H29: 0 | I29: 0 | J29: 0
B30: Tax on derivatives not disregarded | C30: £m nominal | D30: 0 | E30: 0 | F30: 0 | G30: 0 | H30: 0 | I30: 0 | J30: 0
B31: Tax arising from MOD values | C31: £m nominal | D31: -0.4030027662 | E31: -0.2993501043 | F31: 2.819541336 | G31: 2.41803745 | H31: -1.352418571 | I31: -2.276855915 | J31: -2.752364838
B32: Tax on finance costs not included within the RIIO 1 definition | C32: £m nominal | D32: 0.4061260657 | E32: -1.1025 | F32: -0.2 | G32: -38.5776 | H32: -0.02074405723 | I32: 0.06669810719 | J32: -0.03819641839
B33: Difference between actual and allowed pass through costs (inc exit capacity and shrinkage) | C33: £m nominal | D33: 0.3687580579 | E33: 0.4810520445 | F33: 0.04723974137 | G33: -0.09418009038 | H33: -3.802611597 | I33: -3.178386646 | J33: 4.177628156
B34: Other revenue timing adjustments | C34: £m nominal | D34: -0.02364750376 | E34: -0.03740889696 | F34: 0.4351884884 | G34: -1.169001279 | H34: -1.838946333 | I34: -0.4552349567 | J34: 0.2251171327
B35: Regulatory tax losses carried forward from previous price controls | C35: £m nominal | D35: 5.650032199 | E35: 0 | F35: 0 | G35: 0 | H35: 0 | I35: 0 | J35: 0
B36: 0 | C36: £m nominal | D36: 0 | E36: 0 | F36: 0 | G36: 0 | H36: 0 | I36: 0 | J36: 0
B37: Total other adjustments | C37: £m nominal | D37: =SUM(D25:D36) -> 8.667405879 | E37: -0.2063058255 | F37: 2.456778908 | G37: -35.73548757 | H37: -6.329935076 | I37: -5.167747626 | J37: 3.694894591 | K37: 2.20952032
B39: Forecast regulated tax liability (including impact of enduring value adjustments) | C39: £m nominal | J39: 0 | K39: 34.93059351
B40: Adjusted forecast regulated tax liability with timing differences | C40: £m nominal | D40: =D12+D39-D22-D37 -> 15.49907162 | E40: =E12+E39-E22-E37 -> 19.68619963 | F40: =F12+F39-F22-F37 -> 40.96397194 | G40: =G12+G39-G22-G37 -> 38.84369731 | H40: 35.68787802 | I40: 33.07613633 | J40: 32.77603967 | K40: 32.72107319
B42: Financial year average RPI | C42: Index | D42: =Data!C$34 -> 1.166689067 | E42: =Data!D$34 -> 1.189556327 | F42: =Data!E$34 -> 1.202375711 | G42: =Data!F$34 -> 1.228139614 | H42: =Data!G$34 -> 1.274096595 | I42: =Data!H$34 -> 1.313027479 | J42: =Data!I$34 -> 1.347017848 | K42: =Data!J$34 -> 1.363354915
B44: Adjusted/forecast regulated tax liability with timing differences | C44: ='RFPR cover'!$C$14 -> £m 09/10 | D44: =D40/D42 -> 13.28466346 | E44: 16.54919501 | F44: 34.06919449 | G44: 31.62807948 | H44: 28.01033938 | I44: 25.1907419 | J44: 24.33229799 | K44: 24.00040725
B46: Tax out(under)performance at notional gearing
B47: Performance against allowance is impacted by deviating from notional levels of gearing
B49: Notional Gearing | C49: % | D49: ='RFPR cover'!$C$12 -> 0.65 | E49: ='RFPR cover'!$C$12 -> 0.65 | F49: ='RFPR cover'!$C$12 -> 0.65 | G49: ='RFPR cover'!$C$12 -> 0.65 | H49: ='RFPR cover'!$C$12 -> 0.65 | I49: ='RFPR cover'!$C$12 -> 0.65 | J49: ='RFPR cover'!$C$12 -> 0.65 | K49: ='RFPR cover'!$C$12 -> 0.65
B50: Actual Gearing | C50: % | D50: ='R8 - Net Debt'!D57 -> 0.5416472425 | E50: ='R8 - Net Debt'!E57 -> 0.5827600874 | F50: ='R8 - Net Debt'!F57 -> 0.5621818627 | G50: ='R8 - Net Debt'!G57 -> 0.5941531825 | H50: ='R8 - Net Debt'!H57 -> 0.6300336787 | I50: ='R8 - Net Debt'!I57 -> 0.6257737825 | J50: ='R8 - Net Debt'!J57 -> 0.628477463 | K50: ='R8 - Net Debt'!K57 -> 0.6255426775
B52: Adjusted/forecast regulated tax liability with timing differences | C52: £m nominal | D52: =D40 -> 15.49907162 | E52: =E40 -> 19.68619963 | F52: 40.96397194 | G52: 38.84369731 | H52: 35.68787802 | I52: 33.07613633 | J52: 32.77603967 | K52: 32.72107319
B53: Adjustment to regulatory tax cost relating to variance from notional gearing | C53: £m nominal | D53: =D88-D90 -> -0.3445236234 | E53: =E88-E90 -> -0.2227446871 | F53: -0.4913328793 | G53: -0.1298165683 | H53: 0.04466750029 | I53: 0.06435455402 | J53: 0.4547621548 | K53: 0.343521432
B54: Revised regulated tax liability for comparison against allowance | C54: £m nominal | D54: =SUM(D52:D53) -> 15.154548 | E54: =SUM(E52:E53) -> 19.46345495 | F54: 40.47263906 | G54: 38.71388074 | H54: 35.73254552 | I54: 33.14049088 | J54: 33.23080183 | K54: 33.06459462
B56: Revised regulated tax liability for comparison against allowance | C56: ='RFPR cover'!$C$14 -> £m 09/10 | D56: =D54/D42 -> 12.98936317 | E56: =E54/E42 -> 16.36194479 | F56: 33.66055942 | G56: 31.52237768 | H56: 28.04539755 | I56: 25.23975425 | J56: 24.66990462 | K56: 24.25237497
B59: Allowance
B61: The latest published PCFM does not account for the forecast TIM performance - and ultimate impact on tax allowance.
B63: Tax Allowance per latest published PCFM | C63: ='RFPR cover'!$C$14 -> £m 09/10 | D63: 8.00381059 | E63: 10.46570846 | F63: 29.25380393 | G63: 27.84664989 | H63: 25.88615884 | I63: 23.65363218 | J63: 22.90533616 | K63: 23.33565277
B64: Tax clawbacks | C64: ='RFPR cover'!$C$14 -> £m 09/10 | D64: 0 | E64: 0 | F64: -5.719908177e-17 | G64: 5.564108194e-17 | H64: 4.330038795e-16 | I64: 0 | J64: 0 | K64: 0
B65: Net Tax Allowance | C65: ='RFPR cover'!$C$14 -> £m 09/10 | D65: =SUM(D63:D64) -> 8.00381059 | E65: 10.46570846 | F65: 29.25380393 | G65: 27.84664989 | H65: 25.88615884 | I65: 23.65363218 | J65: 22.90533616 | K65: 23.33565277
B67: Network operators should provide forecast allowances taking account of the latest totex, allowances, reopeners, enduring value adjustments - and other financial variables
B69: Forecast tax allowance | C69: ='RFPR cover'!$C$14 -> £m 09/10 | D69: 7.230694316 | E69: 8.291043058 | F69: 25.10114393 | G69: 25.27024082 | H69: 23.74934797 | I69: 23.39476901 | J69: 22.75587362 | K69: 23.12864434
B70: Forecast tax clawbacks | C70: ='RFPR cover'!$C$14 -> £m 09/10 | D70: 0 | E70: 0 | F70: -5.719908177e-17 | G70: 5.564108194e-17 | H70: 4.330038795e-16 | I70: 4.281237441e-16 | J70: 0 | K70: 0
B71: Net forecast tax allowance | C71: ='RFPR cover'!$C$14 -> £m 09/10 | D71: =SUM(D69:D70) -> 7.230694316 | E71: 8.291043058 | F71: 25.10114393 | G71: 25.27024082 | H71: 23.74934797 | I71: 23.39476901 | J71: 22.75587362 | K71: 23.12864434
B73: Reconciliation of forecast movement in allowance | D73: =D71-D65 -> -0.7731162747 | E73: -2.174665402 | F73: -4.152660006 | G73: -2.576409072 | H73: -2.136810868 | I73: -0.2588631642 | J73: -0.1494625396 | K73: -0.2070084234
B74: Changes in corporation tax rates | C74: ='RFPR cover'!$C$14 -> £m 09/10 | D74: 0 | E74: 0 | F74: 0 | G74: 0 | H74: 0 | I74: 0 | J74: 0 | K74: 0
B75: Tax allowance retained within deadband | C75: ='RFPR cover'!$C$14 -> £m 09/10 | D75: 0 | E75: 0 | F75: 0 | G75: 0 | H75: 0 | I75: 0 | J75: 0 | K75: 0
B76: Other adjustments | C76: ='RFPR cover'!$C$14 -> £m 09/10 | D76: -0.7731162747 | E76: -2.174665402 | F76: -4.152660006 | G76: -2.576409072 | H76: -2.136810868 | I76: -0.2588631642 | J76: -0.1494625396 | K76: -0.2070084234
B77: Check | C77: ='RFPR cover'!$C$14 -> £m 09/10 | D77: =IF(ABS(D73-SUM(D74:D76))<'RFPR cover'!$F$14,"OK","ERROR") -> OK | E77: =IF(ABS(E73-SUM(E74:E76))<'RFPR cover'!$F$14,"OK","ERROR") -> OK | F77: =IF(ABS(F73-SUM(F74:F76))<'RFPR cover'!$F$14,"OK","ERROR") -> OK | G77: =IF(ABS(G73-SUM(G74:G76))<'RFPR cover'!$F$14,"OK","ERROR") -> OK | H77: =IF(ABS(H73-SUM(H74:H76))<'RFPR cover'!$F$14,"OK","ERROR") -> OK | I77: =IF(ABS(I73-SUM(I74:I76))<'RFPR cover'!$F$14,"OK","ERROR") -> OK | J77: =IF(ABS(J73-SUM(J74:J76))<'RFPR cover'!$F$14,"OK","ERROR") -> OK | K77: =IF(ABS(K73-SUM(K74:K76))<'RFPR cover'!$F$14,"OK","ERROR") -> OK
B80: Out(under) performance
B82: Regulated tax out(under) performance at actual gearing | C82: ='RFPR cover'!$C$14 -> £m 09/10 | D82: =D$71-D44 -> -6.053969143 | E82: -8.258151955 | F82: -8.96805056 | G82: -6.357838661 | H82: -4.260991404 | I82: -1.795972887 | J82: -1.576424367 | K82: -0.8717629038
B84: Regulated tax out(under) performance at notional gearing | C84: ='RFPR cover'!$C$14 -> £m 09/10 | D84: =D$71-D56 -> -5.75866885 | E84: -8.070901732 | F84: -8.559415493 | G84: -6.252136861 | H84: -4.296049578 | I84: -1.844985231 | J84: -1.914030996 | K84: -1.123730626
B86: Impact on out(under) performance relating to deviating from notional levels of gearing | C86: ='RFPR cover'!$C$14 -> £m 09/10 | D86: =D82-D84 -> -0.2953002929 | E86: =E82-E84 -> -0.1872502227 | F86: -0.4086350671 | G86: -0.1057018004 | H86: 0.03505817413 | I86: 0.04901234366 | J86: 0.337606629 | K86: 0.2519677218
B88: Tax impact of financing performance (at actual gearing) | C88: £m nominal | D88: -5.274307715 | E88: -5.911869111 | F88: -6.430687923 | G88: -5.106523477 | H88: -5.104406846 | I88: -4.774098213 | J88: -3.725969695 | K88: -2.621972673
B89: Tax impact of financing performance (at actual gearing) | C89: ='RFPR cover'!$C$14 -> £m 09/10 | D89: =D88/D$42 -> -4.520748383 | E89: =E88/E$42 -> -4.969810153 | F89: -5.348318222 | G89: -4.157934017 | H89: -4.006295022 | I89: -3.635946917 | J89: -2.766087844 | K89: -1.923176895
B90: Tax impact of financing performance (at notional gearing) | C90: £m nominal | D90: -4.929784091 | E90: -5.689124424 | F90: -5.939355044 | G90: -4.976706909 | H90: -5.149074347 | I90: -4.838452767 | J90: -4.18073185 | K90: -2.965494105
B91: Tax impact of financing performance (at notional gearing) | C91: ='RFPR cover'!$C$14 -> £m 09/10 | D91: =D90/D$42 -> -4.22544809 | E91: -4.78255993 | F91: -4.939683155 | G91: -4.052232217 | H91: -4.041353197 | I91: -3.68495926 | J91: -3.103694473 | K91: -2.175144617
B92: Tax impact of financing performance relating to deviating from notional levels of gearing | C92: ='RFPR cover'!$C$14 -> £m 09/10 | D92: =D89-D91 -> -0.2953002929 | E92: =E89-E91 -> -0.1872502227 | F92: -0.4086350671 | G92: -0.1057018004 | H92: 0.03505817413 | I92: 0.04901234366 | J92: 0.337606629 | K92: 0.2519677218

Sheet R11 - Dividends
A1: R11 - Dividends
A2: ='RFPR cover'!C5 -> Cadent-London
A3: ='RFPR cover'!C7 -> 2021 | B3: ='R1 - RoRE'!B3 -> 
D5: =IF(D6<='RFPR cover'!$C$7,"Actuals","N/A") -> Actuals | E5: =IF(E6<='RFPR cover'!$C$7,"Actuals","N/A") -> Actuals | F5: =IF(F6<='RFPR cover'!$C$7,"Actuals","N/A") -> Actuals | G5: =IF(G6<='RFPR cover'!$C$7,"Actuals","N/A") -> Actuals | H5: =IF(H6<='RFPR cover'!$C$7,"Actuals","N/A") -> Actuals | I5: =IF(I6<='RFPR cover'!$C$7,"Actuals","N/A") -> Actuals | J5: =IF(J6<='RFPR cover'!$C$7,"Actuals","N/A") -> Actuals | K5: =IF(K6<='RFPR cover'!$C$7,"Actuals","N/A") -> Actuals
D6: ='RFPR cover'!$C$13 -> 2014 | E6: =D6+1 -> 2015 | F6: =E6+1 -> 2016 | G6: 2017 | H6: 2018 | I6: 2019 | J6: 2020 | K6: 2021
B8: Dividend paid as per Statutory Accounts | C8: £m nominal | D8: 455 | E8: 540 | F8: 458 | G8: 95 | H8: 418 | I8: 423 | J8: 275 | K8: 0
B9: Less dividend paid not related to Regulated business
B10: Metering | C10: £m nominal | D10: 65 | E10: 97 | F10: 67 | G10: 0 | H10: 0 | I10: 0 | J10: 0 | K10: 0
B11: Non regulated activities | C11: £m nominal | D11: 3 | E11: 7 | F11: 8 | G11: 0 | H11: 3 | I11: 2.121726915 | J11: 1.157518742 | K11: 0
B12: Other networks (East of England, West Midlands and North West) | C12: £m nominal | D12: 271 | E12: 307 | F12: 282 | G12: 64 | H12: 322 | I12: 324.6004508 | J12: 204.0815612 | K12: 0
B13: Dividend paid relating to the Regulated Business | C13: £m nominal | D13: =D8-SUM(D10:D12) -> 116 | E13: =E8-SUM(E10:E12) -> 129 | F13: 101 | G13: 31 | H13: 93 | I13: 96.2778223 | J13: 69.76092006 | K13: 0
B15: Shareholder loan interest (not included as Net Interest per Regulatory (RIIO-1) definition) | C15: £m nominal | D15: 0 | E15: 0 | F15: 0 | G15: 0 | H15: 0 | I15: 0 | J15: 0 | K15: 0

Sheet R12 - Pensions
A1: R12 - Pensions
A2: ='RFPR cover'!C5 -> Cadent-London
A3: ='RFPR cover'!C7 -> 2021
D5: =IF(D6<='RFPR cover'!$C$7,"Actuals","Forecast") -> Actuals | E5: =IF(E6<='RFPR cover'!$C$7,"Actuals","Forecast") -> Actuals | F5: =IF(F6<='RFPR cover'!$C$7,"Actuals","Forecast") -> Actuals | G5: =IF(G6<='RFPR cover'!$C$7,"Actuals","Forecast") -> Actuals | H5: =IF(H6<='RFPR cover'!$C$7,"Actuals","Forecast") -> Actuals | I5: =IF(I6<='RFPR cover'!$C$7,"Actuals","Forecast") -> Actuals | J5: =IF(J6<='RFPR cover'!$C$7,"Actuals","Forecast") -> Actuals | K5: =IF(K6<='RFPR cover'!$C$7,"Actuals","Forecast") -> Actuals
D6: ='RFPR cover'!$C$13 -> 2014 | E6: =D6+1 -> 2015 | F6: =E6+1 -> 2016 | G6: 2017 | H6: 2018 | I6: 2019 | J6: 2020 | K6: 2021
B8: Licensee share of total pension deficit repair payment made for defined benefit scheme | C8: £m nominal | D8: 1.843633485 | E8: 2.874448881 | F8: 2.880095675 | G8: 3.058603861 | H8: 8.417144783 | I8: 8.692714683 | J8: 8.935433813 | K8: 0.175950222
B9: Of which:
B10: Established deficit element funded via specific allowances | C10: £m nominal | D10: 1.843633485 | E10: 2.874448881 | F10: 2.880095675 | G10: 2.969977027 | H10: 8.164378256 | I10: 8.431672803 | J10: 8.667103087 | K10: 0.2423215553
B11: Incremental deficit funded via totex | C11: £m nominal | D11: 0 | E11: 0 | F11: 0 | G11: 0.0886268344 | H11: 0.2527665267 | I11: 0.26104188 | J11: 0.2683307259 | K11: -0.06637133326
B14: Established deficit element funded via specific allowances | C14: ='RFPR cover'!$C$14 -> £m 09/10 | D14: =D10/Data!C$34 -> 1.580226932 | E14: =E10/Data!D$34 -> 2.41640418 | F14: =F10/Data!E$34 -> 2.395337538 | G14: =G10/Data!F$34 -> 2.41827313 | H14: =H10/Data!G$34 -> 6.407974315 | I14: =I10/Data!H$34 -> 6.421550912 | J14: =J10/Data!I$34 -> 6.434289716 | K14: =K10/Data!J$34 -> 0.1777391584
B17: Established deficit (EDE) allowance as per PCFM | C17: ='RFPR cover'!$C$14 -> £m 09/10 | D17: 3 | E17: 3 | F17: 2.4 | G17: 2.4 | H17: 2.4 | I17: 6.1 | J17: 6.147154492 | K17: 6.147154492
B18: Less Pension Payment History Allowance (PPH) | C18: ='RFPR cover'!$C$14 -> £m 09/10 | D18: 0 | E18: 0 | F18: 0 | G18: 0 | H18: 0 | I18: -0.3 | J18: -0.3 | K18: -0.3
B19: Established deficit allowance less PPH | C19: ='RFPR cover'!$C$14 -> £m 09/10 | D19: =D17-D18 -> 3 | E19: =E17-E18 -> 3 | F19: 2.4 | G19: 2.4 | H19: 2.4 | I19: 6.4 | J19: 6.447154492 | K19: 6.447154492
D21: Enter valuation date
B24: Latest pension scheme valuation | D24: 2019-03-31
B26: Price base | D26: 43555
D28: £m
B29: Total Liabilities attributable to post cut-off date notional sub fund | D29: 189.9403274
B30: Total Liabilities attributable to pre cut-off date notional sub fund | D30: 6559.759673
B32: Total Assets attributable to post cut-off date notional sub fund | D32: 221.9
B33: Total Assets attributable to pre cut-off date notional sub fund | D33: 6445.5
B35: Deficit in the post Cut-Off Date Notional Sub-Fund | D35: =D29-D32 -> -31.95967259
B36: Deficit in the pre Cut-Off Date Notional Sub-Fund | D36: =D30-D33 -> 114.2596726
B38: Licensee element of established deficit | D38: 24.65723734
B39: Licensee element of incremental deficit | D39: -6.969156996

Sheet R13 - Other Activities
A1: R13 - Other activities
A2: ='RFPR cover'!C5 -> Cadent-London
A3: ='RFPR cover'!C7 -> 2021
D5: =IF(D6<='RFPR cover'!$C$7,"Actuals","Forecast") -> Actuals | E5: =IF(E6<='RFPR cover'!$C$7,"Actuals","Forecast") -> Actuals | F5: =IF(F6<='RFPR cover'!$C$7,"Actuals","Forecast") -> Actuals | G5: =IF(G6<='RFPR cover'!$C$7,"Actuals","Forecast") -> Actuals | H5: =IF(H6<='RFPR cover'!$C$7,"Actuals","Forecast") -> Actuals | I5: =IF(I6<='RFPR cover'!$C$7,"Actuals","Forecast") -> Actuals | J5: =IF(J6<='RFPR cover'!$C$7,"Actuals","Forecast") -> Actuals | K5: =IF(K6<='RFPR cover'!$C$7,"Actuals","Forecast") -> Actuals
D6: ='RFPR cover'!$C$13 -> 2014 | E6: =D6+1 -> 2015 | F6: =E6+1 -> 2016 | G6: 2017 | H6: 2018 | I6: 2019 | J6: 2020 | K6: 2021
B8: Post-tax total fines and penalties (including GS payments) | C8: ='RFPR cover'!$C$14 -> £m 09/10 | D8: =(D16+D21)/Data!C34 -> 0.99205322 | E8: =(E16+E21)/Data!D34 -> 1.215919382 | F8: =(F16+F21)/Data!E34 -> 1.114771214 | G8: =(G16+G21)/Data!F34 -> 0.852909355 | H8: =(H16+H21)/Data!G34 -> 1.087958003 | I8: =(I16+I21)/Data!H34 -> 7.314591576 | J8: =(J16+J21)/Data!I34 -> 2.023507504 | K8: =(K16+K21)/Data!J34 -> 0.7724555999
B10: Ofgem related fines and penalties
B11: Failure to meet gas network repair targets | C11: £m nominal | D11: 0.375 | E11: 0.375 | F11: 0 | G11: 0 | H11: 0 | I11: 0 | J11: 0 | K11: 0
B12: Fine/penalty | C12: £m nominal | D12: 0 | E12: 0 | F12: 0 | G12: 0 | H12: 0 | I12: 8.141 | J12: 0 | K12: 0
B13: Payments to residents who faced delayed compensation | C13: £m nominal | D13: 0 | E13: 0 | F13: 0 | G13: 0 | H13: 0 | I13: 0 | J13: 0 | K13: 0
B14: Total Ofgem related fines and penalties | C14: £m nominal | D14: =SUM(D11:D13) -> 0.375 | E14: =SUM(E11:E13) -> 0.375 | F14: 0 | G14: 0 | H14: 0 | I14: 8.141 | J14: 0 | K14: 0
B15: Any adjustment for tax | C15: £m nominal | D15: 0 | E15: 0 | F15: 0 | G15: 0 | H15: 0 | I15: 0 | J15: 0 | K15: 0
B16: Post-tax total fines and penalties | C16: £m nominal | D16: =D14-D15 -> 0.375 | E16: =E14-E15 -> 0.375 | F16: 0 | G16: 0 | H16: 0 | I16: 8.141 | J16: 0 | K16: 0
B18: Guaranteed Standard (GS) payments
B19: Total GS payments | C19: £m nominal | D19: 1.016126813 | E19: 1.356208347 | F19: 1.675467288 | G19: 1.309364707 | H19: 1.711313071 | I19: 1.8064935 | J19: 3.365062622 | K19: 1.3001619
B20: Any adjustment for tax | C20: £m nominal | D20: 0.233709167 | E20: 0.2848037529 | F20: 0.3350934576 | G20: 0.2618729414 | H20: 0.3251494835 | I20: 0.343233765 | J20: 0.6393618981 | K20: 0.247030761
B21: Post-tax total GS payments | C21: £m nominal | D21: =D19-D20 -> 0.782417646 | E21: =E19-E20 -> 1.071404594 | F21: 1.34037383 | G21: 1.047491766 | H21: 1.386163588 | I21: 1.463259735 | J21: 2.725700724 | K21: 1.053131139
